Body Name,Date Paid,Transaction Number,Amount,Supplier Name,Supplier Type,Expense Area,Cost Centre Description,Expense Type
Cambridgeshire County Council,03-Jul-23,51302016562,"-19,129.11",BUCHAN HEALTHCARE LTD,CARE ESTABLISHMENT,OPPD - Cost of Care - City South Blocks,City and South - Long term blocks,Nursing Care
Cambridgeshire County Council,03-Jul-23,51302016562,"-19,129.11",BUCHAN HEALTHCARE LTD,CARE ESTABLISHMENT,OPPD - Cost of Care - City South Blocks,City and South - Long term blocks,Nursing Care
Cambridgeshire County Council,03-Jul-23,51302016562,"-19,129.11",BUCHAN HEALTHCARE LTD,CARE ESTABLISHMENT,OPPD - Cost of Care - City South Blocks,City and South - Long term blocks,Nursing Care
Cambridgeshire County Council,03-Jul-23,51302016543,"-14,660.80",RHEOLA HEALTHCARE,CARE ESTABLISHMENT,OPPD - Cost of Care - Huntingdon Blocks,Hunts - Long term blocks,Residential Care
Cambridgeshire County Council,03-Jul-23,51302016543,"-14,660.80",RHEOLA HEALTHCARE,CARE ESTABLISHMENT,OPPD - Cost of Care - Huntingdon Blocks,Hunts - Long term blocks,Residential Care
Cambridgeshire County Council,03-Jul-23,51302016543,"-14,660.80",RHEOLA HEALTHCARE,CARE ESTABLISHMENT,OPPD - Cost of Care - Huntingdon Blocks,Hunts - Long term blocks,Residential Care
Cambridgeshire County Council,03-Jul-23,51302016543,"-14,660.80",RHEOLA HEALTHCARE,CARE ESTABLISHMENT,OPPD - Cost of Care - Huntingdon Blocks,Hunts - Long term blocks,Residential Care
Cambridgeshire County Council,03-Jul-23,51302016543,"-14,660.80",RHEOLA HEALTHCARE,CARE ESTABLISHMENT,OPPD - Cost of Care - Huntingdon Blocks,Hunts - Long term blocks,Residential Care
Cambridgeshire County Council,03-Jul-23,51302016543,"-14,660.80",RHEOLA HEALTHCARE,CARE ESTABLISHMENT,OPPD - Cost of Care - Huntingdon Blocks,Hunts - Long term blocks,Residential Care
Cambridgeshire County Council,03-Jul-23,51302016543,"-14,660.80",RHEOLA HEALTHCARE,CARE ESTABLISHMENT,OPPD - Cost of Care - Huntingdon Blocks,Hunts - Long term blocks,Residential Care
Cambridgeshire County Council,03-Jul-23,51302016543,"-14,660.80",RHEOLA HEALTHCARE,CARE ESTABLISHMENT,OPPD - Cost of Care - Huntingdon Blocks,Hunts - Long term blocks,Residential Care
Cambridgeshire County Council,03-Jul-23,51302016545,"-8,993.60",FITZWILLIAM HEALTHCARE LTD,CARE ESTABLISHMENT,OPPD - Cost of Care - City South Blocks,City and South - Long term blocks,Residential Care
Cambridgeshire County Council,03-Jul-23,51302016543,"-4,188.80",RHEOLA HEALTHCARE,CARE ESTABLISHMENT,OPPD - Cost of Care - Huntingdon Blocks,Hunts - Long term blocks,Residential Care
Cambridgeshire County Council,03-Jul-23,51302016543,"-3,498.88",RHEOLA HEALTHCARE,CARE ESTABLISHMENT,OPPD - Cost of Care - Huntingdon Blocks,Hunts - Long term blocks,Residential Care
Cambridgeshire County Council,03-Jul-23,51302016540,"-3,452.05",Beaumont HEALTHCARE LTD,CARE ESTABLISHMENT,Commissioning - Dom Cars,Hunts - Dom Blocks,Domiciliary Care
Cambridgeshire County Council,03-Jul-23,51302016540,"-3,452.05",Beaumont HEALTHCARE LTD,CARE ESTABLISHMENT,Commissioning - Dom Cars,Hunts - Dom Blocks,Domiciliary Care
Cambridgeshire County Council,03-Jul-23,51302015532,"-1,275.00",PCH Integration Services Ltd.,CARE ESTABLISHMENT,Unaccompanied Asylum Seeking Children,Separated Migrant Children < 18,Asylum Seekers
Cambridgeshire County Council,03-Jul-23,51302015474,500.64,JENNER HEALTHCENTRE,CARE ESTABLISHMENT,PH Stop Smoking Services,Stop Smoking Services - Pharmacy Vouchers,Professional Fees and Hired Services
Cambridgeshire County Council,03-Jul-23,51302015467,502.83,ST MARYS SURGERY,CARE ESTABLISHMENT,PH Stop Smoking Services,Stop Smoking Services - Pharmacy Vouchers,Professional Fees and Hired Services
Cambridgeshire County Council,03-Jul-23,51302015431,503.45,T & T PRIVATE HIRE LTD,TRADE SUPPLIER,LD - Hunts Locality - Cost of Care,LD - Huntingdonshire - Care,Social Care Transport
Cambridgeshire County Council,03-Jul-23,51302016525,508.00,Redacted Personal Data,SERVICE USER,Head of Corporate Parenting,Staying Put,Living Spport Grants - Financial Assistance 18+
Cambridgeshire County Council,03-Jul-23,51302016112,508.40,Redacted Personal Data,FOSTER PARENT,Adoption Allowances,Adoption Allowances,Adoption Allowances
Cambridgeshire County Council,03-Jul-23,51302015360,509.64,STAR CABS LTD,TRADE SUPPLIER,OPPD - Under 65 - City South,Countywide PD Service - Care,Social Care Transport
Cambridgeshire County Council,03-Jul-23,51302016463,510.00,Redacted Personal Data,FOSTER PARENT,Fostering,FCP allowances,Adoption Allowances
Cambridgeshire County Council,03-Jul-23,51302016442,510.00,Redacted Personal Data,FOSTER PARENT,Fostering,FCP allowances,Adoption Allowances
Cambridgeshire County Council,03-Jul-23,51302016320,510.00,Redacted Personal Data,FOSTER PARENT,Fostering,FCP allowances,Adoption Allowances
Cambridgeshire County Council,03-Jul-23,51302016343,510.00,Redacted Personal Data,FOSTER PARENT,Fostering,FCP allowances,Adoption Allowances
Cambridgeshire County Council,03-Jul-23,51302016183,510.00,Redacted Personal Data,INDIVIDUAL,Fostering,FCP allowances,Adoption Allowances
Cambridgeshire County Council,03-Jul-23,51302016186,510.00,Redacted Personal Data,INDIVIDUAL,Fostering,FCP allowances,Adoption Allowances
Cambridgeshire County Council,03-Jul-23,51302016378,510.00,Redacted Personal Data,FOSTER PARENT,Fostering,FCP allowances,Adoption Allowances
Cambridgeshire County Council,03-Jul-23,51302016230,510.00,Redacted Personal Data,FOSTER PARENT,Fostering,FCP allowances,Adoption Allowances
Cambridgeshire County Council,03-Jul-23,51302016206,510.00,Redacted Personal Data,PARENT/GUARDIAN,Fostering,FCP allowances,Adoption Allowances
Cambridgeshire County Council,03-Jul-23,51302016417,510.00,Redacted Personal Data,PARENT/GUARDIAN,Fostering,FCP allowances,Adoption Allowances
Cambridgeshire County Council,03-Jul-23,51302016422,510.00,Redacted Personal Data,FOSTER PARENT,Fostering,FCP allowances,Adoption Allowances
Cambridgeshire County Council,03-Jul-23,51302016297,510.00,Redacted Personal Data,FOSTER PARENT,Fostering,FCP allowances,Adoption Allowances
Cambridgeshire County Council,03-Jul-23,51302016355,510.00,Redacted Personal Data,FOSTER PARENT,Fostering,FCP allowances,Adoption Allowances
Cambridgeshire County Council,03-Jul-23,51302016522,510.00,Redacted Personal Data,PARENT/GUARDIAN,Fostering,FCP allowances,Adoption Allowances
Cambridgeshire County Council,03-Jul-23,51302016447,510.00,Redacted Personal Data,FOSTER PARENT,Fostering,FCP allowances,Adoption Allowances
Cambridgeshire County Council,03-Jul-23,51302016459,510.00,Redacted Personal Data,FOSTER PARENT,Fostering,FCP allowances,Adoption Allowances
Cambridgeshire County Council,03-Jul-23,51302016349,510.00,Redacted Personal Data,FOSTER PARENT,Fostering,FCP allowances,Adoption Allowances
Cambridgeshire County Council,03-Jul-23,51302016520,510.00,Redacted Personal Data,PARENT/GUARDIAN,Fostering,FCP allowances,Adoption Allowances
Cambridgeshire County Council,03-Jul-23,51302016345,510.00,Redacted Personal Data,FOSTER PARENT,Fostering,FCP allowances,Adoption Allowances
Cambridgeshire County Council,03-Jul-23,51302016227,510.00,Redacted Personal Data,FOSTER PARENT,Fostering,FCP allowances,Adoption Allowances
Cambridgeshire County Council,03-Jul-23,51302016198,510.00,Redacted Personal Data,PARENT/GUARDIAN,Fostering,FCP allowances,Childrens Lodgings
Cambridgeshire County Council,03-Jul-23,51302016310,510.00,Redacted Personal Data,FOSTER PARENT,Fostering,FCP allowances,Adoption Allowances
Cambridgeshire County Council,03-Jul-23,51302016312,510.00,Redacted Personal Data,FOSTER PARENT,Fostering,FCP allowances,Adoption Allowances
Cambridgeshire County Council,03-Jul-23,51302016249,510.00,Redacted Personal Data,FOSTER PARENT,Fostering,FCP allowances,Adoption Allowances
Cambridgeshire County Council,03-Jul-23,51302016135,510.00,Redacted Personal Data,FOSTER PARENT,Fostering,FCP allowances,Childrens Lodgings
Cambridgeshire County Council,03-Jul-23,51302016451,510.00,Redacted Personal Data,FOSTER PARENT,Fostering,FCP allowances,Adoption Allowances
Cambridgeshire County Council,03-Jul-23,51302016383,510.00,Redacted Personal Data,FOSTER PARENT,Fostering,FCP allowances,Adoption Allowances
Cambridgeshire County Council,03-Jul-23,51302016404,510.00,Redacted Personal Data,FOSTER PARENT,Fostering,FCP allowances,Adoption Allowances
Cambridgeshire County Council,03-Jul-23,51302016199,510.00,Redacted Personal Data,FOSTER PARENT,Fostering,FCP allowances,Adoption Allowances
Cambridgeshire County Council,03-Jul-23,51302016201,510.00,Redacted Personal Data,FOSTER PARENT,Fostering,FCP allowances,Adoption Allowances
Cambridgeshire County Council,03-Jul-23,51302016160,510.00,Redacted Personal Data,FOSTER PARENT,Fostering,FCP allowances,Adoption Allowances
Cambridgeshire County Council,03-Jul-23,51302016152,510.00,Redacted Personal Data,FOSTER PARENT,Fostering,FCP allowances,Adoption Allowances
Cambridgeshire County Council,03-Jul-23,51302016514,510.00,Redacted Personal Data,INDIVIDUAL,Fostering,FCP allowances,Adoption Allowances
Cambridgeshire County Council,03-Jul-23,51302016156,510.00,Redacted Personal Data,FOSTER PARENT,Fostering,FCP allowances,Adoption Allowances
Cambridgeshire County Council,03-Jul-23,51302016328,510.00,Redacted Personal Data,FOSTER PARENT,Fostering,FCP allowances,Adoption Allowances
Cambridgeshire County Council,03-Jul-23,51302016339,510.00,Redacted Personal Data,FOSTER PARENT,Fostering,FCP allowances,Adoption Allowances
Cambridgeshire County Council,03-Jul-23,51302016411,510.00,Redacted Personal Data,FOSTER PARENT,Fostering,FCP allowances,Adoption Allowances
Cambridgeshire County Council,03-Jul-23,51302016241,510.00,Redacted Personal Data,FOSTER PARENT,Unaccompanied Asylum Seeking Children,Separated Migrant Children < 18,Adoption Allowances
Cambridgeshire County Council,03-Jul-23,51302015563,519.10,Redacted Personal Data,FOSTER PARENT,Adoption Allowances,Adoption Allowances,Adoption Allowances
Cambridgeshire County Council,03-Jul-23,51302016053,519.76,Redacted Personal Data,FOSTER PARENT,Adoption Allowances,Adoption Allowances,Adoption Allowances
Cambridgeshire County Council,03-Jul-23,51301989507,522.00,Pathfinder Legal Services Limited,TRADE SUPPLIER,PH Other Health Improvement,Gen prev activities - Health -  Small community projects,Professional Fees and Hired Services
Cambridgeshire County Council,03-Jul-23,51302015542,525.00,PCH Integration Services Ltd.,CARE ESTABLISHMENT,Unaccompanied Asylum Seeking Children,Separated Migrant Children > 18,Living Spport Grants - Financial Assistance 18+
Cambridgeshire County Council,03-Jul-23,51302016188,532.00,Redacted Personal Data,FOSTER PARENT,Fostering,FCP allowances,Childrens Lodgings
Cambridgeshire County Council,03-Jul-23,51302016331,532.00,Redacted Personal Data,FOSTER PARENT,Fostering,FCP allowances,Childrens Lodgings
Cambridgeshire County Council,03-Jul-23,51302016129,532.00,Redacted Personal Data,INDIVIDUAL,Fostering,FCP allowances,Adoption Allowances
Cambridgeshire County Council,03-Jul-23,51302016325,532.00,Redacted Personal Data,FOSTER PARENT,Fostering,FCP allowances,Adoption Allowances
Cambridgeshire County Council,03-Jul-23,51302016340,532.00,Redacted Personal Data,FOSTER PARENT,Fostering,FCP allowances,Adoption Allowances
Cambridgeshire County Council,03-Jul-23,51302016329,532.00,Redacted Personal Data,FOSTER PARENT,Fostering,FCP allowances,Adoption Allowances
Cambridgeshire County Council,03-Jul-23,51302015412,540.80,COLLINS COACHES,TRADE SUPPLIER,Adults - Central Transport,Adults Disabilities and OP Transport,Social Care Transport
Cambridgeshire County Council,03-Jul-23,51302015416,540.80,COLLINS COACHES,TRADE SUPPLIER,Adults - Central Transport,Adults Disabilities and OP Transport,Social Care Transport
Cambridgeshire County Council,03-Jul-23,51302015418,540.80,COLLINS COACHES,TRADE SUPPLIER,Adults - Central Transport,Adults Disabilities and OP Transport,Social Care Transport
Cambridgeshire County Council,03-Jul-23,51302016043,547.44,Redacted Personal Data,FOSTER PARENT,Fostering,FCP allowances,Enhanced Payments
Cambridgeshire County Council,03-Jul-23,51302013068,548.34,HARSTON PARISH COUNCIL,OTHER PUBLIC BODIES,Highways Maintenance,Highways Maintenance - Works,Village Maintenance
Cambridgeshire County Council,03-Jul-23,51302016388,552.00,Redacted Personal Data,FOSTER PARENT,Fostering,FCP allowances,Adoption Allowances
Cambridgeshire County Council,03-Jul-23,51302016220,552.00,Redacted Personal Data,FOSTER PARENT,Fostering,FCP allowances,Adoption Allowances
Cambridgeshire County Council,03-Jul-23,51302016223,552.00,Redacted Personal Data,FOSTER PARENT,Fostering,FCP allowances,Adoption Allowances
Cambridgeshire County Council,03-Jul-23,51302016291,552.00,Redacted Personal Data,FOSTER PARENT,Fostering,FCP allowances,Adoption Allowances
Cambridgeshire County Council,03-Jul-23,51302016140,552.00,Redacted Personal Data,FOSTER PARENT,Fostering,FCP allowances,Childrens Lodgings
Cambridgeshire County Council,03-Jul-23,51302014631,552.00,IMPERIAL COLLEGE PROJECTS LIMITED,TRADE SUPPLIER,Coroners,Coroners General,Testing
Cambridgeshire County Council,03-Jul-23,51302013233,556.00,GREAT WILBRAHAM PARISH COUNCIL,OTHER PUBLIC BODIES,Highways Maintenance,Highways Maintenance - Works,Village Maintenance
Cambridgeshire County Council,03-Jul-23,51302002527,558.90,Magic Words Therapy Limited,EDUCATION,Early Years Specialist Support,SEND - Independent Therapy,Independent School Placements
Cambridgeshire County Council,03-Jul-23,51302015178,560.00,ARTHUR J GALLAGHER,TRADE SUPPLIER,Insurance Fund,Insurance General,Insurance Premiums
Cambridgeshire County Council,03-Jul-23,51302013222,561.08,CATWORTH PARISH COUNCIL,OTHER PUBLIC BODIES,Highways Maintenance,Highways Maintenance - Works,Village Maintenance
Cambridgeshire County Council,03-Jul-23,51302016598,573.77,Beaumont HEALTHCARE LTD,CARE ESTABLISHMENT,Commissioning - Dom Cars,Hunts - Dom Blocks,Domiciliary Care
Cambridgeshire County Council,03-Jul-23,51302016598,573.77,Beaumont HEALTHCARE LTD,CARE ESTABLISHMENT,Commissioning - Dom Cars,Hunts - Dom Blocks,Domiciliary Care
Cambridgeshire County Council,03-Jul-23,51302016598,573.77,Beaumont HEALTHCARE LTD,CARE ESTABLISHMENT,Commissioning - Dom Cars,Hunts - Dom Blocks,Domiciliary Care
Cambridgeshire County Council,03-Jul-23,51302016598,573.77,Beaumont HEALTHCARE LTD,CARE ESTABLISHMENT,Commissioning - Dom Cars,Hunts - Dom Blocks,Domiciliary Care
Cambridgeshire County Council,03-Jul-23,51302016598,573.77,Beaumont HEALTHCARE LTD,CARE ESTABLISHMENT,Commissioning - Dom Cars,Hunts - Dom Blocks,Domiciliary Care
Cambridgeshire County Council,03-Jul-23,51302016598,573.77,Beaumont HEALTHCARE LTD,CARE ESTABLISHMENT,Commissioning - Dom Cars,Hunts - Dom Blocks,Domiciliary Care
Cambridgeshire County Council,03-Jul-23,51302015562,586.40,Redacted Personal Data,FOSTER PARENT,Adoption Allowances,Adoption Allowances,Adoption Allowances
Cambridgeshire County Council,03-Jul-23,51302007282,588.00,SERVICE-AV,OTHER PUBLIC BODIES,Strategic Management - Children & Safeguarding,Director of Children & Safeguarding,Staff Training & Development
Cambridgeshire County Council,03-Jul-23,51302015364,589.90,Master Cars,COMPANY,LD - Hunts Locality - Cost of Care,LD - Huntingdonshire - Care,Social Care Transport
Cambridgeshire County Council,03-Jul-23,51302015387,594.00,Cambridge and Huntingdon Airport Travel Service,COMPANY,LD - Young Adults Team,LD - Young Adults - Care,Social Care Transport
Cambridgeshire County Council,03-Jul-23,51302016131,600.00,Redacted Personal Data,INDIVIDUAL,Fostering,FCP allowances,Adoption Allowances
Cambridgeshire County Council,03-Jul-23,51302007468,600.00,cThings Limited,COMPANY,Connecting Cambs,Investment in Connecting Cambridgeshire,Construction - External Professional Fees
Cambridgeshire County Council,03-Jul-23,51302015564,601.10,Redacted Personal Data,FOSTER PARENT,Adoption Allowances,Adoption Allowances,Adoption Allowances
Cambridgeshire County Council,03-Jul-23,51302015419,608.40,COLLINS COACHES,TRADE SUPPLIER,Adults - Central Transport,Adults Disabilities and OP Transport,Social Care Transport
Cambridgeshire County Council,03-Jul-23,51302015417,608.40,COLLINS COACHES,TRADE SUPPLIER,Adults - Central Transport,Adults Disabilities and OP Transport,Social Care Transport
Cambridgeshire County Council,03-Jul-23,51302015415,608.40,COLLINS COACHES,TRADE SUPPLIER,Adults - Central Transport,Adults Disabilities and OP Transport,Social Care Transport
Cambridgeshire County Council,03-Jul-23,51302015411,608.40,COLLINS COACHES,TRADE SUPPLIER,Adults - Central Transport,Adults Disabilities and OP Transport,Social Care Transport
Cambridgeshire County Council,03-Jul-23,51302015940,609.44,Redacted Personal Data,PARENT/GUARDIAN,Adoption Allowances,Adoption Allowances,Adoption Allowances
Cambridgeshire County Council,03-Jul-23,51302016453,612.00,Redacted Personal Data,FOSTER PARENT,Fostering,FCP allowances,Adoption Allowances
Cambridgeshire County Council,03-Jul-23,51302016282,612.00,Redacted Personal Data,FOSTER PARENT,Fostering,FCP allowances,Adoption Allowances
Cambridgeshire County Council,03-Jul-23,51302016515,612.00,Redacted Personal Data,INDIVIDUAL,Fostering,FCP allowances,Adoption Allowances
Cambridgeshire County Council,03-Jul-23,51302016379,612.00,Redacted Personal Data,FOSTER PARENT,Fostering,FCP allowances,Adoption Allowances
Cambridgeshire County Council,03-Jul-23,51302016136,612.00,Redacted Personal Data,FOSTER PARENT,Fostering,FCP allowances,Childrens Lodgings
Cambridgeshire County Council,03-Jul-23,51302016138,612.00,Redacted Personal Data,FOSTER PARENT,Fostering,FCP allowances,Childrens Lodgings
Cambridgeshire County Council,03-Jul-23,51302016270,612.00,Redacted Personal Data,FOSTER PARENT,Fostering,FCP allowances,Adoption Allowances
Cambridgeshire County Council,03-Jul-23,51302016272,612.00,Redacted Personal Data,FOSTER PARENT,Fostering,FCP allowances,Adoption Allowances
Cambridgeshire County Council,03-Jul-23,51302016261,612.00,Redacted Personal Data,PARENT/GUARDIAN,Unaccompanied Asylum Seeking Children,Separated Migrant Children < 18,Adoption Allowances
Cambridgeshire County Council,03-Jul-23,51302013167,613.11,BUCKDEN PARISH COUNCIL,OTHER PUBLIC BODIES,Highways Maintenance,Highways Maintenance - Works,Village Maintenance
Cambridgeshire County Council,03-Jul-23,51302007457,621.96,NOTTINGHAM REHAB SUPPLIES LTD,TRADE SUPPLIER,Reablement,Reablement,Specialist Equipment For Service Delivery
Cambridgeshire County Council,03-Jul-23,51302016094,630.00,Redacted Personal Data,FOSTER PARENT,Adoption Allowances,Adoption Allowances,Adoption Allowances
Cambridgeshire County Council,03-Jul-23,51302016338,634.00,Redacted Personal Data,FOSTER PARENT,Fostering,FCP allowances,Adoption Allowances
Cambridgeshire County Council,03-Jul-23,51302016327,634.00,Redacted Personal Data,FOSTER PARENT,Fostering,FCP allowances,Adoption Allowances
Cambridgeshire County Council,03-Jul-23,51302016226,634.00,Redacted Personal Data,FOSTER PARENT,Fostering,FCP allowances,Adoption Allowances
Cambridgeshire County Council,03-Jul-23,51302007356,638.12,ENTERPRISE RENT-A-CAR UK LTD,TRADE SUPPLIER,Corporate Offices,Pool Cars,Leased Vehicle Costs
Cambridgeshire County Council,03-Jul-23,51302015396,657.60,Cambridge and Huntingdon Airport Travel Service,COMPANY,LD - Young Adults Team,LD - Young Adults - Care,Social Care Transport
Cambridgeshire County Council,03-Jul-23,51302015400,659.40,Cambridge and Huntingdon Airport Travel Service,COMPANY,LD - South Locality - Cost of Care,LD - South Cambs - Care,Social Care Transport
Cambridgeshire County Council,03-Jul-23,51302015465,659.55,CEDAR HOUSE SURGERY,CARE ESTABLISHMENT,PH Stop Smoking Services,Stop Smoking Services - Pharmacy Vouchers,Professional Fees and Hired Services
Cambridgeshire County Council,03-Jul-23,51302016513,674.00,Redacted Personal Data,INDIVIDUAL,Fostering,FCP allowances,Adoption Allowances
Cambridgeshire County Council,03-Jul-23,51302016134,674.00,Redacted Personal Data,FOSTER PARENT,Fostering,FCP allowances,Childrens Lodgings
Cambridgeshire County Council,03-Jul-23,51302016311,674.00,Redacted Personal Data,FOSTER PARENT,Fostering,FCP allowances,Adoption Allowances
Cambridgeshire County Council,03-Jul-23,51302016309,674.00,Redacted Personal Data,FOSTER PARENT,Fostering,FCP allowances,Adoption Allowances
Cambridgeshire County Council,03-Jul-23,51302016377,674.00,Redacted Personal Data,FOSTER PARENT,Fostering,FCP allowances,Adoption Allowances
Cambridgeshire County Council,03-Jul-23,51302009289,675.24,AG FAMILY SUPPORT LTD,OTHER PUBLIC BODIES,Contact,Contact Relief,Professional Fees and Hired Services
Cambridgeshire County Council,03-Jul-23,51302015819,688.20,Redacted Personal Data,FOSTER PARENT,Adoption Allowances,Adoption Allowances,Adoption Allowances
Cambridgeshire County Council,03-Jul-23,51302016477,689.86,Redacted Personal Data,PARENT/GUARDIAN,Fostering,FCP allowances,Adoption Allowances
Cambridgeshire County Council,03-Jul-23,51302005492,694.42,CAMEL PROJECTS (HISTON) LTD,TRADE SUPPLIER,Corporate Offices,Histon Library,Service Charges
Cambridgeshire County Council,03-Jul-23,51302007482,701.22,Consult Design Create Limited,COMPANY,Grafham Water,Grafham Water Centre,Educational equipment
Cambridgeshire County Council,03-Jul-23,51302015234,701.50,Redacted Personal Data,PARENT/GUARDIAN,Children's Disability Direct Payments,CSC Direct Payments,Direct Payments
Cambridgeshire County Council,03-Jul-23,51302015458,722.20,A ROSSIER LTD,COMPANY,PH Contraception,SH Contraception -  Emergency Hormonal Contraception - Fee,Professional Fees and Hired Services
Cambridgeshire County Council,03-Jul-23,51302015336,733.20,ADAMS CABS,TRADE SUPPLIER,LD - City Locality - Cost of Care,LD - City - Care,Social Care Transport
Cambridgeshire County Council,03-Jul-23,51302015335,733.20,ADAMS CABS,TRADE SUPPLIER,LD - East Locality - Cost of Care,LD - East Cambs - Care,Social Care Transport
Cambridgeshire County Council,03-Jul-23,51302016323,736.00,Redacted Personal Data,FOSTER PARENT,Fostering,FCP allowances,Adoption Allowances
Cambridgeshire County Council,03-Jul-23,51302016174,736.00,Redacted Personal Data,FOSTER PARENT,Fostering,FCP allowances,Adoption Allowances
Cambridgeshire County Council,03-Jul-23,51302016413,736.00,Redacted Personal Data,INDIVIDUAL,Fostering,FCP allowances,Adoption Allowances
Cambridgeshire County Council,03-Jul-23,51302016370,736.00,Redacted Personal Data,FOSTER PARENT,Fostering,FCP allowances,Adoption Allowances
Cambridgeshire County Council,03-Jul-23,51302016203,736.00,Redacted Personal Data,FOSTER PARENT,Fostering,FCP allowances,Adoption Allowances
Cambridgeshire County Council,03-Jul-23,51302016465,736.00,Redacted Personal Data,FOSTER PARENT,Fostering,FCP allowances,Adoption Allowances
Cambridgeshire County Council,03-Jul-23,51302016472,736.00,Redacted Personal Data,FOSTER PARENT,Fostering,FCP allowances,Adoption Allowances
Cambridgeshire County Council,03-Jul-23,51302016253,736.00,Redacted Personal Data,FOSTER PARENT,Fostering,FCP allowances,Adoption Allowances
Cambridgeshire County Council,03-Jul-23,51302016266,736.00,Redacted Personal Data,FOSTER PARENT,Fostering,FCP allowances,Adoption Allowances
Cambridgeshire County Council,03-Jul-23,51302016333,736.00,Redacted Personal Data,FOSTER PARENT,Fostering,FCP allowances,Adoption Allowances
Cambridgeshire County Council,03-Jul-23,51302016335,736.00,Redacted Personal Data,FOSTER PARENT,Fostering,FCP allowances,Adoption Allowances
Cambridgeshire County Council,03-Jul-23,51302016157,736.00,Redacted Personal Data,FOSTER PARENT,Fostering,FCP allowances,Adoption Allowances
Cambridgeshire County Council,03-Jul-23,51302016527,736.00,Redacted Personal Data,FOSTER PARENT,Fostering,FCP allowances,Adoption Allowances
Cambridgeshire County Council,03-Jul-23,51302016168,736.00,Redacted Personal Data,FOSTER PARENT,Fostering,FCP allowances,Adoption Allowances
Cambridgeshire County Council,03-Jul-23,51302016170,736.00,Redacted Personal Data,FOSTER PARENT,Fostering,FCP allowances,Adoption Allowances
Cambridgeshire County Council,03-Jul-23,51302016508,736.00,Redacted Personal Data,INDIVIDUAL,Fostering,FCP allowances,Adoption Allowances
Cambridgeshire County Council,03-Jul-23,51302015496,736.80,LITTLE CATERPILLARS,NURSERY,Nursery Schools,Early Years - Funded 3s/4s,Care & Ed Childcare Settings
Cambridgeshire County Council,03-Jul-23,51302015948,739.94,Redacted Personal Data,FOSTER PARENT,Adoption Allowances,Adoption Allowances,Adoption Allowances
Cambridgeshire County Council,03-Jul-23,51302016573,743.96,SPRINGFIELD RESIDENTIAL CARE,CARE ESTABLISHMENT,OPPD - Cost of Care - Fenland Blocks,Fenland - Short term blocks,Rehabilitation And Respite Care
Cambridgeshire County Council,03-Jul-23,51302016573,743.96,SPRINGFIELD RESIDENTIAL CARE,CARE ESTABLISHMENT,OPPD - Cost of Care - Fenland Blocks,Fenland - Short term blocks,Rehabilitation And Respite Care
Cambridgeshire County Council,03-Jul-23,51302016573,743.96,SPRINGFIELD RESIDENTIAL CARE,CARE ESTABLISHMENT,OPPD - Cost of Care - Fenland Blocks,Fenland - Short term blocks,Rehabilitation And Respite Care
Cambridgeshire County Council,03-Jul-23,51302016573,743.96,SPRINGFIELD RESIDENTIAL CARE,CARE ESTABLISHMENT,OPPD - Cost of Care - Fenland Blocks,Fenland - Short term blocks,Rehabilitation And Respite Care
Cambridgeshire County Council,03-Jul-23,51302015952,748.14,Redacted Personal Data,PARENT/GUARDIAN,Adoption Allowances,Adoption Allowances,Adoption Allowances
Cambridgeshire County Council,03-Jul-23,51302015740,750.00,Redacted Personal Data,INDIVIDUAL,Adoption Allowances,Adoption Allowances,Adoption Allowances
Cambridgeshire County Council,03-Jul-23,51302015741,750.00,Redacted Personal Data,INDIVIDUAL,Adoption Allowances,Adoption Allowances,Adoption Allowances
Cambridgeshire County Council,03-Jul-23,51302013727,750.00,SAMANTHA MASTERS,TRADE SUPPLIER,Libraries - Development,Library Development Team,Professional Fees and Hired Services
Cambridgeshire County Council,03-Jul-23,51302010379,750.00,Bouncy Castle Hire Ltd,COMPANY,Childrens Participation,Childrens Participation,Casual hire of facilities
Cambridgeshire County Council,03-Jul-23,51302016585,754.60,Maven Healthcare,CARE ESTABLISHMENT,OPPD - Cost of Care - City South Blocks,City and South - Long term blocks,Nursing Care
Cambridgeshire County Council,03-Jul-23,51302016585,754.60,Maven Healthcare,CARE ESTABLISHMENT,OPPD - Cost of Care - City South Blocks,City and South - Long term blocks,Nursing Care
Cambridgeshire County Council,03-Jul-23,51302016585,754.60,Maven Healthcare,CARE ESTABLISHMENT,OPPD - Cost of Care - City South Blocks,City and South - Long term blocks,Nursing Care
Cambridgeshire County Council,03-Jul-23,51302016585,754.60,Maven Healthcare,CARE ESTABLISHMENT,OPPD - Cost of Care - City South Blocks,City and South - Long term blocks,Nursing Care
Cambridgeshire County Council,03-Jul-23,51302016576,763.18,HARDWICK DENE,CARE ESTABLISHMENT,OPPD - Cost of Care - Huntingdon Blocks,Hunts - Short term blocks,Rehabilitation And Respite Care
Cambridgeshire County Council,03-Jul-23,51302016576,763.18,HARDWICK DENE,CARE ESTABLISHMENT,OPPD - Cost of Care - Huntingdon Blocks,Hunts - Short term blocks,Rehabilitation And Respite Care
Cambridgeshire County Council,03-Jul-23,51302016576,763.18,HARDWICK DENE,CARE ESTABLISHMENT,OPPD - Cost of Care - Huntingdon Blocks,Hunts - Short term blocks,Rehabilitation And Respite Care
Cambridgeshire County Council,03-Jul-23,51302016576,763.18,HARDWICK DENE,CARE ESTABLISHMENT,OPPD - Cost of Care - Huntingdon Blocks,Hunts - Short term blocks,Rehabilitation And Respite Care
Cambridgeshire County Council,03-Jul-23,51302016572,763.18,FLORENCE HOUSE(RAMSEY) RESIDENTIAL HOME FOR THE ELDERLY,CARE ESTABLISHMENT,OPPD - Cost of Care - Huntingdon Blocks,Hunts - Short term blocks,Rehabilitation And Respite Care
Cambridgeshire County Council,03-Jul-23,51302016572,763.18,FLORENCE HOUSE(RAMSEY) RESIDENTIAL HOME FOR THE ELDERLY,CARE ESTABLISHMENT,OPPD - Cost of Care - Huntingdon Blocks,Hunts - Short term blocks,Rehabilitation And Respite Care
Cambridgeshire County Council,03-Jul-23,51302016572,763.18,FLORENCE HOUSE(RAMSEY) RESIDENTIAL HOME FOR THE ELDERLY,CARE ESTABLISHMENT,OPPD - Cost of Care - Huntingdon Blocks,Hunts - Short term blocks,Rehabilitation And Respite Care
Cambridgeshire County Council,03-Jul-23,51302016572,763.18,FLORENCE HOUSE(RAMSEY) RESIDENTIAL HOME FOR THE ELDERLY,CARE ESTABLISHMENT,OPPD - Cost of Care - Huntingdon Blocks,Hunts - Short term blocks,Rehabilitation And Respite Care
Cambridgeshire County Council,03-Jul-23,51302015408,780.00,ALANS TAXI LTD,TRADE SUPPLIER,LD - Young Adults Team,LD - Young Adults - Care,Social Care Transport
Cambridgeshire County Council,03-Jul-23,51302016093,781.00,Redacted Personal Data,FOSTER PARENT,Adoption Allowances,Adoption Allowances,Adoption Allowances
Cambridgeshire County Council,03-Jul-23,51302016552,784.74,POTTON VIEW,CARE ESTABLISHMENT,OPPD - Cost of Care - City South Blocks,City and South - Short term blocks,Rehabilitation And Respite Care
Cambridgeshire County Council,03-Jul-23,51302016552,784.74,POTTON VIEW,CARE ESTABLISHMENT,OPPD - Cost of Care - City South Blocks,City and South - Short term blocks,Rehabilitation And Respite Care
Cambridgeshire County Council,03-Jul-23,51302016552,784.74,POTTON VIEW,CARE ESTABLISHMENT,OPPD - Cost of Care - City South Blocks,City and South - Short term blocks,Rehabilitation And Respite Care
Cambridgeshire County Council,03-Jul-23,51302016552,784.74,POTTON VIEW,CARE ESTABLISHMENT,OPPD - Cost of Care - City South Blocks,City and South - Short term blocks,Rehabilitation And Respite Care
Cambridgeshire County Council,03-Jul-23,51302014704,787.47,REED SPECIALIST RECRUITMENT LTD,TRADE SUPPLIER,Community Support Service,Community Support Service ECF,Grants to Voluntary Bodies
Cambridgeshire County Council,03-Jul-23,51302015331,793.60,ADAMS CABS,TRADE SUPPLIER,LD - South Locality - Cost of Care,LD - South Cambs - Care,Social Care Transport
Cambridgeshire County Council,03-Jul-23,51302015330,793.60,ADAMS CABS,TRADE SUPPLIER,LD - City Locality - Cost of Care,LD - City - Care,Social Care Transport
Cambridgeshire County Council,03-Jul-23,51302015332,793.61,ADAMS CABS,TRADE SUPPLIER,LD - City Locality - Staffing,LD - City - Staffing,Social Care Transport
Cambridgeshire County Council,03-Jul-23,51302016576,795.52,HARDWICK DENE,CARE ESTABLISHMENT,OPPD - Cost of Care - Huntingdon Blocks,Hunts - Short term blocks,Rehabilitation And Respite Care
Cambridgeshire County Council,03-Jul-23,51302016576,795.52,HARDWICK DENE,CARE ESTABLISHMENT,OPPD - Cost of Care - Huntingdon Blocks,Hunts - Short term blocks,Rehabilitation And Respite Care
Cambridgeshire County Council,03-Jul-23,51302016576,795.52,HARDWICK DENE,CARE ESTABLISHMENT,OPPD - Cost of Care - Huntingdon Blocks,Hunts - Short term blocks,Rehabilitation And Respite Care
Cambridgeshire County Council,03-Jul-23,51302016576,795.52,HARDWICK DENE,CARE ESTABLISHMENT,OPPD - Cost of Care - Huntingdon Blocks,Hunts - Short term blocks,Rehabilitation And Respite Care
Cambridgeshire County Council,03-Jul-23,51302015424,799.20,KHOLYO CARS,TRADE SUPPLIER,LD - East Locality - Cost of Care,LD - East Cambs - Care,Social Care Transport
Cambridgeshire County Council,03-Jul-23,51302016109,800.00,Redacted Personal Data,PARENT/GUARDIAN,Adoption Allowances,Adoption Allowances,Adoption Allowances
Cambridgeshire County Council,03-Jul-23,51302016110,800.00,Redacted Personal Data,PARENT/GUARDIAN,Adoption Allowances,Adoption Allowances,Adoption Allowances
Cambridgeshire County Council,03-Jul-23,51302015988,809.06,Redacted Personal Data,FOSTER PARENT,Adoption Allowances,Adoption Allowances,Adoption Allowances
Cambridgeshire County Council,03-Jul-23,51302016278,815.29,Redacted Personal Data,FOSTER PARENT,Fostering,FCP allowances,Adoption Allowances
Cambridgeshire County Council,03-Jul-23,51302015950,817.70,Redacted Personal Data,FOSTER PARENT,Adoption Allowances,Adoption Allowances,Adoption Allowances
Cambridgeshire County Council,03-Jul-23,51302015375,820.80,J&A Airport Transport Service,TRADE SUPPLIER,LD - South Locality - Cost of Care,LD - South Cambs - Care,Social Care Transport
Cambridgeshire County Council,03-Jul-23,51302015421,820.80,A & B TAXIS LTD,TRADE SUPPLIER,LD - Hunts Locality - Cost of Care,LD - Huntingdonshire - Care,Social Care Transport
Cambridgeshire County Council,03-Jul-23,51302016415,838.00,Redacted Personal Data,INDIVIDUAL,Fostering,FCP allowances,Adoption Allowances
Cambridgeshire County Council,03-Jul-23,51302016242,838.00,Redacted Personal Data,FOSTER PARENT,Fostering,FCP allowances,Adoption Allowances
Cambridgeshire County Council,03-Jul-23,51302016494,838.00,Redacted Personal Data,FOSTER PARENT,Fostering,FCP allowances,Adoption Allowances
Cambridgeshire County Council,03-Jul-23,51302016435,838.00,Redacted Personal Data,PARENT/GUARDIAN,Fostering,FCP allowances,Adoption Allowances
Cambridgeshire County Council,03-Jul-23,51302016255,838.00,Redacted Personal Data,FOSTER PARENT,Fostering,FCP allowances,Adoption Allowances
Cambridgeshire County Council,03-Jul-23,51302016280,838.00,Redacted Personal Data,FOSTER PARENT,Fostering,FCP allowances,Adoption Allowances
Cambridgeshire County Council,03-Jul-23,51302016500,838.00,Redacted Personal Data,FOSTER PARENT,Fostering,FCP allowances,Adoption Allowances
Cambridgeshire County Council,03-Jul-23,51302016251,838.00,Redacted Personal Data,FOSTER PARENT,Fostering,FCP allowances,Adoption Allowances
Cambridgeshire County Council,03-Jul-23,51302016233,838.00,Redacted Personal Data,FOSTER PARENT,Fostering,FCP allowances,Adoption Allowances
Cambridgeshire County Council,03-Jul-23,51302016210,838.00,Redacted Personal Data,FOSTER PARENT,Fostering,FCP allowances,Adoption Allowances
Cambridgeshire County Council,03-Jul-23,51302016212,838.00,Redacted Personal Data,FOSTER PARENT,Fostering,FCP allowances,Adoption Allowances
Cambridgeshire County Council,03-Jul-23,51302016161,838.00,Redacted Personal Data,FOSTER PARENT,Fostering,FCP allowances,Adoption Allowances
Cambridgeshire County Council,03-Jul-23,51302016386,838.00,Redacted Personal Data,PARENT/GUARDIAN,Fostering,FCP allowances,Adoption Allowances
Cambridgeshire County Council,03-Jul-23,51302016507,838.00,Redacted Personal Data,INDIVIDUAL,Fostering,FCP allowances,Adoption Allowances
Cambridgeshire County Council,03-Jul-23,51302016360,838.00,Redacted Personal Data,FOSTER PARENT,Fostering,FCP allowances,Adoption Allowances
Cambridgeshire County Council,03-Jul-23,51302016362,838.00,Redacted Personal Data,FOSTER PARENT,Fostering,FCP allowances,Adoption Allowances
Cambridgeshire County Council,03-Jul-23,51302016486,838.00,Redacted Personal Data,FOSTER PARENT,Fostering,FCP allowances,Adoption Allowances
Cambridgeshire County Council,03-Jul-23,51302015340,840.00,TOWN TAXI,TRADE SUPPLIER,LD - Hunts Locality - Cost of Care,LD - Huntingdonshire - Care,Social Care Transport
Cambridgeshire County Council,03-Jul-23,51302015380,851.40,Cambridge and Huntingdon Airport Travel Service,COMPANY,LD - City Locality - Staffing,LD - City - Staffing,Social Care Transport
Cambridgeshire County Council,03-Jul-23,51301989615,870.00,Pathfinder Legal Services Limited,TRADE SUPPLIER,PH Smoking Cessation GP & Pharmacy,Stop Smoking Service & Intervention -  Misc Interventions,External Legal Fees
Cambridgeshire County Council,03-Jul-23,51302016423,878.00,Redacted Personal Data,FOSTER PARENT,Fostering,FCP allowances,Adoption Allowances
Cambridgeshire County Council,03-Jul-23,51302016421,878.00,Redacted Personal Data,FOSTER PARENT,Fostering,FCP allowances,Adoption Allowances
Cambridgeshire County Council,03-Jul-23,51302016433,878.00,Redacted Personal Data,PARENT/GUARDIAN,Fostering,FCP allowances,Adoption Allowances
Cambridgeshire County Council,03-Jul-23,51302016315,878.00,Redacted Personal Data,PARENT/GUARDIAN,Fostering,FCP allowances,Adoption Allowances
Cambridgeshire County Council,03-Jul-23,51302016317,878.00,Redacted Personal Data,PARENT/GUARDIAN,Fostering,FCP allowances,Adoption Allowances
Cambridgeshire County Council,03-Jul-23,51302016205,878.00,Redacted Personal Data,PARENT/GUARDIAN,Fostering,FCP allowances,Adoption Allowances
Cambridgeshire County Council,03-Jul-23,51302016294,878.00,Redacted Personal Data,FOSTER PARENT,Fostering,FCP allowances,Adoption Allowances
Cambridgeshire County Council,03-Jul-23,51302016296,878.00,Redacted Personal Data,FOSTER PARENT,Fostering,FCP allowances,Adoption Allowances
Cambridgeshire County Council,03-Jul-23,51302016521,878.00,Redacted Personal Data,PARENT/GUARDIAN,Fostering,FCP allowances,Adoption Allowances
Cambridgeshire County Council,03-Jul-23,51302016348,878.00,Redacted Personal Data,FOSTER PARENT,Fostering,FCP allowances,Adoption Allowances
Cambridgeshire County Council,03-Jul-23,51302016519,878.00,Redacted Personal Data,PARENT/GUARDIAN,Fostering,FCP allowances,Adoption Allowances
Cambridgeshire County Council,03-Jul-23,51302016396,878.00,Redacted Personal Data,FOSTER PARENT,Fostering,FCP allowances,Adoption Allowances
Cambridgeshire County Council,03-Jul-23,51302016399,878.00,Redacted Personal Data,FOSTER PARENT,Fostering,FCP allowances,Adoption Allowances
Cambridgeshire County Council,03-Jul-23,51302016401,878.00,Redacted Personal Data,FOSTER PARENT,Fostering,FCP allowances,Adoption Allowances
Cambridgeshire County Council,03-Jul-23,51302016458,878.00,Redacted Personal Data,FOSTER PARENT,Fostering,FCP allowances,Adoption Allowances
Cambridgeshire County Council,03-Jul-23,51302016375,878.00,Redacted Personal Data,FOSTER PARENT,Fostering,FCP allowances,Adoption Allowances
Cambridgeshire County Council,03-Jul-23,51302016450,878.00,Redacted Personal Data,FOSTER PARENT,Fostering,FCP allowances,Adoption Allowances
Cambridgeshire County Council,03-Jul-23,51302016352,878.00,Redacted Personal Data,FOSTER PARENT,Fostering,FCP allowances,Adoption Allowances
Cambridgeshire County Council,03-Jul-23,51302016354,878.00,Redacted Personal Data,FOSTER PARENT,Fostering,FCP allowances,Adoption Allowances
Cambridgeshire County Council,03-Jul-23,51302016460,878.00,Redacted Personal Data,FOSTER PARENT,Fostering,FCP allowances,Adoption Allowances
Cambridgeshire County Council,03-Jul-23,51302016344,878.00,Redacted Personal Data,FOSTER PARENT,Fostering,FCP allowances,Adoption Allowances
Cambridgeshire County Council,03-Jul-23,51302016523,878.00,Redacted Personal Data,PARENT/GUARDIAN,Fostering,FCP allowances,Adoption Allowances
Cambridgeshire County Council,03-Jul-23,51302016446,878.00,Redacted Personal Data,FOSTER PARENT,Fostering,FCP allowances,Adoption Allowances
Cambridgeshire County Council,03-Jul-23,51302016192,878.00,Redacted Personal Data,FOSTER PARENT,Fostering,FCP allowances,Adoption Allowances
Cambridgeshire County Council,03-Jul-23,51302016195,878.00,Redacted Personal Data,FOSTER PARENT,Fostering,FCP allowances,Adoption Allowances
Cambridgeshire County Council,03-Jul-23,51302016238,878.00,Redacted Personal Data,FOSTER PARENT,Fostering,FCP allowances,Adoption Allowances
Cambridgeshire County Council,03-Jul-23,51302016479,878.00,Redacted Personal Data,PARENT/GUARDIAN,Fostering,FCP allowances,Adoption Allowances
Cambridgeshire County Council,03-Jul-23,51302016197,878.00,Redacted Personal Data,PARENT/GUARDIAN,Fostering,FCP allowances,Childrens Lodgings
Cambridgeshire County Council,03-Jul-23,51302016365,878.00,Redacted Personal Data,FOSTER PARENT,Fostering,FCP allowances,Adoption Allowances
Cambridgeshire County Council,03-Jul-23,51302016502,878.00,Redacted Personal Data,FOSTER PARENT,Fostering,FCP allowances,Adoption Allowances
Cambridgeshire County Council,03-Jul-23,51302016498,878.00,Redacted Personal Data,FOSTER PARENT,Fostering,FCP allowances,Adoption Allowances
Cambridgeshire County Council,03-Jul-23,51302016264,878.00,Redacted Personal Data,FOSTER PARENT,Fostering,FCP allowances,Adoption Allowances
Cambridgeshire County Council,03-Jul-23,51302016474,878.00,Redacted Personal Data,FOSTER PARENT,Fostering,FCP allowances,Adoption Allowances
Cambridgeshire County Council,03-Jul-23,51302016229,878.00,Redacted Personal Data,FOSTER PARENT,Fostering,FCP allowances,Adoption Allowances
Cambridgeshire County Council,03-Jul-23,51302016409,878.00,Redacted Personal Data,FOSTER PARENT,Fostering,FCP allowances,Childrens Lodgings
Cambridgeshire County Council,03-Jul-23,51302016257,878.00,Redacted Personal Data,FOSTER PARENT,Fostering,FCP allowances,Adoption Allowances
Cambridgeshire County Council,03-Jul-23,51302016259,878.00,Redacted Personal Data,FOSTER PARENT,Fostering,FCP allowances,Adoption Allowances
Cambridgeshire County Council,03-Jul-23,51302016132,878.00,Redacted Personal Data,INDIVIDUAL,Fostering,FCP allowances,Adoption Allowances
Cambridgeshire County Council,03-Jul-23,51302016403,878.00,Redacted Personal Data,FOSTER PARENT,Fostering,FCP allowances,Adoption Allowances
Cambridgeshire County Council,03-Jul-23,51302016405,878.00,Redacted Personal Data,FOSTER PARENT,Fostering,FCP allowances,Adoption Allowances
Cambridgeshire County Council,03-Jul-23,51302016384,878.00,Redacted Personal Data,FOSTER PARENT,Fostering,FCP allowances,Adoption Allowances
Cambridgeshire County Council,03-Jul-23,51302016382,878.00,Redacted Personal Data,FOSTER PARENT,Fostering,FCP allowances,Adoption Allowances
Cambridgeshire County Council,03-Jul-23,51302016216,878.00,Redacted Personal Data,FOSTER PARENT,Fostering,FCP allowances,Adoption Allowances
Cambridgeshire County Council,03-Jul-23,51302016218,878.00,Redacted Personal Data,FOSTER PARENT,Fostering,FCP allowances,Adoption Allowances
Cambridgeshire County Council,03-Jul-23,51302016407,878.00,Redacted Personal Data,PARENT/GUARDIAN,Fostering,FCP allowances,Adoption Allowances
Cambridgeshire County Council,03-Jul-23,51302016159,878.00,Redacted Personal Data,FOSTER PARENT,Fostering,FCP allowances,Adoption Allowances
Cambridgeshire County Council,03-Jul-23,51302016155,878.00,Redacted Personal Data,FOSTER PARENT,Fostering,FCP allowances,Adoption Allowances
Cambridgeshire County Council,03-Jul-23,51302016208,878.00,Redacted Personal Data,FOSTER PARENT,Fostering,FCP allowances,Adoption Allowances
Cambridgeshire County Council,03-Jul-23,51302016298,878.00,Redacted Personal Data,FOSTER PARENT,Fostering,FCP allowances,Adoption Allowances
Cambridgeshire County Council,03-Jul-23,51302016455,878.00,Redacted Personal Data,FOSTER PARENT,Fostering,FCP allowances,Adoption Allowances
Cambridgeshire County Council,03-Jul-23,51302016166,878.00,Redacted Personal Data,FOSTER PARENT,Fostering,FCP allowances,Adoption Allowances
Cambridgeshire County Council,03-Jul-23,51302016319,878.00,Redacted Personal Data,FOSTER PARENT,Fostering,FCP allowances,Adoption Allowances
Cambridgeshire County Council,03-Jul-23,51302016439,878.00,Redacted Personal Data,FOSTER PARENT,Fostering,FCP allowances,Adoption Allowances
Cambridgeshire County Council,03-Jul-23,51302016441,878.00,Redacted Personal Data,FOSTER PARENT,Fostering,FCP allowances,Adoption Allowances
Cambridgeshire County Council,03-Jul-23,51302016358,878.00,Redacted Personal Data,FOSTER PARENT,Fostering,FCP allowances,Adoption Allowances
Cambridgeshire County Council,03-Jul-23,51302016321,878.00,Redacted Personal Data,FOSTER PARENT,Fostering,FCP allowances,Adoption Allowances
Cambridgeshire County Council,03-Jul-23,51302016342,878.00,Redacted Personal Data,FOSTER PARENT,Fostering,FCP allowances,Adoption Allowances
Cambridgeshire County Council,03-Jul-23,51302016390,878.00,Redacted Personal Data,FOSTER PARENT,Fostering,FCP allowances,Adoption Allowances
Cambridgeshire County Council,03-Jul-23,51302016482,878.00,Redacted Personal Data,FOSTER PARENT,Fostering,FCP allowances,Adoption Allowances
Cambridgeshire County Council,03-Jul-23,51302016484,878.00,Redacted Personal Data,FOSTER PARENT,Fostering,FCP allowances,Adoption Allowances
Cambridgeshire County Council,03-Jul-23,51302016368,878.00,Redacted Personal Data,FOSTER PARENT,Fostering,FCP allowances,Adoption Allowances
Cambridgeshire County Council,03-Jul-23,51302016240,878.00,Redacted Personal Data,FOSTER PARENT,Unaccompanied Asylum Seeking Children,Separated Migrant Children < 18,Adoption Allowances
Cambridgeshire County Council,03-Jul-23,51302016231,878.00,Redacted Personal Data,FOSTER PARENT,Unaccompanied Asylum Seeking Children,Separated Migrant Children < 18,Adoption Allowances
Cambridgeshire County Council,03-Jul-23,51302015359,891.86,STAR CABS LTD,TRADE SUPPLIER,LD - City Locality - Cost of Care,LD - City - Care,Social Care Transport
Cambridgeshire County Council,03-Jul-23,51302015429,893.76,T & T PRIVATE HIRE LTD,TRADE SUPPLIER,LAC Transport,LAC Transport - Out of county,Social Care Transport
Cambridgeshire County Council,03-Jul-23,51302002863,900.00,SAMANTHA MASTERS,TRADE SUPPLIER,GCP - Cycling Plus,GCP - Cycling Plus - A1134,Construction - External Professional Fees
Cambridgeshire County Council,03-Jul-23,51302014705,906.12,BEAUMONT HEALTHCARE LTD,CARE ESTABLISHMENT,Community Support Service,Community Support Service ECF,Grants to Voluntary Bodies
Cambridgeshire County Council,03-Jul-23,51302015423,912.00,A & B TAXIS LTD,TRADE SUPPLIER,LD - Hunts Locality - Cost of Care,LD - Huntingdonshire - Care,Social Care Transport
Cambridgeshire County Council,03-Jul-23,51302015559,914.96,Redacted Personal Data,FOSTER PARENT,Adoption Allowances,Adoption Allowances,Adoption Allowances
Cambridgeshire County Council,03-Jul-23,51302002524,940.80,FELGAINS CARE & MOBILITY,CARE ESTABLISHMENT,Enhanced Response Service,Enhanced Response Service,Specialist Equipment For Service Delivery
Cambridgeshire County Council,03-Jul-23,51302016585,945.41,Maven Healthcare,CARE ESTABLISHMENT,OPPD - Cost of Care - City South Blocks,City and South - Long term blocks,Nursing Care
Cambridgeshire County Council,03-Jul-23,51302016585,945.41,Maven Healthcare,CARE ESTABLISHMENT,OPPD - Cost of Care - City South Blocks,City and South - Long term blocks,Nursing Care
Cambridgeshire County Council,03-Jul-23,51302016585,945.41,Maven Healthcare,CARE ESTABLISHMENT,OPPD - Cost of Care - City South Blocks,City and South - Long term blocks,Nursing Care
Cambridgeshire County Council,03-Jul-23,51302016585,945.41,Maven Healthcare,CARE ESTABLISHMENT,OPPD - Cost of Care - City South Blocks,City and South - Long term blocks,Nursing Care
Cambridgeshire County Council,03-Jul-23,51302015342,950.40,Fencabs Ltd,TRADE SUPPLIER,LD - East Locality - Cost of Care,LD - East Cambs - Care,Social Care Transport
Cambridgeshire County Council,03-Jul-23,51302009288,958.50,AG FAMILY SUPPORT LTD,OTHER PUBLIC BODIES,Contact,Contact Relief,Professional Fees and Hired Services
Cambridgeshire County Council,03-Jul-23,51302015953,965.04,Redacted Personal Data,FOSTER PARENT,Fostering,FCP allowances,Enhanced Payments
Cambridgeshire County Council,03-Jul-23,51302015925,965.04,Redacted Personal Data,FOSTER PARENT,Fostering,FCP allowances,Enhanced Payments
Cambridgeshire County Council,03-Jul-23,51302015589,965.04,Redacted Personal Data,FOSTER PARENT,Fostering,FCP allowances,Enhanced Payments
Cambridgeshire County Council,03-Jul-23,51302015208,972.30,MICROSOFT IRELAND OPERATIONS LTD,TRADE SUPPLIER,ICT Service,ICT Service Business Support,Computer software - purchase
Cambridgeshire County Council,03-Jul-23,51302015393,984.00,Cambridge and Huntingdon Airport Travel Service,COMPANY,LAC Transport,LAC Transport -  Short Breaks,Social Care Transport
Cambridgeshire County Council,03-Jul-23,51302015324,"1,020.00",ADAMS CABS,TRADE SUPPLIER,LD - City Locality - Staffing,LD - City - Staffing,Social Care Transport
Cambridgeshire County Council,03-Jul-23,51302015754,"1,026.00",Redacted Personal Data,INDIVIDUAL,Adoption Allowances,Adoption Allowances,Childcare Costs
Cambridgeshire County Council,03-Jul-23,51302002830,"1,050.00",S. P. LANDSCAPES & TREE CONTRACTORS  LTD,COMPANY,Buildings and Capital,Grounds Management Service - Client,Tree Maintenance
Cambridgeshire County Council,03-Jul-23,51302015322,"1,058.40",ADAMS CABS,TRADE SUPPLIER,LD - Young Adults Team,LD - Young Adults - Care,Social Care Transport
Cambridgeshire County Council,03-Jul-23,51302015403,"1,066.38",Cambridge and Huntingdon Airport Travel Service,COMPANY,LAC Transport,LAC Transport - Home to School,Social Care Transport
Cambridgeshire County Council,03-Jul-23,51302002879,"1,074.00",S. P. LANDSCAPES & TREE CONTRACTORS  LTD,COMPANY,Buildings and Capital,Grounds Management Service - Client,Tree Maintenance
Cambridgeshire County Council,03-Jul-23,51302015521,"1,075.00",Redacted Personal Data,INDIVIDUAL,Home to School Transport - Special,Home to School Transport Special - Special School,Contribution To Transport Related Provisions
Cambridgeshire County Council,03-Jul-23,51302007582,"1,080.00",YOUNG PEOPLE MARCH LTD,LOCAL CLUBS & GROUPS,Out of School Tuition,Out of School Provision EHCPs,Independent School Placements
Cambridgeshire County Council,03-Jul-23,51302013260,"1,123.21",BOTTISHAM PARISH COUNCIL,OTHER PUBLIC BODIES,Highways Maintenance,Highways Maintenance - Works,Village Maintenance
Cambridgeshire County Council,03-Jul-23,51302016005,"1,132.18",Redacted Personal Data,FOSTER PARENT,Adoption Allowances,Adoption Allowances,Adoption Allowances
Cambridgeshire County Council,03-Jul-23,51302015404,"1,133.58",Cambridge and Huntingdon Airport Travel Service,COMPANY,LAC Transport,LAC Transport  - Contact Visits,Social Care Transport
Cambridgeshire County Council,03-Jul-23,51302016542,"1,134.52",FORD HOUSE CARE HOME,CARE ESTABLISHMENT,OPPD - Cost of Care - Huntingdon - Over 65,Hunts OP Team - Care,Nursing Care
Cambridgeshire County Council,03-Jul-23,51302016542,"1,134.52",FORD HOUSE CARE HOME,CARE ESTABLISHMENT,OPPD - Cost of Care - Huntingdon - Over 65,Hunts OP Team - Care,Nursing Care
Cambridgeshire County Council,03-Jul-23,51302016542,"1,134.52",FORD HOUSE CARE HOME,CARE ESTABLISHMENT,OPPD - Cost of Care - Huntingdon - Over 65,Hunts OP Team - Care,Nursing Care
Cambridgeshire County Council,03-Jul-23,51302016542,"1,134.52",FORD HOUSE CARE HOME,CARE ESTABLISHMENT,OPPD - Cost of Care - Huntingdon - Over 65,Hunts OP Team - Care,Nursing Care
Cambridgeshire County Council,03-Jul-23,51302016599,"1,147.54",Beaumont HEALTHCARE LTD,CARE ESTABLISHMENT,Commissioning - Dom Cars,East Cambs - Dom Blocks,Domiciliary Care
Cambridgeshire County Council,03-Jul-23,51302016599,"1,147.54",Beaumont HEALTHCARE LTD,CARE ESTABLISHMENT,Commissioning - Dom Cars,East Cambs - Dom Blocks,Domiciliary Care
Cambridgeshire County Council,03-Jul-23,51302016599,"1,147.54",Beaumont HEALTHCARE LTD,CARE ESTABLISHMENT,Commissioning - Dom Cars,East Cambs - Dom Blocks,Domiciliary Care
Cambridgeshire County Council,03-Jul-23,51302016599,"1,147.54",Beaumont HEALTHCARE LTD,CARE ESTABLISHMENT,Commissioning - Dom Cars,East Cambs - Dom Blocks,Domiciliary Care
Cambridgeshire County Council,03-Jul-23,51302016599,"1,147.54",Beaumont HEALTHCARE LTD,CARE ESTABLISHMENT,Commissioning - Dom Cars,East Cambs - Dom Blocks,Domiciliary Care
Cambridgeshire County Council,03-Jul-23,51302016599,"1,147.54",Beaumont HEALTHCARE LTD,CARE ESTABLISHMENT,Commissioning - Dom Cars,East Cambs - Dom Blocks,Domiciliary Care
Cambridgeshire County Council,03-Jul-23,51302015784,"1,148.00",Redacted Personal Data,INDIVIDUAL,Adoption Allowances,Adoption Allowances,Adoption Allowances
Cambridgeshire County Council,03-Jul-23,51302015755,"1,170.00",Redacted Personal Data,INDIVIDUAL,Adoption Allowances,Adoption Allowances,Adoption Allowances
Cambridgeshire County Council,03-Jul-23,51302015328,"1,176.00",ADAMS CABS,TRADE SUPPLIER,LD - South Locality - Cost of Care,LD - South Cambs - Care,Social Care Transport
Cambridgeshire County Council,03-Jul-23,51302013160,"1,199.67",BASSINGBOURN CUM KNEESWORTH PARISH COUNCIL,OTHER PUBLIC BODIES,Highways Maintenance,Highways Maintenance - Works,Village Maintenance
Cambridgeshire County Council,03-Jul-23,51302010740,"1,200.00",EAQ,EDUCATION,Out of School Tuition,Out of School Provision EHCPs,Independent School Placements
Cambridgeshire County Council,03-Jul-23,51302002612,"1,217.50",B&H Digital Print,COMPANY,Road Safety,"Education, Training and Publicity",Educational Materials
Cambridgeshire County Council,03-Jul-23,51302013227,"1,217.99",DODDINGTON PARISH COUNCIL,OTHER PUBLIC BODIES,Highways Maintenance,Highways Maintenance - Works,Village Maintenance
Cambridgeshire County Council,03-Jul-23,51302015426,"1,248.00",KHOLYO CARS,TRADE SUPPLIER,LAC Transport,LAC Transport - Home to School,Social Care Transport
Cambridgeshire County Council,03-Jul-23,51302015384,"1,250.76",Cambridge and Huntingdon Airport Travel Service,COMPANY,LD - South Locality - Cost of Care,LD - South Cambs - Care,Social Care Transport
Cambridgeshire County Council,03-Jul-23,51302015437,"1,274.90",T & T PRIVATE HIRE LTD,TRADE SUPPLIER,LAC Transport,LAC Transport -  Short Breaks,Social Care Transport
Cambridgeshire County Council,03-Jul-23,51302015533,"1,275.00",PCH Integration Services Ltd.,CARE ESTABLISHMENT,Unaccompanied Asylum Seeking Children,Separated Migrant Children < 18,Asylum Seekers
Cambridgeshire County Council,03-Jul-23,51302015187,"1,279.63",OverDrive Global Limited,COMPANY,Libraries - Stock & Distribution,Support - Stock & Distribution,Books and Multimedia Supplies
Cambridgeshire County Council,03-Jul-23,51302015397,"1,293.60",Cambridge and Huntingdon Airport Travel Service,COMPANY,LD - Young Adults Team,LD - Young Adults - Care,Social Care Transport
Cambridgeshire County Council,03-Jul-23,51302015399,"1,293.60",Cambridge and Huntingdon Airport Travel Service,COMPANY,LAC Transport,LAC Transport - Out of county,Social Care Transport
Cambridgeshire County Council,03-Jul-23,51302015351,"1,296.00",Street Cars (Cambs) LTD,COMPANY,LAC Transport,LAC Transport - Home to School,Social Care Transport
Cambridgeshire County Council,03-Jul-23,51302008271,"1,320.00",Provident Recruitment Ltd T/A Psychology People,COMPANY,SEND Specialist Services - Education Psychology,SEND Specialist Services - Education Psychology,Professional Fees and Hired Services
Cambridgeshire County Council,03-Jul-23,51302015309,"1,334.00",SARAH LEE & CO,TRADE SUPPLIER,GCP - Cycling Plus,GCP - Cycling Plus - A1134,Construction - External Professional Fees
Cambridgeshire County Council,03-Jul-23,51302015382,"1,357.20",Cambridge and Huntingdon Airport Travel Service,COMPANY,LD - South Locality - Cost of Care,LD - South Cambs - Care,Social Care Transport
Cambridgeshire County Council,03-Jul-23,51302014716,"1,400.00",GRANTA SCHOOL,EDUCATION,Disability Clubs,CamPlay Holiday Clubs,Casual hire of facilities
Cambridgeshire County Council,03-Jul-23,51302010731,"1,440.00",EAQ,EDUCATION,Out of School Tuition,Out of School Provision EHCPs,Independent School Placements
Cambridgeshire County Council,03-Jul-23,51302014696,"1,459.86",BEAUMONT HEALTHCARE LTD,CARE ESTABLISHMENT,Community Support Service,Community Support Service ECF,Grants to Voluntary Bodies
Cambridgeshire County Council,03-Jul-23,51302015498,"1,465.13",MEADOW LANE CHILDREN'S NURSEY,NURSERY,Nursery Schools,Early Years - Funded 3s/4s,Care & Ed Childcare Settings
Cambridgeshire County Council,03-Jul-23,51302015492,"1,465.13",BUSY BEE DAY NURSERY,NURSERY,Nursery Schools,Early Years - Funded 3s/4s,Care & Ed Childcare Settings
Cambridgeshire County Council,03-Jul-23,51302016572,"1,466.08",FLORENCE HOUSE(RAMSEY) RESIDENTIAL HOME FOR THE ELDERLY,CARE ESTABLISHMENT,OPPD - Cost of Care - Huntingdon Blocks,Hunts - Short term blocks,Rehabilitation And Respite Care
Cambridgeshire County Council,03-Jul-23,51302016572,"1,466.08",FLORENCE HOUSE(RAMSEY) RESIDENTIAL HOME FOR THE ELDERLY,CARE ESTABLISHMENT,OPPD - Cost of Care - Huntingdon Blocks,Hunts - Short term blocks,Rehabilitation And Respite Care
Cambridgeshire County Council,03-Jul-23,51302016572,"1,466.08",FLORENCE HOUSE(RAMSEY) RESIDENTIAL HOME FOR THE ELDERLY,CARE ESTABLISHMENT,OPPD - Cost of Care - Huntingdon Blocks,Hunts - Short term blocks,Rehabilitation And Respite Care
Cambridgeshire County Council,03-Jul-23,51302016572,"1,466.08",FLORENCE HOUSE(RAMSEY) RESIDENTIAL HOME FOR THE ELDERLY,CARE ESTABLISHMENT,OPPD - Cost of Care - Huntingdon Blocks,Hunts - Short term blocks,Rehabilitation And Respite Care
Cambridgeshire County Council,03-Jul-23,51302016584,"1,466.08",AISLING LODGE (MD CARE HOMES),CARE ESTABLISHMENT,OPPD - Cost of Care - Huntingdon Blocks,Hunts - Long term blocks,Residential Care
Cambridgeshire County Council,03-Jul-23,51302016584,"1,466.08",AISLING LODGE (MD CARE HOMES),CARE ESTABLISHMENT,OPPD - Cost of Care - Huntingdon Blocks,Hunts - Long term blocks,Residential Care
Cambridgeshire County Council,03-Jul-23,51302016584,"1,466.08",AISLING LODGE (MD CARE HOMES),CARE ESTABLISHMENT,OPPD - Cost of Care - Huntingdon Blocks,Hunts - Long term blocks,Residential Care
Cambridgeshire County Council,03-Jul-23,51302016584,"1,466.08",AISLING LODGE (MD CARE HOMES),CARE ESTABLISHMENT,OPPD - Cost of Care - Huntingdon Blocks,Hunts - Long term blocks,Residential Care
Cambridgeshire County Council,03-Jul-23,51302009161,"1,485.00",Innovate Media Ltd,COMPANY,Fostering Recruitment & Assessment Team,Fostering Recruitment & Assessment Team,Advertising / Publicity (non Recruitment)
Cambridgeshire County Council,03-Jul-23,51302012113,"1,486.66",The Oyster Partnership Limited,COMPANY,Waste Disposal incl PFI,Waste PFI,Agency Staff
Cambridgeshire County Council,03-Jul-23,51302016547,"1,491.96",LANGLEY LODGE RESIDENTIAL CARE HOME,CARE ESTABLISHMENT,OPPD - Cost of Care - Fenland Blocks,Fenland - Long term blocks,Residential Care
Cambridgeshire County Council,03-Jul-23,51302016547,"1,491.96",LANGLEY LODGE RESIDENTIAL CARE HOME,CARE ESTABLISHMENT,OPPD - Cost of Care - Fenland Blocks,Fenland - Long term blocks,Residential Care
Cambridgeshire County Council,03-Jul-23,51302016547,"1,491.96",LANGLEY LODGE RESIDENTIAL CARE HOME,CARE ESTABLISHMENT,OPPD - Cost of Care - Fenland Blocks,Fenland - Long term blocks,Residential Care
Cambridgeshire County Council,03-Jul-23,51302016547,"1,491.96",LANGLEY LODGE RESIDENTIAL CARE HOME,CARE ESTABLISHMENT,OPPD - Cost of Care - Fenland Blocks,Fenland - Long term blocks,Residential Care
Cambridgeshire County Council,03-Jul-23,51302016591,"1,491.96",MM2 Care Homes Ltd t/a The Chestnuts MM2 (Wisbech),COMPANY,OPPD - Cost of Care - Fenland Blocks,Fenland - Long term blocks,Residential Care
Cambridgeshire County Council,03-Jul-23,51302016591,"1,491.96",MM2 Care Homes Ltd t/a The Chestnuts MM2 (Wisbech),COMPANY,OPPD - Cost of Care - Fenland Blocks,Fenland - Long term blocks,Residential Care
Cambridgeshire County Council,03-Jul-23,51302016591,"1,491.96",MM2 Care Homes Ltd t/a The Chestnuts MM2 (Wisbech),COMPANY,OPPD - Cost of Care - Fenland Blocks,Fenland - Long term blocks,Residential Care
Cambridgeshire County Council,03-Jul-23,51302016591,"1,491.96",MM2 Care Homes Ltd t/a The Chestnuts MM2 (Wisbech),COMPANY,OPPD - Cost of Care - Fenland Blocks,Fenland - Long term blocks,Residential Care
Cambridgeshire County Council,03-Jul-23,51302015537,"1,500.00",PCH Integration Services Ltd.,CARE ESTABLISHMENT,Unaccompanied Asylum Seeking Children,Separated Migrant Children < 18,Asylum Seekers
Cambridgeshire County Council,03-Jul-23,51302016563,"1,509.20",THE CAMBRIDGE HOUSING SOCIETY LTD,CARE ESTABLISHMENT,OPPD - Cost of Care - City South Blocks,City and South - Long term blocks,Residential Care
Cambridgeshire County Council,03-Jul-23,51302016563,"1,509.20",THE CAMBRIDGE HOUSING SOCIETY LTD,CARE ESTABLISHMENT,OPPD - Cost of Care - City South Blocks,City and South - Long term blocks,Residential Care
Cambridgeshire County Council,03-Jul-23,51302016563,"1,509.20",THE CAMBRIDGE HOUSING SOCIETY LTD,CARE ESTABLISHMENT,OPPD - Cost of Care - City South Blocks,City and South - Long term blocks,Residential Care
Cambridgeshire County Council,03-Jul-23,51302016563,"1,509.20",THE CAMBRIDGE HOUSING SOCIETY LTD,CARE ESTABLISHMENT,OPPD - Cost of Care - City South Blocks,City and South - Long term blocks,Residential Care
Cambridgeshire County Council,03-Jul-23,51302016566,"1,509.20",THE CAMBRIDGE HOUSING SOCIETY LTD,CARE ESTABLISHMENT,OPPD - Cost of Care - City South Blocks,City and South - Long term blocks,Residential Care
Cambridgeshire County Council,03-Jul-23,51302016566,"1,509.20",THE CAMBRIDGE HOUSING SOCIETY LTD,CARE ESTABLISHMENT,OPPD - Cost of Care - City South Blocks,City and South - Long term blocks,Residential Care
Cambridgeshire County Council,03-Jul-23,51302016566,"1,509.20",THE CAMBRIDGE HOUSING SOCIETY LTD,CARE ESTABLISHMENT,OPPD - Cost of Care - City South Blocks,City and South - Long term blocks,Residential Care
Cambridgeshire County Council,03-Jul-23,51302016566,"1,509.20",THE CAMBRIDGE HOUSING SOCIETY LTD,CARE ESTABLISHMENT,OPPD - Cost of Care - City South Blocks,City and South - Long term blocks,Residential Care
Cambridgeshire County Council,03-Jul-23,51302016567,"1,509.20",ORCHARD HOUSE (SAWSTON),CARE ESTABLISHMENT,OPPD - Cost of Care - City South Blocks,City and South - Long term blocks,Residential Care
Cambridgeshire County Council,03-Jul-23,51302016567,"1,509.20",ORCHARD HOUSE (SAWSTON),CARE ESTABLISHMENT,OPPD - Cost of Care - City South Blocks,City and South - Long term blocks,Residential Care
Cambridgeshire County Council,03-Jul-23,51302016567,"1,509.20",ORCHARD HOUSE (SAWSTON),CARE ESTABLISHMENT,OPPD - Cost of Care - City South Blocks,City and South - Long term blocks,Residential Care
Cambridgeshire County Council,03-Jul-23,51302016567,"1,509.20",ORCHARD HOUSE (SAWSTON),CARE ESTABLISHMENT,OPPD - Cost of Care - City South Blocks,City and South - Long term blocks,Residential Care
Cambridgeshire County Council,03-Jul-23,51302016553,"1,509.20",Southwell Court,CARE ESTABLISHMENT,OPPD - Cost of Care - City South Blocks,City and South - Short term blocks,Rehabilitation And Respite Care
Cambridgeshire County Council,03-Jul-23,51302016553,"1,509.20",Southwell Court,CARE ESTABLISHMENT,OPPD - Cost of Care - City South Blocks,City and South - Short term blocks,Rehabilitation And Respite Care
Cambridgeshire County Council,03-Jul-23,51302016553,"1,509.20",Southwell Court,CARE ESTABLISHMENT,OPPD - Cost of Care - City South Blocks,City and South - Short term blocks,Rehabilitation And Respite Care
Cambridgeshire County Council,03-Jul-23,51302016553,"1,509.20",Southwell Court,CARE ESTABLISHMENT,OPPD - Cost of Care - City South Blocks,City and South - Short term blocks,Rehabilitation And Respite Care
Cambridgeshire County Council,03-Jul-23,51302016552,"1,509.20",POTTON VIEW,CARE ESTABLISHMENT,OPPD - Cost of Care - City South Blocks,City and South - Short term blocks,Rehabilitation And Respite Care
Cambridgeshire County Council,03-Jul-23,51302016552,"1,509.20",POTTON VIEW,CARE ESTABLISHMENT,OPPD - Cost of Care - City South Blocks,City and South - Short term blocks,Rehabilitation And Respite Care
Cambridgeshire County Council,03-Jul-23,51302016552,"1,509.20",POTTON VIEW,CARE ESTABLISHMENT,OPPD - Cost of Care - City South Blocks,City and South - Short term blocks,Rehabilitation And Respite Care
Cambridgeshire County Council,03-Jul-23,51302016552,"1,509.20",POTTON VIEW,CARE ESTABLISHMENT,OPPD - Cost of Care - City South Blocks,City and South - Short term blocks,Rehabilitation And Respite Care
Cambridgeshire County Council,03-Jul-23,51302015352,"1,512.00",Street Cars (Cambs) LTD,COMPANY,LAC Transport,LAC Transport - Home to School,Social Care Transport
Cambridgeshire County Council,03-Jul-23,51302015232,"1,512.09",Redacted Personal Data,INDIVIDUAL,Children's Disability Direct Payments,CSC Direct Payments,Direct Payments
Cambridgeshire County Council,03-Jul-23,51302016596,"1,530.76",Anchor Hanover Group t/a Nelson Lodge,COMPANY,OPPD - Cost of Care - Huntingdon Blocks,Hunts - Long term blocks,Residential Care
Cambridgeshire County Council,03-Jul-23,51302016596,"1,530.76",Anchor Hanover Group t/a Nelson Lodge,COMPANY,OPPD - Cost of Care - Huntingdon Blocks,Hunts - Long term blocks,Residential Care
Cambridgeshire County Council,03-Jul-23,51302016596,"1,530.76",Anchor Hanover Group t/a Nelson Lodge,COMPANY,OPPD - Cost of Care - Huntingdon Blocks,Hunts - Long term blocks,Residential Care
Cambridgeshire County Council,03-Jul-23,51302016596,"1,530.76",Anchor Hanover Group t/a Nelson Lodge,COMPANY,OPPD - Cost of Care - Huntingdon Blocks,Hunts - Long term blocks,Residential Care
Cambridgeshire County Council,03-Jul-23,51302016596,"1,530.76",Anchor Hanover Group t/a Nelson Lodge,COMPANY,OPPD - Cost of Care - Huntingdon Blocks,Hunts - Long term blocks,Residential Care
Cambridgeshire County Council,03-Jul-23,51302016596,"1,530.76",Anchor Hanover Group t/a Nelson Lodge,COMPANY,OPPD - Cost of Care - Huntingdon Blocks,Hunts - Long term blocks,Residential Care
Cambridgeshire County Council,03-Jul-23,51302016596,"1,530.76",Anchor Hanover Group t/a Nelson Lodge,COMPANY,OPPD - Cost of Care - Huntingdon Blocks,Hunts - Long term blocks,Residential Care
Cambridgeshire County Council,03-Jul-23,51302016596,"1,530.76",Anchor Hanover Group t/a Nelson Lodge,COMPANY,OPPD - Cost of Care - Huntingdon Blocks,Hunts - Long term blocks,Residential Care
Cambridgeshire County Council,03-Jul-23,51302016583,"1,530.76",THE HILLINGS LIMITED,CARE ESTABLISHMENT,OPPD - Cost of Care - Huntingdon Blocks,Hunts - Long term blocks,Residential Care
Cambridgeshire County Council,03-Jul-23,51302016583,"1,530.76",THE HILLINGS LIMITED,CARE ESTABLISHMENT,OPPD - Cost of Care - Huntingdon Blocks,Hunts - Long term blocks,Residential Care
Cambridgeshire County Council,03-Jul-23,51302016583,"1,530.76",THE HILLINGS LIMITED,CARE ESTABLISHMENT,OPPD - Cost of Care - Huntingdon Blocks,Hunts - Long term blocks,Residential Care
Cambridgeshire County Council,03-Jul-23,51302016583,"1,530.76",THE HILLINGS LIMITED,CARE ESTABLISHMENT,OPPD - Cost of Care - Huntingdon Blocks,Hunts - Long term blocks,Residential Care
Cambridgeshire County Council,03-Jul-23,51302014583,"1,554.00",TMLEP,OTHER PUBLIC BODIES,Coroners,Coroners General,Court Costs
Cambridgeshire County Council,03-Jul-23,51302009290,"1,560.00",Active Support Education,COMPANY,Virtual School,Virtual School LACPP Financing,Mandatory Student Awards
Cambridgeshire County Council,03-Jul-23,51302007583,"1,560.00",YOUNG PEOPLE MARCH LTD,LOCAL CLUBS & GROUPS,Out of School Tuition,Out of School Provision EHCPs,Independent School Placements
Cambridgeshire County Council,03-Jul-23,51302016553,"1,569.48",Southwell Court,CARE ESTABLISHMENT,OPPD - Cost of Care - City South Blocks,City and South - Short term blocks,Rehabilitation And Respite Care
Cambridgeshire County Council,03-Jul-23,51302016553,"1,569.48",Southwell Court,CARE ESTABLISHMENT,OPPD - Cost of Care - City South Blocks,City and South - Short term blocks,Rehabilitation And Respite Care
Cambridgeshire County Council,03-Jul-23,51302016553,"1,569.48",Southwell Court,CARE ESTABLISHMENT,OPPD - Cost of Care - City South Blocks,City and South - Short term blocks,Rehabilitation And Respite Care
Cambridgeshire County Council,03-Jul-23,51302016553,"1,569.48",Southwell Court,CARE ESTABLISHMENT,OPPD - Cost of Care - City South Blocks,City and South - Short term blocks,Rehabilitation And Respite Care
Cambridgeshire County Council,03-Jul-23,51302016564,"1,573.88",ETHELDRED HOUSE,CARE ESTABLISHMENT,OPPD - Cost of Care - City South Blocks,City and South - Long term blocks,Nursing Care
Cambridgeshire County Council,03-Jul-23,51302016564,"1,573.88",ETHELDRED HOUSE,CARE ESTABLISHMENT,OPPD - Cost of Care - City South Blocks,City and South - Long term blocks,Nursing Care
Cambridgeshire County Council,03-Jul-23,51302016564,"1,573.88",ETHELDRED HOUSE,CARE ESTABLISHMENT,OPPD - Cost of Care - City South Blocks,City and South - Long term blocks,Nursing Care
Cambridgeshire County Council,03-Jul-23,51302016564,"1,573.88",ETHELDRED HOUSE,CARE ESTABLISHMENT,OPPD - Cost of Care - City South Blocks,City and South - Long term blocks,Nursing Care
Cambridgeshire County Council,03-Jul-23,51302016585,"1,573.88",Maven Healthcare,CARE ESTABLISHMENT,OPPD - Cost of Care - City South Blocks,City and South - Long term blocks,Nursing Care
Cambridgeshire County Council,03-Jul-23,51302016585,"1,573.88",Maven Healthcare,CARE ESTABLISHMENT,OPPD - Cost of Care - City South Blocks,City and South - Long term blocks,Nursing Care
Cambridgeshire County Council,03-Jul-23,51302016585,"1,573.88",Maven Healthcare,CARE ESTABLISHMENT,OPPD - Cost of Care - City South Blocks,City and South - Long term blocks,Nursing Care
Cambridgeshire County Council,03-Jul-23,51302016585,"1,573.88",Maven Healthcare,CARE ESTABLISHMENT,OPPD - Cost of Care - City South Blocks,City and South - Long term blocks,Nursing Care
Cambridgeshire County Council,03-Jul-23,51302010739,"1,600.00",EAQ,EDUCATION,Out of School Tuition,Out of School Provision EHCPs,Independent School Placements
Cambridgeshire County Council,03-Jul-23,51302015379,"1,619.16",Cambridge and Huntingdon Airport Travel Service,COMPANY,LD - South Locality - Cost of Care,LD - South Cambs - Care,Social Care Transport
Cambridgeshire County Council,03-Jul-23,51302005515,"1,628.40",BDB PITMANS LLP,TRADE SUPPLIER,GCP - City Centre Access Project,GCP - City Centre Access Project,Construction - External Professional Fees
Cambridgeshire County Council,03-Jul-23,51302007604,"1,748.00",CLANPRESS (KINGS LYNN) LTD,TRADE SUPPLIER,Libraries - Development,Library Development Team,Printing
Cambridgeshire County Council,03-Jul-23,51302010734,"1,760.00",EAQ,EDUCATION,Out of School Tuition,Out of School Provision EHCPs,Independent School Placements
Cambridgeshire County Council,03-Jul-23,51302015439,"1,764.84",T & T PRIVATE HIRE LTD,TRADE SUPPLIER,LAC Transport,LAC Transport -  Short Breaks,Social Care Transport
Cambridgeshire County Council,03-Jul-23,51302015333,"1,768.80",ADAMS CABS,TRADE SUPPLIER,LD - Young Adults Team,LD - Young Adults - Care,Social Care Transport
Cambridgeshire County Council,03-Jul-23,51302015395,"1,808.40",Cambridge and Huntingdon Airport Travel Service,COMPANY,LD - South Locality - Cost of Care,LD - South Cambs - Care,Social Care Transport
Cambridgeshire County Council,03-Jul-23,51302015214,"1,815.00",HUNTINGDONSHIRE DISTRICT COUNCIL,OTHER PUBLIC BODIES,SEND Specialist Services - Head of Service,Head of SEND Services (0-25),Casual hire of facilities
Cambridgeshire County Council,03-Jul-23,51302016542,"1,832.60",FORD HOUSE CARE HOME,CARE ESTABLISHMENT,OPPD - Cost of Care - Huntingdon - Over 65,Hunts OP Team - Care,Nursing Care
Cambridgeshire County Council,03-Jul-23,51302016542,"1,832.60",FORD HOUSE CARE HOME,CARE ESTABLISHMENT,OPPD - Cost of Care - Huntingdon - Over 65,Hunts OP Team - Care,Nursing Care
Cambridgeshire County Council,03-Jul-23,51302016542,"1,832.60",FORD HOUSE CARE HOME,CARE ESTABLISHMENT,OPPD - Cost of Care - Huntingdon - Over 65,Hunts OP Team - Care,Nursing Care
Cambridgeshire County Council,03-Jul-23,51302016542,"1,832.60",FORD HOUSE CARE HOME,CARE ESTABLISHMENT,OPPD - Cost of Care - Huntingdon - Over 65,Hunts OP Team - Care,Nursing Care
Cambridgeshire County Council,03-Jul-23,51302015367,"1,857.60",Darwin Cambridge Ltd T/A Hyfly Taxis,COMPANY,LAC Transport,LAC Transport - Home to School,Social Care Transport
Cambridgeshire County Council,03-Jul-23,51302015402,"1,878.12",Cambridge and Huntingdon Airport Travel Service,COMPANY,LAC Transport,LAC Transport - Home to School,Social Care Transport
Cambridgeshire County Council,03-Jul-23,51302015348,"1,879.20",Street Cars (Cambs) LTD,COMPANY,LAC Transport,LAC Transport - Out of county,Social Care Transport
Cambridgeshire County Council,03-Jul-23,51302002845,"1,879.20",SIEMENS PLC,COMPANY,County Farms,"Triangle Solar Farm, Soham",Professional Fees and Hired Services
Cambridgeshire County Council,03-Jul-23,51302015390,"1,917.00",Cambridge and Huntingdon Airport Travel Service,COMPANY,LD - Young Adults Team,LD - Young Adults - Care,Social Care Transport
Cambridgeshire County Council,03-Jul-23,51302007601,"1,923.62",CAMBRIDGE CITY COUNCIL,OTHER PUBLIC BODIES,GCP - Communications,GCP - Strategic Communicatations,Staffing Recharges - External
Cambridgeshire County Council,03-Jul-23,51302007570,"1,961.78",CAMBRIDGE CITY COUNCIL,OTHER PUBLIC BODIES,GCP - Communications,GCP - Strategic Communicatations,Staffing Recharges - External
Cambridgeshire County Council,03-Jul-23,51302015231,"1,988.40",Redacted Personal Data,INDIVIDUAL,Children's Disability Direct Payments,CSC Direct Payments,Direct Payments
Cambridgeshire County Council,03-Jul-23,51302016543,"1,989.68",RHEOLA HEALTHCARE,CARE ESTABLISHMENT,OPPD - Cost of Care - Huntingdon Blocks,Hunts - Long term blocks,Residential Care
Cambridgeshire County Council,03-Jul-23,51302002675,"2,000.00",NOISE SOLUTION,TRADE SUPPLIER,Out of School Tuition,Out of School Provision EHCPs,Independent School Placements
Cambridgeshire County Council,03-Jul-23,51302010698,"2,005.55",ROYAL MAIL,TRADE SUPPLIER,Information Management,Resources Franking Machine,Postage & Carriage
Cambridgeshire County Council,03-Jul-23,51302015233,"2,061.00",Redacted Personal Data,INDIVIDUAL,Children's Disability Direct Payments,CSC Direct Payments,Direct Payments
Cambridgeshire County Council,03-Jul-23,51302016543,"2,094.40",RHEOLA HEALTHCARE,CARE ESTABLISHMENT,OPPD - Cost of Care - Huntingdon Blocks,Hunts - Long term blocks,Residential Care
Cambridgeshire County Council,03-Jul-23,51302015377,"2,100.00",J&A Airport Transport Service,TRADE SUPPLIER,LD - South Locality - Cost of Care,LD - South Cambs - Care,Social Care Transport
Cambridgeshire County Council,03-Jul-23,51302010889,"2,106.16",SHIRLEY PRIMARY SCHOOL,EDUCATION,Corporate Offices,Chesterton Childrens Centre,Rents and Leases
Cambridgeshire County Council,03-Jul-23,51302002874,"2,112.00",Panoramic Associates,COMPANY,PH COMF,PH - Contain Outbreak Management Fund,Professional Fees and Hired Services
Cambridgeshire County Council,03-Jul-23,51302016571,"2,144.13",K RAVIVARUMAN T/A FAIR HAVEN CARE HOME,CARE ESTABLISHMENT,OPPD - Cost of Care - East Cambs Blocks,East Cambs � Long term Blocks,Residential Care
Cambridgeshire County Council,03-Jul-23,51302016571,"2,144.13",K RAVIVARUMAN T/A FAIR HAVEN CARE HOME,CARE ESTABLISHMENT,OPPD - Cost of Care - East Cambs Blocks,East Cambs � Long term Blocks,Residential Care
Cambridgeshire County Council,03-Jul-23,51302016571,"2,144.13",K RAVIVARUMAN T/A FAIR HAVEN CARE HOME,CARE ESTABLISHMENT,OPPD - Cost of Care - East Cambs Blocks,East Cambs � Long term Blocks,Residential Care
Cambridgeshire County Council,03-Jul-23,51302016571,"2,144.13",K RAVIVARUMAN T/A FAIR HAVEN CARE HOME,CARE ESTABLISHMENT,OPPD - Cost of Care - East Cambs Blocks,East Cambs � Long term Blocks,Residential Care
Cambridgeshire County Council,03-Jul-23,51302016554,"2,144.13",BLACK SWAN CARE GROUP LTD,CARE ESTABLISHMENT,OPPD - Cost of Care - Fenland Blocks,Fenland - Long term blocks,Residential Care
Cambridgeshire County Council,03-Jul-23,51302016554,"2,144.13",BLACK SWAN CARE GROUP LTD,CARE ESTABLISHMENT,OPPD - Cost of Care - Fenland Blocks,Fenland - Long term blocks,Residential Care
Cambridgeshire County Council,03-Jul-23,51302016554,"2,144.13",BLACK SWAN CARE GROUP LTD,CARE ESTABLISHMENT,OPPD - Cost of Care - Fenland Blocks,Fenland - Long term blocks,Residential Care
Cambridgeshire County Council,03-Jul-23,51302016554,"2,144.13",BLACK SWAN CARE GROUP LTD,CARE ESTABLISHMENT,OPPD - Cost of Care - Fenland Blocks,Fenland - Long term blocks,Residential Care
Cambridgeshire County Council,03-Jul-23,51302007593,"2,175.12",CHS GROUP,CARE ESTABLISHMENT,LD - Head of Service,Head of LDP,Domiciliary Care
Cambridgeshire County Council,03-Jul-23,51302015441,"2,179.87",T & T PRIVATE HIRE LTD,TRADE SUPPLIER,LD - South Locality - Cost of Care,LD - South Cambs - Care,Social Care Transport
Cambridgeshire County Council,03-Jul-23,51302016596,"2,199.12",Anchor Hanover Group t/a Nelson Lodge,COMPANY,OPPD - Cost of Care - Huntingdon Blocks,Hunts - Long term blocks,Residential Care
Cambridgeshire County Council,03-Jul-23,51302016596,"2,199.12",Anchor Hanover Group t/a Nelson Lodge,COMPANY,OPPD - Cost of Care - Huntingdon Blocks,Hunts - Long term blocks,Residential Care
Cambridgeshire County Council,03-Jul-23,51302016596,"2,199.12",Anchor Hanover Group t/a Nelson Lodge,COMPANY,OPPD - Cost of Care - Huntingdon Blocks,Hunts - Long term blocks,Residential Care
Cambridgeshire County Council,03-Jul-23,51302016596,"2,199.12",Anchor Hanover Group t/a Nelson Lodge,COMPANY,OPPD - Cost of Care - Huntingdon Blocks,Hunts - Long term blocks,Residential Care
Cambridgeshire County Council,03-Jul-23,51302016596,"2,199.12",Anchor Hanover Group t/a Nelson Lodge,COMPANY,OPPD - Cost of Care - Huntingdon Blocks,Hunts - Long term blocks,Residential Care
Cambridgeshire County Council,03-Jul-23,51302016596,"2,199.12",Anchor Hanover Group t/a Nelson Lodge,COMPANY,OPPD - Cost of Care - Huntingdon Blocks,Hunts - Long term blocks,Residential Care
Cambridgeshire County Council,03-Jul-23,51302016596,"2,199.12",Anchor Hanover Group t/a Nelson Lodge,COMPANY,OPPD - Cost of Care - Huntingdon Blocks,Hunts - Long term blocks,Residential Care
Cambridgeshire County Council,03-Jul-23,51302016596,"2,199.12",Anchor Hanover Group t/a Nelson Lodge,COMPANY,OPPD - Cost of Care - Huntingdon Blocks,Hunts - Long term blocks,Residential Care
Cambridgeshire County Council,03-Jul-23,51302002656,"2,200.00",NOISE SOLUTION,TRADE SUPPLIER,Out of School Tuition,Out of School Provision EHCPs,Independent School Placements
Cambridgeshire County Council,03-Jul-23,51302016569,"2,237.94",K RAVIVARUMAN T/A FAIR HAVEN CARE HOME,CARE ESTABLISHMENT,OPPD - Cost of Care - East Cambs Blocks,East Cambs � Long term Blocks,Residential Care
Cambridgeshire County Council,03-Jul-23,51302016569,"2,237.94",K RAVIVARUMAN T/A FAIR HAVEN CARE HOME,CARE ESTABLISHMENT,OPPD - Cost of Care - East Cambs Blocks,East Cambs � Long term Blocks,Residential Care
Cambridgeshire County Council,03-Jul-23,51302016569,"2,237.94",K RAVIVARUMAN T/A FAIR HAVEN CARE HOME,CARE ESTABLISHMENT,OPPD - Cost of Care - East Cambs Blocks,East Cambs � Long term Blocks,Residential Care
Cambridgeshire County Council,03-Jul-23,51302016569,"2,237.94",K RAVIVARUMAN T/A FAIR HAVEN CARE HOME,CARE ESTABLISHMENT,OPPD - Cost of Care - East Cambs Blocks,East Cambs � Long term Blocks,Residential Care
Cambridgeshire County Council,03-Jul-23,51302010738,"2,240.00",EAQ,EDUCATION,Out of School Tuition,Out of School Provision EHCPs,Independent School Placements
Cambridgeshire County Council,03-Jul-23,51302015539,"2,250.00",PCH Integration Services Ltd.,CARE ESTABLISHMENT,Unaccompanied Asylum Seeking Children,Separated Migrant Children < 18,Asylum Seekers
Cambridgeshire County Council,03-Jul-23,51302015540,"2,250.00",PCH Integration Services Ltd.,CARE ESTABLISHMENT,Unaccompanied Asylum Seeking Children,Separated Migrant Children < 18,Asylum Seekers
Cambridgeshire County Council,03-Jul-23,51302015541,"2,250.00",PCH Integration Services Ltd.,CARE ESTABLISHMENT,Unaccompanied Asylum Seeking Children,Separated Migrant Children < 18,Asylum Seekers
Cambridgeshire County Council,03-Jul-23,51302015544,"2,250.00",PCH Integration Services Ltd.,CARE ESTABLISHMENT,Unaccompanied Asylum Seeking Children,Separated Migrant Children < 18,Asylum Seekers
Cambridgeshire County Council,03-Jul-23,51302015545,"2,250.00",PCH Integration Services Ltd.,CARE ESTABLISHMENT,Unaccompanied Asylum Seeking Children,Separated Migrant Children < 18,Asylum Seekers
Cambridgeshire County Council,03-Jul-23,51302015546,"2,250.00",PCH Integration Services Ltd.,CARE ESTABLISHMENT,Unaccompanied Asylum Seeking Children,Separated Migrant Children < 18,Asylum Seekers
Cambridgeshire County Council,03-Jul-23,51302015547,"2,250.00",PCH Integration Services Ltd.,CARE ESTABLISHMENT,Unaccompanied Asylum Seeking Children,Separated Migrant Children < 18,Asylum Seekers
Cambridgeshire County Council,03-Jul-23,51302015548,"2,250.00",PCH Integration Services Ltd.,CARE ESTABLISHMENT,Unaccompanied Asylum Seeking Children,Separated Migrant Children < 18,Asylum Seekers
Cambridgeshire County Council,03-Jul-23,51302015549,"2,250.00",PCH Integration Services Ltd.,CARE ESTABLISHMENT,Unaccompanied Asylum Seeking Children,Separated Migrant Children < 18,Asylum Seekers
Cambridgeshire County Council,03-Jul-23,51302015550,"2,250.00",PCH Integration Services Ltd.,CARE ESTABLISHMENT,Unaccompanied Asylum Seeking Children,Separated Migrant Children < 18,Asylum Seekers
Cambridgeshire County Council,03-Jul-23,51302015531,"2,250.00",PCH Integration Services Ltd.,CARE ESTABLISHMENT,Unaccompanied Asylum Seeking Children,Separated Migrant Children < 18,Asylum Seekers
Cambridgeshire County Council,03-Jul-23,51302015534,"2,250.00",PCH Integration Services Ltd.,CARE ESTABLISHMENT,Unaccompanied Asylum Seeking Children,Separated Migrant Children < 18,Asylum Seekers
Cambridgeshire County Council,03-Jul-23,51302015535,"2,250.00",PCH Integration Services Ltd.,CARE ESTABLISHMENT,Unaccompanied Asylum Seeking Children,Separated Migrant Children < 18,Asylum Seekers
Cambridgeshire County Council,03-Jul-23,51302015536,"2,250.00",PCH Integration Services Ltd.,CARE ESTABLISHMENT,Unaccompanied Asylum Seeking Children,Separated Migrant Children < 18,Asylum Seekers
Cambridgeshire County Council,03-Jul-23,51302015326,"2,260.44",ADAMS CABS,TRADE SUPPLIER,LD - South Locality - Cost of Care,LD - South Cambs - Care,Social Care Transport
Cambridgeshire County Council,03-Jul-23,51302016552,"2,263.80",POTTON VIEW,CARE ESTABLISHMENT,OPPD - Cost of Care - City South Blocks,City and South - Short term blocks,Rehabilitation And Respite Care
Cambridgeshire County Council,03-Jul-23,51302016552,"2,263.80",POTTON VIEW,CARE ESTABLISHMENT,OPPD - Cost of Care - City South Blocks,City and South - Short term blocks,Rehabilitation And Respite Care
Cambridgeshire County Council,03-Jul-23,51302016552,"2,263.80",POTTON VIEW,CARE ESTABLISHMENT,OPPD - Cost of Care - City South Blocks,City and South - Short term blocks,Rehabilitation And Respite Care
Cambridgeshire County Council,03-Jul-23,51302016552,"2,263.80",POTTON VIEW,CARE ESTABLISHMENT,OPPD - Cost of Care - City South Blocks,City and South - Short term blocks,Rehabilitation And Respite Care
Cambridgeshire County Council,03-Jul-23,51302013169,"2,283.64",BURWELL PARISH COUNCIL,OTHER PUBLIC BODIES,Highways Maintenance,Highways Maintenance - Works,Village Maintenance
Cambridgeshire County Council,03-Jul-23,51302016572,"2,296.14",FLORENCE HOUSE(RAMSEY) RESIDENTIAL HOME FOR THE ELDERLY,CARE ESTABLISHMENT,OPPD - Cost of Care - Huntingdon Blocks,Hunts - Short term blocks,Rehabilitation And Respite Care
Cambridgeshire County Council,03-Jul-23,51302016572,"2,296.14",FLORENCE HOUSE(RAMSEY) RESIDENTIAL HOME FOR THE ELDERLY,CARE ESTABLISHMENT,OPPD - Cost of Care - Huntingdon Blocks,Hunts - Short term blocks,Rehabilitation And Respite Care
Cambridgeshire County Council,03-Jul-23,51302016572,"2,296.14",FLORENCE HOUSE(RAMSEY) RESIDENTIAL HOME FOR THE ELDERLY,CARE ESTABLISHMENT,OPPD - Cost of Care - Huntingdon Blocks,Hunts - Short term blocks,Rehabilitation And Respite Care
Cambridgeshire County Council,03-Jul-23,51302016572,"2,296.14",FLORENCE HOUSE(RAMSEY) RESIDENTIAL HOME FOR THE ELDERLY,CARE ESTABLISHMENT,OPPD - Cost of Care - Huntingdon Blocks,Hunts - Short term blocks,Rehabilitation And Respite Care
Cambridgeshire County Council,03-Jul-23,51302015405,"2,340.00",ALANS TAXI LTD,TRADE SUPPLIER,LD - South Locality - Cost of Care,LD - South Cambs - Care,Social Care Transport
Cambridgeshire County Council,03-Jul-23,51302015409,"2,340.00",ALANS TAXI LTD,TRADE SUPPLIER,LD - South Locality - Cost of Care,LD - South Cambs - Care,Social Care Transport
Cambridgeshire County Council,03-Jul-23,51302015406,"2,340.00",ALANS TAXI LTD,TRADE SUPPLIER,LD - East Locality - Cost of Care,LD - East Cambs - Care,Social Care Transport
Cambridgeshire County Council,03-Jul-23,51302015385,"2,418.12",Cambridge and Huntingdon Airport Travel Service,COMPANY,LAC Transport,LAC Transport - Home to School,Social Care Transport
Cambridgeshire County Council,03-Jul-23,51302015349,"2,448.00",Street Cars (Cambs) LTD,COMPANY,LD - Young Adults Team,LD - Young Adults - Care,Social Care Transport
Cambridgeshire County Council,03-Jul-23,51302015366,"2,455.20",Darwin Cambridge Ltd T/A Hyfly Taxis,COMPANY,LAC Transport,LAC Transport - Home to School,Social Care Transport
Cambridgeshire County Council,03-Jul-23,51302016587,"2,455.75",MULTI CARE COMMUNITY SERVICES,CARE ESTABLISHMENT,Commissioning - Dom Cars,Hancock-Funded Dom-Cars,Domiciliary Care
Cambridgeshire County Council,03-Jul-23,51302016588,"2,455.75",MULTI CARE COMMUNITY SERVICES,CARE ESTABLISHMENT,Commissioning - Dom Cars,Hancock-Funded Dom-Cars,Domiciliary Care
Cambridgeshire County Council,03-Jul-23,51302016588,"2,455.75",MULTI CARE COMMUNITY SERVICES,CARE ESTABLISHMENT,Commissioning - Dom Cars,Hancock-Funded Dom-Cars,Domiciliary Care
Cambridgeshire County Council,03-Jul-23,51302016588,"2,455.75",MULTI CARE COMMUNITY SERVICES,CARE ESTABLISHMENT,Commissioning - Dom Cars,Hancock-Funded Dom-Cars,Domiciliary Care
Cambridgeshire County Council,03-Jul-23,51302016588,"2,455.75",MULTI CARE COMMUNITY SERVICES,CARE ESTABLISHMENT,Commissioning - Dom Cars,Hancock-Funded Dom-Cars,Domiciliary Care
Cambridgeshire County Council,03-Jul-23,51302016587,"2,455.75",MULTI CARE COMMUNITY SERVICES,CARE ESTABLISHMENT,Commissioning - Dom Cars,Hancock-Funded Dom-Cars,Domiciliary Care
Cambridgeshire County Council,03-Jul-23,51302016587,"2,455.75",MULTI CARE COMMUNITY SERVICES,CARE ESTABLISHMENT,Commissioning - Dom Cars,Hancock-Funded Dom-Cars,Domiciliary Care
Cambridgeshire County Council,03-Jul-23,51302016587,"2,455.75",MULTI CARE COMMUNITY SERVICES,CARE ESTABLISHMENT,Commissioning - Dom Cars,Hancock-Funded Dom-Cars,Domiciliary Care
Cambridgeshire County Council,03-Jul-23,51302015394,"2,460.00",Cambridge and Huntingdon Airport Travel Service,COMPANY,LAC Transport,LAC Transport -  Short Breaks,Social Care Transport
Cambridgeshire County Council,03-Jul-23,51302015323,"2,485.20",ADAMS CABS,TRADE SUPPLIER,LAC Transport,LAC Transport - Home to School,Social Care Transport
Cambridgeshire County Council,03-Jul-23,51302010733,"2,560.00",EAQ,EDUCATION,Out of School Tuition,Out of School Provision EHCPs,Independent School Placements
Cambridgeshire County Council,03-Jul-23,51302013231,"2,666.87",FORDHAM PARISH COUNCIL,OTHER PUBLIC BODIES,Highways Maintenance,Highways Maintenance - Works,Village Maintenance
Cambridgeshire County Council,03-Jul-23,51302015438,"2,668.36",T & T PRIVATE HIRE LTD,TRADE SUPPLIER,LD - Young Adults Team,LD - Young Adults - Care,Social Care Transport
Cambridgeshire County Council,03-Jul-23,51302015347,"2,700.00",Street Cars (Cambs) LTD,COMPANY,LAC Transport,LAC Transport - Home to School,Social Care Transport
Cambridgeshire County Council,03-Jul-23,51302016565,"2,732.73",HOME CLOSE LTD,CARE ESTABLISHMENT,OPPD - Cost of Care - City South Blocks,City and South - Long term blocks,Nursing Care
Cambridgeshire County Council,03-Jul-23,51302016565,"2,732.73",HOME CLOSE LTD,CARE ESTABLISHMENT,OPPD - Cost of Care - City South Blocks,City and South - Long term blocks,Nursing Care
Cambridgeshire County Council,03-Jul-23,51302016565,"2,732.73",HOME CLOSE LTD,CARE ESTABLISHMENT,OPPD - Cost of Care - City South Blocks,City and South - Long term blocks,Nursing Care
Cambridgeshire County Council,03-Jul-23,51302016565,"2,732.73",HOME CLOSE LTD,CARE ESTABLISHMENT,OPPD - Cost of Care - City South Blocks,City and South - Long term blocks,Nursing Care
Cambridgeshire County Council,03-Jul-23,51302016570,"2,748.90",CARE UK LIMITED,CARE ESTABLISHMENT,OPPD - Cost of Care - Huntingdon Blocks,Hunts - Long term blocks,Nursing Care
Cambridgeshire County Council,03-Jul-23,51302016570,"2,748.90",CARE UK LIMITED,CARE ESTABLISHMENT,OPPD - Cost of Care - Huntingdon Blocks,Hunts - Long term blocks,Nursing Care
Cambridgeshire County Council,03-Jul-23,51302016570,"2,748.90",CARE UK LIMITED,CARE ESTABLISHMENT,OPPD - Cost of Care - Huntingdon Blocks,Hunts - Long term blocks,Nursing Care
Cambridgeshire County Council,03-Jul-23,51302016570,"2,748.90",CARE UK LIMITED,CARE ESTABLISHMENT,OPPD - Cost of Care - Huntingdon Blocks,Hunts - Long term blocks,Nursing Care
Cambridgeshire County Council,03-Jul-23,51302015391,"2,782.08",Cambridge and Huntingdon Airport Travel Service,COMPANY,LAC Transport,LAC Transport - Home to School,Social Care Transport
Cambridgeshire County Council,03-Jul-23,51302015334,"2,793.60",ADAMS CABS,TRADE SUPPLIER,LD - Young Adults Team,LD - Young Adults - Care,Social Care Transport
Cambridgeshire County Council,03-Jul-23,51302009355,"2,851.57",O'Shea International,COMPANY,Grafham Water,Grafham Water Centre,Educational equipment
Cambridgeshire County Council,03-Jul-23,51302016554,"2,858.84",BLACK SWAN CARE GROUP LTD,CARE ESTABLISHMENT,OPPD - Cost of Care - Fenland Blocks,Fenland - Long term blocks,Residential Care
Cambridgeshire County Council,03-Jul-23,51302016554,"2,858.84",BLACK SWAN CARE GROUP LTD,CARE ESTABLISHMENT,OPPD - Cost of Care - Fenland Blocks,Fenland - Long term blocks,Residential Care
Cambridgeshire County Council,03-Jul-23,51302016554,"2,858.84",BLACK SWAN CARE GROUP LTD,CARE ESTABLISHMENT,OPPD - Cost of Care - Fenland Blocks,Fenland - Long term blocks,Residential Care
Cambridgeshire County Council,03-Jul-23,51302016554,"2,858.84",BLACK SWAN CARE GROUP LTD,CARE ESTABLISHMENT,OPPD - Cost of Care - Fenland Blocks,Fenland - Long term blocks,Residential Care
Cambridgeshire County Council,03-Jul-23,51302016575,"2,858.84",THE HERMITAGE WHITTLESEY LLP,CARE ESTABLISHMENT,OPPD - Cost of Care - Fenland Blocks,Fenland - Long term blocks,Residential Care
Cambridgeshire County Council,03-Jul-23,51302016575,"2,858.84",THE HERMITAGE WHITTLESEY LLP,CARE ESTABLISHMENT,OPPD - Cost of Care - Fenland Blocks,Fenland - Long term blocks,Residential Care
Cambridgeshire County Council,03-Jul-23,51302016575,"2,858.84",THE HERMITAGE WHITTLESEY LLP,CARE ESTABLISHMENT,OPPD - Cost of Care - Fenland Blocks,Fenland - Long term blocks,Residential Care
Cambridgeshire County Council,03-Jul-23,51302016575,"2,858.84",THE HERMITAGE WHITTLESEY LLP,CARE ESTABLISHMENT,OPPD - Cost of Care - Fenland Blocks,Fenland - Long term blocks,Residential Care
Cambridgeshire County Council,03-Jul-23,51302016548,"2,858.84",SWAN HOUSE NURSING & RESIDENTIAL HOME,CARE ESTABLISHMENT,OPPD - Cost of Care - Fenland Blocks,Fenland - Long term blocks,Nursing Care
Cambridgeshire County Council,03-Jul-23,51302016548,"2,858.84",SWAN HOUSE NURSING & RESIDENTIAL HOME,CARE ESTABLISHMENT,OPPD - Cost of Care - Fenland Blocks,Fenland - Long term blocks,Nursing Care
Cambridgeshire County Council,03-Jul-23,51302016548,"2,858.84",SWAN HOUSE NURSING & RESIDENTIAL HOME,CARE ESTABLISHMENT,OPPD - Cost of Care - Fenland Blocks,Fenland - Long term blocks,Nursing Care
Cambridgeshire County Council,03-Jul-23,51302016548,"2,858.84",SWAN HOUSE NURSING & RESIDENTIAL HOME,CARE ESTABLISHMENT,OPPD - Cost of Care - Fenland Blocks,Fenland - Long term blocks,Nursing Care
Cambridgeshire County Council,03-Jul-23,51302016122,"2,860.00",Redacted Personal Data,SERVICE USER,North Child Looked After Team 1,North Child Looked After Team 1,Grants and Support for other Service Users
Cambridgeshire County Council,03-Jul-23,51302016593,"2,896.85",Cera Care Operations Ltd,COMPANY,OPPD - Cost of Care - City South - Over 65,Older People - City & South - Care,Supported Living
Cambridgeshire County Council,03-Jul-23,51302016593,"2,896.85",Cera Care Operations Ltd,COMPANY,OPPD - Cost of Care - City South - Over 65,Older People - City & South - Care,Supported Living
Cambridgeshire County Council,03-Jul-23,51302016593,"2,896.85",Cera Care Operations Ltd,COMPANY,OPPD - Cost of Care - City South - Over 65,Older People - City & South - Care,Supported Living
Cambridgeshire County Council,03-Jul-23,51302016593,"2,896.85",Cera Care Operations Ltd,COMPANY,OPPD - Cost of Care - City South - Over 65,Older People - City & South - Care,Supported Living
Cambridgeshire County Council,03-Jul-23,51302015217,"2,902.80",Access Independent Ltd,COMPANY,Customer Services,Contact Centre - Operations,Materials for resale
Cambridgeshire County Council,03-Jul-23,51302016574,"2,932.16",THE HILLINGS LIMITED,CARE ESTABLISHMENT,OPPD - Cost of Care - Huntingdon Blocks,Hunts - Long term blocks,Residential Care
Cambridgeshire County Council,03-Jul-23,51302016574,"2,932.16",THE HILLINGS LIMITED,CARE ESTABLISHMENT,OPPD - Cost of Care - Huntingdon Blocks,Hunts - Long term blocks,Residential Care
Cambridgeshire County Council,03-Jul-23,51302016574,"2,932.16",THE HILLINGS LIMITED,CARE ESTABLISHMENT,OPPD - Cost of Care - Huntingdon Blocks,Hunts - Long term blocks,Residential Care
Cambridgeshire County Council,03-Jul-23,51302016574,"2,932.16",THE HILLINGS LIMITED,CARE ESTABLISHMENT,OPPD - Cost of Care - Huntingdon Blocks,Hunts - Long term blocks,Residential Care
Cambridgeshire County Council,03-Jul-23,51302015432,"2,976.84",T & T PRIVATE HIRE LTD,TRADE SUPPLIER,LAC Transport,LAC Transport - Home to School,Social Care Transport
Cambridgeshire County Council,03-Jul-23,51302014588,"3,000.00",Medico-Legal Psychiatry Ltd,OTHER PUBLIC BODIES,Coroners,Coroners General,Court Costs
Cambridgeshire County Council,03-Jul-23,51302015344,"3,018.60",Fencabs Ltd,TRADE SUPPLIER,Autism and Adult Support - Cost of Care,Autism and Adult Support - Care,Social Care Transport
Cambridgeshire County Council,03-Jul-23,51302015346,"3,024.00",Street Cars (Cambs) LTD,COMPANY,LAC Transport,LAC Transport - Home to School,Social Care Transport
Cambridgeshire County Council,03-Jul-23,51302015353,"3,042.00",Street Cars (Cambs) LTD,COMPANY,LAC Transport,LAC Transport - Home to School,Social Care Transport
Cambridgeshire County Council,03-Jul-23,51302016584,"3,061.52",AISLING LODGE (MD CARE HOMES),CARE ESTABLISHMENT,OPPD - Cost of Care - Huntingdon Blocks,Hunts - Long term blocks,Residential Care
Cambridgeshire County Council,03-Jul-23,51302016584,"3,061.52",AISLING LODGE (MD CARE HOMES),CARE ESTABLISHMENT,OPPD - Cost of Care - Huntingdon Blocks,Hunts - Long term blocks,Residential Care
Cambridgeshire County Council,03-Jul-23,51302016584,"3,061.52",AISLING LODGE (MD CARE HOMES),CARE ESTABLISHMENT,OPPD - Cost of Care - Huntingdon Blocks,Hunts - Long term blocks,Residential Care
Cambridgeshire County Council,03-Jul-23,51302016584,"3,061.52",AISLING LODGE (MD CARE HOMES),CARE ESTABLISHMENT,OPPD - Cost of Care - Huntingdon Blocks,Hunts - Long term blocks,Residential Care
Cambridgeshire County Council,03-Jul-23,51302016580,"3,132.42",RADIS COMMUNITY CARE,CARE ESTABLISHMENT,OPPD - Cost of Care - Fenland - Over 65,Older People - Fenland - Care,Supported Living
Cambridgeshire County Council,03-Jul-23,51302016580,"3,132.42",RADIS COMMUNITY CARE,CARE ESTABLISHMENT,OPPD - Cost of Care - Fenland - Over 65,Older People - Fenland - Care,Supported Living
Cambridgeshire County Council,03-Jul-23,51302016580,"3,132.42",RADIS COMMUNITY CARE,CARE ESTABLISHMENT,OPPD - Cost of Care - Fenland - Over 65,Older People - Fenland - Care,Supported Living
Cambridgeshire County Council,03-Jul-23,51302016580,"3,132.42",RADIS COMMUNITY CARE,CARE ESTABLISHMENT,OPPD - Cost of Care - Fenland - Over 65,Older People - Fenland - Care,Supported Living
Cambridgeshire County Council,03-Jul-23,51302015427,"3,176.71",T & T PRIVATE HIRE LTD,TRADE SUPPLIER,LAC Transport,LAC Transport - Out of county,Social Care Transport
Cambridgeshire County Council,03-Jul-23,51302009281,"3,203.17",Redacted Personal Data,INDIVIDUAL,SEND High Needs Top Up,High Needs Top Up - Early Years,Independent School Placements
Cambridgeshire County Council,03-Jul-23,51302015202,"3,203.34",OCLC (UK) LTD,TRADE SUPPLIER,Libraries - Stock & Distribution,Support - Stock & Distribution,Books and Multimedia Supplies
Cambridgeshire County Council,03-Jul-23,51302009393,"3,263.16",AVERY BERKEL T/A AVERY WEIGH-TRONIX,TRADE SUPPLIER,Winter Maintenance,Central Winter Maintenance,Specialist Equipment For Service Delivery
Cambridgeshire County Council,03-Jul-23,51302013166,"3,273.59",BRAMPTON PARISH COUNCIL,OTHER PUBLIC BODIES,Highways Maintenance,Highways Maintenance - Works,Village Maintenance
Cambridgeshire County Council,03-Jul-23,51302016580,"3,278.84",RADIS COMMUNITY CARE,CARE ESTABLISHMENT,OPPD - Cost of Care - Fenland - Over 65,Older People - Fenland - Care,Supported Living
Cambridgeshire County Council,03-Jul-23,51302016580,"3,278.84",RADIS COMMUNITY CARE,CARE ESTABLISHMENT,OPPD - Cost of Care - Fenland - Over 65,Older People - Fenland - Care,Supported Living
Cambridgeshire County Council,03-Jul-23,51302016580,"3,278.84",RADIS COMMUNITY CARE,CARE ESTABLISHMENT,OPPD - Cost of Care - Fenland - Over 65,Older People - Fenland - Care,Supported Living
Cambridgeshire County Council,03-Jul-23,51302016580,"3,278.84",RADIS COMMUNITY CARE,CARE ESTABLISHMENT,OPPD - Cost of Care - Fenland - Over 65,Older People - Fenland - Care,Supported Living
Cambridgeshire County Council,03-Jul-23,51302015529,"3,381.43",Fostering Innovations Ltd,CARE ESTABLISHMENT,Unaccompanied Asylum Seeking Children,Separated Migrant Children < 18,Agency Placements - Out of  County
Cambridgeshire County Council,03-Jul-23,51302015530,"3,381.43",Fostering Innovations Ltd,CARE ESTABLISHMENT,Unaccompanied Asylum Seeking Children,Separated Migrant Children < 18,Agency Placements - Out of  County
Cambridgeshire County Council,03-Jul-23,51302015365,"3,412.80",Darwin Cambridge Ltd T/A Hyfly Taxis,COMPANY,LAC Transport,LAC Transport - Home to School,Social Care Transport
Cambridgeshire County Council,03-Jul-23,51302016579,"3,424.38",RADIS COMMUNITY CARE,CARE ESTABLISHMENT,OPPD - Cost of Care - City South - Over 65,Older People - City & South - Care,Supported Living
Cambridgeshire County Council,03-Jul-23,51302016579,"3,424.38",RADIS COMMUNITY CARE,CARE ESTABLISHMENT,OPPD - Cost of Care - City South - Over 65,Older People - City & South - Care,Supported Living
Cambridgeshire County Council,03-Jul-23,51302016579,"3,424.38",RADIS COMMUNITY CARE,CARE ESTABLISHMENT,OPPD - Cost of Care - City South - Over 65,Older People - City & South - Care,Supported Living
Cambridgeshire County Council,03-Jul-23,51302016579,"3,424.38",RADIS COMMUNITY CARE,CARE ESTABLISHMENT,OPPD - Cost of Care - City South - Over 65,Older People - City & South - Care,Supported Living
Cambridgeshire County Council,03-Jul-23,51302016548,"3,449.60",SWAN HOUSE NURSING & RESIDENTIAL HOME,CARE ESTABLISHMENT,OPPD - Cost of Care - Fenland Blocks,Fenland - Long term blocks,Nursing Care
Cambridgeshire County Council,03-Jul-23,51302016548,"3,449.60",SWAN HOUSE NURSING & RESIDENTIAL HOME,CARE ESTABLISHMENT,OPPD - Cost of Care - Fenland Blocks,Fenland - Long term blocks,Nursing Care
Cambridgeshire County Council,03-Jul-23,51302016548,"3,449.60",SWAN HOUSE NURSING & RESIDENTIAL HOME,CARE ESTABLISHMENT,OPPD - Cost of Care - Fenland Blocks,Fenland - Long term blocks,Nursing Care
Cambridgeshire County Council,03-Jul-23,51302016548,"3,449.60",SWAN HOUSE NURSING & RESIDENTIAL HOME,CARE ESTABLISHMENT,OPPD - Cost of Care - Fenland Blocks,Fenland - Long term blocks,Nursing Care
Cambridgeshire County Council,03-Jul-23,51302015345,"3,456.00",Street Cars (Cambs) LTD,COMPANY,LAC Transport,LAC Transport - Home to School,Social Care Transport
Cambridgeshire County Council,03-Jul-23,51302016578,"3,467.19",RADIS COMMUNITY CARE,CARE ESTABLISHMENT,OPPD - Cost of Care - Fenland - Over 65,Older People - Fenland - Care,Supported Living
Cambridgeshire County Council,03-Jul-23,51302016578,"3,467.19",RADIS COMMUNITY CARE,CARE ESTABLISHMENT,OPPD - Cost of Care - Fenland - Over 65,Older People - Fenland - Care,Supported Living
Cambridgeshire County Council,03-Jul-23,51302016578,"3,467.19",RADIS COMMUNITY CARE,CARE ESTABLISHMENT,OPPD - Cost of Care - Fenland - Over 65,Older People - Fenland - Care,Supported Living
Cambridgeshire County Council,03-Jul-23,51302016578,"3,467.19",RADIS COMMUNITY CARE,CARE ESTABLISHMENT,OPPD - Cost of Care - Fenland - Over 65,Older People - Fenland - Care,Supported Living
Cambridgeshire County Council,03-Jul-23,51302016581,"3,467.19",RADIS COMMUNITY CARE,CARE ESTABLISHMENT,OPPD - Cost of Care - Huntingdon - Over 65,Hunts OP Team - Care,Supported Living
Cambridgeshire County Council,03-Jul-23,51302016581,"3,467.19",RADIS COMMUNITY CARE,CARE ESTABLISHMENT,OPPD - Cost of Care - Huntingdon - Over 65,Hunts OP Team - Care,Supported Living
Cambridgeshire County Council,03-Jul-23,51302016581,"3,467.19",RADIS COMMUNITY CARE,CARE ESTABLISHMENT,OPPD - Cost of Care - Huntingdon - Over 65,Hunts OP Team - Care,Supported Living
Cambridgeshire County Council,03-Jul-23,51302016581,"3,467.19",RADIS COMMUNITY CARE,CARE ESTABLISHMENT,OPPD - Cost of Care - Huntingdon - Over 65,Hunts OP Team - Care,Supported Living
Cambridgeshire County Council,03-Jul-23,51302002561,"3,500.00",Forever Active Forum Ltd,CHARITY,Falls Prevention,Falls Prevention,Professional Fees and Hired Services
Cambridgeshire County Council,03-Jul-23,51302015430,"3,564.84",T & T PRIVATE HIRE LTD,TRADE SUPPLIER,LAC Transport,LAC Transport -  Short Breaks,Social Care Transport
Cambridgeshire County Council,03-Jul-23,51302015436,"3,565.26",T & T PRIVATE HIRE LTD,TRADE SUPPLIER,LD - Young Adults Team,LD - Young Adults - Care,Social Care Transport
Cambridgeshire County Council,03-Jul-23,51302015494,"3,580.20",Kids R Us @ Fulbourn,NURSERY,Nursery Schools,Early Years - Funded 3s/4s,Care & Ed Childcare Settings
Cambridgeshire County Council,03-Jul-23,51302002203,"3,600.00",Cambridgeshire Constabulary,EDUCATION,Road Safety,Road Safety Team Overheads,Consultancy
Cambridgeshire County Council,03-Jul-23,51302016576,"3,665.20",HARDWICK DENE,CARE ESTABLISHMENT,OPPD - Cost of Care - Huntingdon Blocks,Hunts - Short term blocks,Rehabilitation And Respite Care
Cambridgeshire County Council,03-Jul-23,51302016576,"3,665.20",HARDWICK DENE,CARE ESTABLISHMENT,OPPD - Cost of Care - Huntingdon Blocks,Hunts - Short term blocks,Rehabilitation And Respite Care
Cambridgeshire County Council,03-Jul-23,51302016576,"3,665.20",HARDWICK DENE,CARE ESTABLISHMENT,OPPD - Cost of Care - Huntingdon Blocks,Hunts - Short term blocks,Rehabilitation And Respite Care
Cambridgeshire County Council,03-Jul-23,51302016576,"3,665.20",HARDWICK DENE,CARE ESTABLISHMENT,OPPD - Cost of Care - Huntingdon Blocks,Hunts - Short term blocks,Rehabilitation And Respite Care
Cambridgeshire County Council,03-Jul-23,51302016597,"3,748.13",RADIS COMMUNITY CARE,CARE ESTABLISHMENT,OPPD - Cost of Care - City South - Over 65,Older People - City & South - Care,Supported Living
Cambridgeshire County Council,03-Jul-23,51302016560,"3,765.49",RADIS COMMUNITY CARE,CARE ESTABLISHMENT,OPPD - Cost of Care - Huntingdon - Over 65,Hunts OP Team - Care,Supported Living
Cambridgeshire County Council,03-Jul-23,51302016560,"3,765.49",RADIS COMMUNITY CARE,CARE ESTABLISHMENT,OPPD - Cost of Care - Huntingdon - Over 65,Hunts OP Team - Care,Supported Living
Cambridgeshire County Council,03-Jul-23,51302016560,"3,765.49",RADIS COMMUNITY CARE,CARE ESTABLISHMENT,OPPD - Cost of Care - Huntingdon - Over 65,Hunts OP Team - Care,Supported Living
Cambridgeshire County Council,03-Jul-23,51302016560,"3,765.49",RADIS COMMUNITY CARE,CARE ESTABLISHMENT,OPPD - Cost of Care - Huntingdon - Over 65,Hunts OP Team - Care,Supported Living
Cambridgeshire County Council,03-Jul-23,51302016564,"3,773.00",ETHELDRED HOUSE,CARE ESTABLISHMENT,OPPD - Cost of Care - City South Blocks,City and South - Long term blocks,Nursing Care
Cambridgeshire County Council,03-Jul-23,51302016564,"3,773.00",ETHELDRED HOUSE,CARE ESTABLISHMENT,OPPD - Cost of Care - City South Blocks,City and South - Long term blocks,Nursing Care
Cambridgeshire County Council,03-Jul-23,51302016564,"3,773.00",ETHELDRED HOUSE,CARE ESTABLISHMENT,OPPD - Cost of Care - City South Blocks,City and South - Long term blocks,Nursing Care
Cambridgeshire County Council,03-Jul-23,51302016564,"3,773.00",ETHELDRED HOUSE,CARE ESTABLISHMENT,OPPD - Cost of Care - City South Blocks,City and South - Long term blocks,Nursing Care
Cambridgeshire County Council,03-Jul-23,51302015388,"3,778.92",Cambridge and Huntingdon Airport Travel Service,COMPANY,LAC Transport,LAC Transport - Home to School,Social Care Transport
Cambridgeshire County Council,03-Jul-23,51302016546,"3,822.28",BROOK HEALTHCARE,CARE ESTABLISHMENT,OPPD - Cost of Care - City South Blocks,City and South - Long term blocks,Residential Care
Cambridgeshire County Council,03-Jul-23,51302013902,"3,865.44",MOTT MACDONALD LTD,TRADE SUPPLIER,Emergency Active Travel Fund,Emergency Active Travel Fund,Construction - External Professional Fees
Cambridgeshire County Council,03-Jul-23,51302016595,"3,884.31",MEARS CARE LTD,CARE ESTABLISHMENT,OPPD - Cost of Care - City South - Over 65,Older People - City & South - Care,Supported Living
Cambridgeshire County Council,03-Jul-23,51302016595,"3,884.31",MEARS CARE LTD,CARE ESTABLISHMENT,OPPD - Cost of Care - City South - Over 65,Older People - City & South - Care,Supported Living
Cambridgeshire County Council,03-Jul-23,51302016595,"3,884.31",MEARS CARE LTD,CARE ESTABLISHMENT,OPPD - Cost of Care - City South - Over 65,Older People - City & South - Care,Supported Living
Cambridgeshire County Council,03-Jul-23,51302016595,"3,884.31",MEARS CARE LTD,CARE ESTABLISHMENT,OPPD - Cost of Care - City South - Over 65,Older People - City & South - Care,Supported Living
Cambridgeshire County Council,03-Jul-23,51302016594,"3,884.92",MEARS CARE LTD,CARE ESTABLISHMENT,OPPD - Cost of Care - City South - Over 65,Older People - City & South - Care,Supported Living
Cambridgeshire County Council,03-Jul-23,51302016594,"3,884.92",MEARS CARE LTD,CARE ESTABLISHMENT,OPPD - Cost of Care - City South - Over 65,Older People - City & South - Care,Supported Living
Cambridgeshire County Council,03-Jul-23,51302016594,"3,884.92",MEARS CARE LTD,CARE ESTABLISHMENT,OPPD - Cost of Care - City South - Over 65,Older People - City & South - Care,Supported Living
Cambridgeshire County Council,03-Jul-23,51302016594,"3,884.92",MEARS CARE LTD,CARE ESTABLISHMENT,OPPD - Cost of Care - City South - Over 65,Older People - City & South - Care,Supported Living
Cambridgeshire County Council,03-Jul-23,51302016562,"3,934.70",BUCHAN HEALTHCARE LTD,CARE ESTABLISHMENT,OPPD - Cost of Care - City South Blocks,City and South - Long term blocks,Nursing Care
Cambridgeshire County Council,03-Jul-23,51302016562,"3,934.70",BUCHAN HEALTHCARE LTD,CARE ESTABLISHMENT,OPPD - Cost of Care - City South Blocks,City and South - Long term blocks,Nursing Care
Cambridgeshire County Council,03-Jul-23,51302016562,"3,934.70",BUCHAN HEALTHCARE LTD,CARE ESTABLISHMENT,OPPD - Cost of Care - City South Blocks,City and South - Long term blocks,Nursing Care
Cambridgeshire County Council,03-Jul-23,51302016562,"3,934.70",BUCHAN HEALTHCARE LTD,CARE ESTABLISHMENT,OPPD - Cost of Care - City South Blocks,City and South - Long term blocks,Nursing Care
Cambridgeshire County Council,03-Jul-23,51302016568,"3,934.70",ST GEORGE'S COURT,CARE ESTABLISHMENT,OPPD - Cost of Care - City South Blocks,City and South - Long term blocks,Nursing Care
Cambridgeshire County Council,03-Jul-23,51302016568,"3,934.70",ST GEORGE'S COURT,CARE ESTABLISHMENT,OPPD - Cost of Care - City South Blocks,City and South - Long term blocks,Nursing Care
Cambridgeshire County Council,03-Jul-23,51302016568,"3,934.70",ST GEORGE'S COURT,CARE ESTABLISHMENT,OPPD - Cost of Care - City South Blocks,City and South - Long term blocks,Nursing Care
Cambridgeshire County Council,03-Jul-23,51302016568,"3,934.70",ST GEORGE'S COURT,CARE ESTABLISHMENT,OPPD - Cost of Care - City South Blocks,City and South - Long term blocks,Nursing Care
Cambridgeshire County Council,03-Jul-23,51302016543,"3,936.24",RHEOLA HEALTHCARE,CARE ESTABLISHMENT,OPPD - Cost of Care - Huntingdon Blocks,Hunts - Long term blocks,Residential Care
Cambridgeshire County Council,03-Jul-23,51302015357,"3,949.67",STAR CABS LTD,TRADE SUPPLIER,LD - South Locality - Cost of Care,LD - South Cambs - Care,Social Care Transport
Cambridgeshire County Council,03-Jul-23,51302016543,"3,979.36",RHEOLA HEALTHCARE,CARE ESTABLISHMENT,OPPD - Cost of Care - Huntingdon Blocks,Hunts - Long term blocks,Residential Care
Cambridgeshire County Council,03-Jul-23,51302016543,"3,979.36",RHEOLA HEALTHCARE,CARE ESTABLISHMENT,OPPD - Cost of Care - Huntingdon Blocks,Hunts - Long term blocks,Residential Care
Cambridgeshire County Council,03-Jul-23,51302015495,"4,034.02",KRAZYDAYZ PRIVATE DAY NURSERY,NURSERY,Nursery Schools,Early Years - Funded 3s/4s,Care & Ed Childcare Settings
Cambridgeshire County Council,03-Jul-23,51302015440,"4,060.00",T & T PRIVATE HIRE LTD,TRADE SUPPLIER,LAC Transport,LAC Transport - Home to School,Social Care Transport
Cambridgeshire County Council,03-Jul-23,51302016555,"4,137.30",RADIS COMMUNITY CARE,CARE ESTABLISHMENT,OPPD - Cost of Care - East Cambs - Over 65,East Cambs - O P Team - Care,Supported Living
Cambridgeshire County Council,03-Jul-23,51302016555,"4,137.30",RADIS COMMUNITY CARE,CARE ESTABLISHMENT,OPPD - Cost of Care - East Cambs - Over 65,East Cambs - O P Team - Care,Supported Living
Cambridgeshire County Council,03-Jul-23,51302016555,"4,137.30",RADIS COMMUNITY CARE,CARE ESTABLISHMENT,OPPD - Cost of Care - East Cambs - Over 65,East Cambs - O P Team - Care,Supported Living
Cambridgeshire County Council,03-Jul-23,51302016555,"4,137.30",RADIS COMMUNITY CARE,CARE ESTABLISHMENT,OPPD - Cost of Care - East Cambs - Over 65,East Cambs - O P Team - Care,Supported Living
Cambridgeshire County Council,03-Jul-23,51302015435,"4,256.71",T & T PRIVATE HIRE LTD,TRADE SUPPLIER,LD - City Locality - Cost of Care,LD - City - Care,Social Care Transport
Cambridgeshire County Council,03-Jul-23,51302016558,"4,266.73",RADIS COMMUNITY CARE,CARE ESTABLISHMENT,OPPD - Cost of Care - East Cambs - Over 65,East Cambs - O P Team - Care,Supported Living
Cambridgeshire County Council,03-Jul-23,51302016558,"4,266.73",RADIS COMMUNITY CARE,CARE ESTABLISHMENT,OPPD - Cost of Care - East Cambs - Over 65,East Cambs - O P Team - Care,Supported Living
Cambridgeshire County Council,03-Jul-23,51302016558,"4,266.73",RADIS COMMUNITY CARE,CARE ESTABLISHMENT,OPPD - Cost of Care - East Cambs - Over 65,East Cambs - O P Team - Care,Supported Living
Cambridgeshire County Council,03-Jul-23,51302016558,"4,266.73",RADIS COMMUNITY CARE,CARE ESTABLISHMENT,OPPD - Cost of Care - East Cambs - Over 65,East Cambs - O P Team - Care,Supported Living
Cambridgeshire County Council,03-Jul-23,51302016573,"4,288.26",SPRINGFIELD RESIDENTIAL CARE,CARE ESTABLISHMENT,OPPD - Cost of Care - Fenland Blocks,Fenland - Short term blocks,Rehabilitation And Respite Care
Cambridgeshire County Council,03-Jul-23,51302016573,"4,288.26",SPRINGFIELD RESIDENTIAL CARE,CARE ESTABLISHMENT,OPPD - Cost of Care - Fenland Blocks,Fenland - Short term blocks,Rehabilitation And Respite Care
Cambridgeshire County Council,03-Jul-23,51302016573,"4,288.26",SPRINGFIELD RESIDENTIAL CARE,CARE ESTABLISHMENT,OPPD - Cost of Care - Fenland Blocks,Fenland - Short term blocks,Rehabilitation And Respite Care
Cambridgeshire County Council,03-Jul-23,51302016573,"4,288.26",SPRINGFIELD RESIDENTIAL CARE,CARE ESTABLISHMENT,OPPD - Cost of Care - Fenland Blocks,Fenland - Short term blocks,Rehabilitation And Respite Care
Cambridgeshire County Council,03-Jul-23,51302016548,"4,312.00",SWAN HOUSE NURSING & RESIDENTIAL HOME,CARE ESTABLISHMENT,OPPD - Cost of Care - Fenland Blocks,Fenland - Long term blocks,Nursing Care
Cambridgeshire County Council,03-Jul-23,51302016548,"4,312.00",SWAN HOUSE NURSING & RESIDENTIAL HOME,CARE ESTABLISHMENT,OPPD - Cost of Care - Fenland Blocks,Fenland - Long term blocks,Nursing Care
Cambridgeshire County Council,03-Jul-23,51302016548,"4,312.00",SWAN HOUSE NURSING & RESIDENTIAL HOME,CARE ESTABLISHMENT,OPPD - Cost of Care - Fenland Blocks,Fenland - Long term blocks,Nursing Care
Cambridgeshire County Council,03-Jul-23,51302016548,"4,312.00",SWAN HOUSE NURSING & RESIDENTIAL HOME,CARE ESTABLISHMENT,OPPD - Cost of Care - Fenland Blocks,Fenland - Long term blocks,Nursing Care
Cambridgeshire County Council,03-Jul-23,51302016551,"4,312.00",GLENNFIELD CARE CENTRE (OP),CARE ESTABLISHMENT,OPPD - Cost of Care - Fenland Blocks,Fenland - Long term blocks,Nursing Care
Cambridgeshire County Council,03-Jul-23,51302016551,"4,312.00",GLENNFIELD CARE CENTRE (OP),CARE ESTABLISHMENT,OPPD - Cost of Care - Fenland Blocks,Fenland - Long term blocks,Nursing Care
Cambridgeshire County Council,03-Jul-23,51302016551,"4,312.00",GLENNFIELD CARE CENTRE (OP),CARE ESTABLISHMENT,OPPD - Cost of Care - Fenland Blocks,Fenland - Long term blocks,Nursing Care
Cambridgeshire County Council,03-Jul-23,51302016551,"4,312.00",GLENNFIELD CARE CENTRE (OP),CARE ESTABLISHMENT,OPPD - Cost of Care - Fenland Blocks,Fenland - Long term blocks,Nursing Care
Cambridgeshire County Council,03-Jul-23,51302016597,"4,372.82",RADIS COMMUNITY CARE,CARE ESTABLISHMENT,OPPD - Cost of Care - City South - Over 65,Older People - City & South - Care,Supported Living
Cambridgeshire County Council,03-Jul-23,51302016597,"4,372.82",RADIS COMMUNITY CARE,CARE ESTABLISHMENT,OPPD - Cost of Care - City South - Over 65,Older People - City & South - Care,Supported Living
Cambridgeshire County Council,03-Jul-23,51302016597,"4,372.82",RADIS COMMUNITY CARE,CARE ESTABLISHMENT,OPPD - Cost of Care - City South - Over 65,Older People - City & South - Care,Supported Living
Cambridgeshire County Council,03-Jul-23,51302016551,"4,473.70",GLENNFIELD CARE CENTRE (OP),CARE ESTABLISHMENT,OPPD - Cost of Care - Fenland Blocks,Fenland - Long term blocks,Nursing Care
Cambridgeshire County Council,03-Jul-23,51302016551,"4,473.70",GLENNFIELD CARE CENTRE (OP),CARE ESTABLISHMENT,OPPD - Cost of Care - Fenland Blocks,Fenland - Long term blocks,Nursing Care
Cambridgeshire County Council,03-Jul-23,51302016551,"4,473.70",GLENNFIELD CARE CENTRE (OP),CARE ESTABLISHMENT,OPPD - Cost of Care - Fenland Blocks,Fenland - Long term blocks,Nursing Care
Cambridgeshire County Council,03-Jul-23,51302016551,"4,473.70",GLENNFIELD CARE CENTRE (OP),CARE ESTABLISHMENT,OPPD - Cost of Care - Fenland Blocks,Fenland - Long term blocks,Nursing Care
Cambridgeshire County Council,03-Jul-23,51302015327,"4,536.00",ADAMS CABS,TRADE SUPPLIER,LD - Young Adults Team,LD - Young Adults - Care,Social Care Transport
Cambridgeshire County Council,03-Jul-23,51302015372,"4,536.00",RAY-AL COACHES LTD,TRADE SUPPLIER,LD - Hunts Locality - Cost of Care,LD - Huntingdonshire - Care,Social Care Transport
Cambridgeshire County Council,03-Jul-23,51302016564,"4,554.55",ETHELDRED HOUSE,CARE ESTABLISHMENT,OPPD - Cost of Care - City South Blocks,City and South - Long term blocks,Nursing Care
Cambridgeshire County Council,03-Jul-23,51302016564,"4,554.55",ETHELDRED HOUSE,CARE ESTABLISHMENT,OPPD - Cost of Care - City South Blocks,City and South - Long term blocks,Nursing Care
Cambridgeshire County Council,03-Jul-23,51302016564,"4,554.55",ETHELDRED HOUSE,CARE ESTABLISHMENT,OPPD - Cost of Care - City South Blocks,City and South - Long term blocks,Nursing Care
Cambridgeshire County Council,03-Jul-23,51302016564,"4,554.55",ETHELDRED HOUSE,CARE ESTABLISHMENT,OPPD - Cost of Care - City South Blocks,City and South - Long term blocks,Nursing Care
Cambridgeshire County Council,03-Jul-23,51302015307,"4,627.20",WEIGHTMANS LLP,TRADE SUPPLIER,Guided Busway - Litigation costs,Guided Bus,External Legal Fees
Cambridgeshire County Council,03-Jul-23,51302016586,"4,717.81",Careuk247 Home Care Ltd,COMPANY,Commissioning - Dom Cars,Hancock-Funded Dom-Cars,Domiciliary Care
Cambridgeshire County Council,03-Jul-23,51302016586,"4,717.81",Careuk247 Home Care Ltd,COMPANY,Commissioning - Dom Cars,Hancock-Funded Dom-Cars,Domiciliary Care
Cambridgeshire County Council,03-Jul-23,51302016586,"4,717.81",Careuk247 Home Care Ltd,COMPANY,Commissioning - Dom Cars,Hancock-Funded Dom-Cars,Domiciliary Care
Cambridgeshire County Council,03-Jul-23,51302016586,"4,717.81",Careuk247 Home Care Ltd,COMPANY,Commissioning - Dom Cars,Hancock-Funded Dom-Cars,Domiciliary Care
Cambridgeshire County Council,03-Jul-23,51302016585,"4,727.05",Maven Healthcare,CARE ESTABLISHMENT,OPPD - Cost of Care - City South Blocks,City and South - Long term blocks,Nursing Care
Cambridgeshire County Council,03-Jul-23,51302016585,"4,727.05",Maven Healthcare,CARE ESTABLISHMENT,OPPD - Cost of Care - City South Blocks,City and South - Long term blocks,Nursing Care
Cambridgeshire County Council,03-Jul-23,51302016585,"4,727.05",Maven Healthcare,CARE ESTABLISHMENT,OPPD - Cost of Care - City South Blocks,City and South - Long term blocks,Nursing Care
Cambridgeshire County Council,03-Jul-23,51302016585,"4,727.05",Maven Healthcare,CARE ESTABLISHMENT,OPPD - Cost of Care - City South Blocks,City and South - Long term blocks,Nursing Care
Cambridgeshire County Council,03-Jul-23,51302016592,"4,758.97",MEARS CARE LTD,CARE ESTABLISHMENT,OPPD - Cost of Care - Fenland - Over 65,Older People - Fenland - Care,Supported Living
Cambridgeshire County Council,03-Jul-23,51302016592,"4,758.97",MEARS CARE LTD,CARE ESTABLISHMENT,OPPD - Cost of Care - Fenland - Over 65,Older People - Fenland - Care,Supported Living
Cambridgeshire County Council,03-Jul-23,51302016592,"4,758.97",MEARS CARE LTD,CARE ESTABLISHMENT,OPPD - Cost of Care - Fenland - Over 65,Older People - Fenland - Care,Supported Living
Cambridgeshire County Council,03-Jul-23,51302016592,"4,758.97",MEARS CARE LTD,CARE ESTABLISHMENT,OPPD - Cost of Care - Fenland - Over 65,Older People - Fenland - Care,Supported Living
Cambridgeshire County Council,03-Jul-23,51302010736,"4,800.00",EAQ,EDUCATION,Out of School Tuition,Out of School Provision EHCPs,Independent School Placements
Cambridgeshire County Council,03-Jul-23,51302008155,"4,808.16",STM Environmental Consultants Ltd,COMPANY,Flood Risk Management,Flood Team,Computer software - purchase
Cambridgeshire County Council,03-Jul-23,51302015378,"4,839.72",J&A Airport Transport Service,TRADE SUPPLIER,LAC Transport,LAC Transport - Home to School,Social Care Transport
Cambridgeshire County Council,03-Jul-23,51302016590,"4,871.23",TCS Medicare Ltd (Trinity care),CARE ESTABLISHMENT,Commissioning - Dom Cars,Hancock-Funded Dom-Cars,Domiciliary Care
Cambridgeshire County Council,03-Jul-23,51302016590,"4,871.23",TCS Medicare Ltd (Trinity care),CARE ESTABLISHMENT,Commissioning - Dom Cars,Hancock-Funded Dom-Cars,Domiciliary Care
Cambridgeshire County Council,03-Jul-23,51302016590,"4,871.23",TCS Medicare Ltd (Trinity care),CARE ESTABLISHMENT,Commissioning - Dom Cars,Hancock-Funded Dom-Cars,Domiciliary Care
Cambridgeshire County Council,03-Jul-23,51302016590,"4,871.23",TCS Medicare Ltd (Trinity care),CARE ESTABLISHMENT,Commissioning - Dom Cars,Hancock-Funded Dom-Cars,Domiciliary Care
Cambridgeshire County Council,03-Jul-23,51302014805,"4,890.78",Pathfinder Legal Services Limited,TRADE SUPPLIER,Legal Proceedings,Legal Proceedings,External Legal Fees
Cambridgeshire County Council,03-Jul-23,51302013903,"4,914.78",MOTT MACDONALD LTD,TRADE SUPPLIER,Emergency Active Travel Fund,Emergency Active Travel Fund,Construction - External Professional Fees
Cambridgeshire County Council,03-Jul-23,51302013403,"4,932.00",IFABS Building Services Ltd,COMPANY,GCP - Milton Rd Bus and Cycling Priority,GCP - Milton Rd Bus and Cycling Priority,Construction - External Professional Fees
Cambridgeshire County Council,03-Jul-23,51302015350,"4,968.00",Street Cars (Cambs) LTD,COMPANY,LD - Young Adults Team,LD - Young Adults - Care,Social Care Transport
Cambridgeshire County Council,03-Jul-23,51302015428,"4,972.00",T & T PRIVATE HIRE LTD,TRADE SUPPLIER,LAC Transport,LAC Transport  - Contact Visits,Social Care Transport
Cambridgeshire County Council,03-Jul-23,51302002833,"5,000.00",Stevenage Borough Council,OTHER PUBLIC BODIES,Domestic Violence & Sexual Violence,DLUHC Grant,Professional Fees and Hired Services
Cambridgeshire County Council,03-Jul-23,51302016556,"5,132.87",RADIS COMMUNITY CARE,CARE ESTABLISHMENT,OPPD - Cost of Care - Huntingdon - Over 65,Hunts OP Team - Care,Supported Living
Cambridgeshire County Council,03-Jul-23,51302016556,"5,132.87",RADIS COMMUNITY CARE,CARE ESTABLISHMENT,OPPD - Cost of Care - Huntingdon - Over 65,Hunts OP Team - Care,Supported Living
Cambridgeshire County Council,03-Jul-23,51302016556,"5,132.87",RADIS COMMUNITY CARE,CARE ESTABLISHMENT,OPPD - Cost of Care - Huntingdon - Over 65,Hunts OP Team - Care,Supported Living
Cambridgeshire County Council,03-Jul-23,51302016556,"5,132.87",RADIS COMMUNITY CARE,CARE ESTABLISHMENT,OPPD - Cost of Care - Huntingdon - Over 65,Hunts OP Team - Care,Supported Living
Cambridgeshire County Council,03-Jul-23,51302016573,"5,221.86",SPRINGFIELD RESIDENTIAL CARE,CARE ESTABLISHMENT,OPPD - Cost of Care - Fenland Blocks,Fenland - Short term blocks,Rehabilitation And Respite Care
Cambridgeshire County Council,03-Jul-23,51302016573,"5,221.86",SPRINGFIELD RESIDENTIAL CARE,CARE ESTABLISHMENT,OPPD - Cost of Care - Fenland Blocks,Fenland - Short term blocks,Rehabilitation And Respite Care
Cambridgeshire County Council,03-Jul-23,51302016573,"5,221.86",SPRINGFIELD RESIDENTIAL CARE,CARE ESTABLISHMENT,OPPD - Cost of Care - Fenland Blocks,Fenland - Short term blocks,Rehabilitation And Respite Care
Cambridgeshire County Council,03-Jul-23,51302016573,"5,221.86",SPRINGFIELD RESIDENTIAL CARE,CARE ESTABLISHMENT,OPPD - Cost of Care - Fenland Blocks,Fenland - Short term blocks,Rehabilitation And Respite Care
Cambridgeshire County Council,03-Jul-23,51302016553,"5,282.20",Southwell Court,CARE ESTABLISHMENT,OPPD - Cost of Care - City South Blocks,City and South - Short term blocks,Rehabilitation And Respite Care
Cambridgeshire County Council,03-Jul-23,51302016553,"5,282.20",Southwell Court,CARE ESTABLISHMENT,OPPD - Cost of Care - City South Blocks,City and South - Short term blocks,Rehabilitation And Respite Care
Cambridgeshire County Council,03-Jul-23,51302016553,"5,282.20",Southwell Court,CARE ESTABLISHMENT,OPPD - Cost of Care - City South Blocks,City and South - Short term blocks,Rehabilitation And Respite Care
Cambridgeshire County Council,03-Jul-23,51302016553,"5,282.20",Southwell Court,CARE ESTABLISHMENT,OPPD - Cost of Care - City South Blocks,City and South - Short term blocks,Rehabilitation And Respite Care
Cambridgeshire County Council,03-Jul-23,51302007325,"5,376.00",MKA Ecology Ltd,COMPANY,Greenspaces,Greenspaces,Professional Fees and Hired Services
Cambridgeshire County Council,03-Jul-23,51302016557,"5,396.53",RADIS COMMUNITY CARE,CARE ESTABLISHMENT,OPPD - Cost of Care - East Cambs - Over 65,East Cambs - O P Team - Care,Supported Living
Cambridgeshire County Council,03-Jul-23,51302016557,"5,396.53",RADIS COMMUNITY CARE,CARE ESTABLISHMENT,OPPD - Cost of Care - East Cambs - Over 65,East Cambs - O P Team - Care,Supported Living
Cambridgeshire County Council,03-Jul-23,51302016557,"5,396.53",RADIS COMMUNITY CARE,CARE ESTABLISHMENT,OPPD - Cost of Care - East Cambs - Over 65,East Cambs - O P Team - Care,Supported Living
Cambridgeshire County Council,03-Jul-23,51302016557,"5,396.53",RADIS COMMUNITY CARE,CARE ESTABLISHMENT,OPPD - Cost of Care - East Cambs - Over 65,East Cambs - O P Team - Care,Supported Living
Cambridgeshire County Council,03-Jul-23,51302002658,"5,587.20",Tile Hill Interim & Executive Ltd,COMPANY,Strategic Management - Children & Safeguarding,Director of Children & Safeguarding,Agency Staff
Cambridgeshire County Council,03-Jul-23,51302015305,"5,634.34",Studio III Clinical Services,COMPANY,Early Years Specialist Support,SEND - Independent Therapy,Independent School Placements
Cambridgeshire County Council,03-Jul-23,51302009170,"5,643.44",Acorn Care & Education Ltd,EDUCATION,SEN Placements,Independent Education Placements,Independent School Placements
Cambridgeshire County Council,03-Jul-23,51302016548,"5,717.68",SWAN HOUSE NURSING & RESIDENTIAL HOME,CARE ESTABLISHMENT,OPPD - Cost of Care - Fenland Blocks,Fenland - Long term blocks,Nursing Care
Cambridgeshire County Council,03-Jul-23,51302016548,"5,717.68",SWAN HOUSE NURSING & RESIDENTIAL HOME,CARE ESTABLISHMENT,OPPD - Cost of Care - Fenland Blocks,Fenland - Long term blocks,Nursing Care
Cambridgeshire County Council,03-Jul-23,51302016548,"5,717.68",SWAN HOUSE NURSING & RESIDENTIAL HOME,CARE ESTABLISHMENT,OPPD - Cost of Care - Fenland Blocks,Fenland - Long term blocks,Nursing Care
Cambridgeshire County Council,03-Jul-23,51302016548,"5,717.68",SWAN HOUSE NURSING & RESIDENTIAL HOME,CARE ESTABLISHMENT,OPPD - Cost of Care - Fenland Blocks,Fenland - Long term blocks,Nursing Care
Cambridgeshire County Council,03-Jul-23,51302016589,"5,849.32",TCS Medicare Ltd (Trinity care),CARE ESTABLISHMENT,Commissioning - Dom Cars,Hancock-Funded Dom-Cars,Domiciliary Care
Cambridgeshire County Council,03-Jul-23,51302016589,"5,849.32",TCS Medicare Ltd (Trinity care),CARE ESTABLISHMENT,Commissioning - Dom Cars,Hancock-Funded Dom-Cars,Domiciliary Care
Cambridgeshire County Council,03-Jul-23,51302016589,"5,849.32",TCS Medicare Ltd (Trinity care),CARE ESTABLISHMENT,Commissioning - Dom Cars,Hancock-Funded Dom-Cars,Domiciliary Care
Cambridgeshire County Council,03-Jul-23,51302016589,"5,849.32",TCS Medicare Ltd (Trinity care),CARE ESTABLISHMENT,Commissioning - Dom Cars,Hancock-Funded Dom-Cars,Domiciliary Care
Cambridgeshire County Council,03-Jul-23,51302016576,"6,123.04",HARDWICK DENE,CARE ESTABLISHMENT,OPPD - Cost of Care - Huntingdon Blocks,Hunts - Short term blocks,Rehabilitation And Respite Care
Cambridgeshire County Council,03-Jul-23,51302016576,"6,123.04",HARDWICK DENE,CARE ESTABLISHMENT,OPPD - Cost of Care - Huntingdon Blocks,Hunts - Short term blocks,Rehabilitation And Respite Care
Cambridgeshire County Council,03-Jul-23,51302016576,"6,123.04",HARDWICK DENE,CARE ESTABLISHMENT,OPPD - Cost of Care - Huntingdon Blocks,Hunts - Short term blocks,Rehabilitation And Respite Care
Cambridgeshire County Council,03-Jul-23,51302016576,"6,123.04",HARDWICK DENE,CARE ESTABLISHMENT,OPPD - Cost of Care - Huntingdon Blocks,Hunts - Short term blocks,Rehabilitation And Respite Care
Cambridgeshire County Council,03-Jul-23,51302016585,"6,376.37",Maven Healthcare,CARE ESTABLISHMENT,OPPD - Cost of Care - City South Blocks,City and South - Long term blocks,Nursing Care
Cambridgeshire County Council,03-Jul-23,51302016585,"6,376.37",Maven Healthcare,CARE ESTABLISHMENT,OPPD - Cost of Care - City South Blocks,City and South - Long term blocks,Nursing Care
Cambridgeshire County Council,03-Jul-23,51302016585,"6,376.37",Maven Healthcare,CARE ESTABLISHMENT,OPPD - Cost of Care - City South Blocks,City and South - Long term blocks,Nursing Care
Cambridgeshire County Council,03-Jul-23,51302016585,"6,376.37",Maven Healthcare,CARE ESTABLISHMENT,OPPD - Cost of Care - City South Blocks,City and South - Long term blocks,Nursing Care
Cambridgeshire County Council,03-Jul-23,51302015524,"6,873.00",Redacted Personal Data,INDIVIDUAL,Children's Disability Direct Payments,CSC Direct Payments,Direct Payments
Cambridgeshire County Council,03-Jul-23,51302016543,"6,888.42",RHEOLA HEALTHCARE,CARE ESTABLISHMENT,OPPD - Cost of Care - Huntingdon Blocks,Hunts - Long term blocks,Residential Care
Cambridgeshire County Council,03-Jul-23,51302016543,"6,888.42",RHEOLA HEALTHCARE,CARE ESTABLISHMENT,OPPD - Cost of Care - Huntingdon Blocks,Hunts - Long term blocks,Residential Care
Cambridgeshire County Council,03-Jul-23,51302016543,"6,888.42",RHEOLA HEALTHCARE,CARE ESTABLISHMENT,OPPD - Cost of Care - Huntingdon Blocks,Hunts - Long term blocks,Residential Care
Cambridgeshire County Council,03-Jul-23,51302016543,"6,888.42",RHEOLA HEALTHCARE,CARE ESTABLISHMENT,OPPD - Cost of Care - Huntingdon Blocks,Hunts - Long term blocks,Residential Care
Cambridgeshire County Council,03-Jul-23,51302016542,"7,071.68",FORD HOUSE CARE HOME,CARE ESTABLISHMENT,OPPD - Cost of Care - Huntingdon - Over 65,Hunts OP Team - Care,Nursing Care
Cambridgeshire County Council,03-Jul-23,51302016542,"7,071.68",FORD HOUSE CARE HOME,CARE ESTABLISHMENT,OPPD - Cost of Care - Huntingdon - Over 65,Hunts OP Team - Care,Nursing Care
Cambridgeshire County Council,03-Jul-23,51302016542,"7,071.68",FORD HOUSE CARE HOME,CARE ESTABLISHMENT,OPPD - Cost of Care - Huntingdon - Over 65,Hunts OP Team - Care,Nursing Care
Cambridgeshire County Council,03-Jul-23,51302016542,"7,071.68",FORD HOUSE CARE HOME,CARE ESTABLISHMENT,OPPD - Cost of Care - Huntingdon - Over 65,Hunts OP Team - Care,Nursing Care
Cambridgeshire County Council,03-Jul-23,51302015434,"7,086.31",T & T PRIVATE HIRE LTD,TRADE SUPPLIER,LAC Transport,LAC Transport - Out of county,Social Care Transport
Cambridgeshire County Council,03-Jul-23,51302016559,"7,181.21",RADIS COMMUNITY CARE,CARE ESTABLISHMENT,OPPD - Cost of Care - Fenland - Over 65,Older People - Fenland - Care,Supported Living
Cambridgeshire County Council,03-Jul-23,51302016559,"7,181.21",RADIS COMMUNITY CARE,CARE ESTABLISHMENT,OPPD - Cost of Care - Fenland - Over 65,Older People - Fenland - Care,Supported Living
Cambridgeshire County Council,03-Jul-23,51302016559,"7,181.21",RADIS COMMUNITY CARE,CARE ESTABLISHMENT,OPPD - Cost of Care - Fenland - Over 65,Older People - Fenland - Care,Supported Living
Cambridgeshire County Council,03-Jul-23,51302016559,"7,181.21",RADIS COMMUNITY CARE,CARE ESTABLISHMENT,OPPD - Cost of Care - Fenland - Over 65,Older People - Fenland - Care,Supported Living
Cambridgeshire County Council,03-Jul-23,51302016585,"7,287.28",Maven Healthcare,CARE ESTABLISHMENT,OPPD - Cost of Care - City South Blocks,City and South - Long term blocks,Nursing Care
Cambridgeshire County Council,03-Jul-23,51302016585,"7,287.28",Maven Healthcare,CARE ESTABLISHMENT,OPPD - Cost of Care - City South Blocks,City and South - Long term blocks,Nursing Care
Cambridgeshire County Council,03-Jul-23,51302016585,"7,287.28",Maven Healthcare,CARE ESTABLISHMENT,OPPD - Cost of Care - City South Blocks,City and South - Long term blocks,Nursing Care
Cambridgeshire County Council,03-Jul-23,51302016585,"7,287.28",Maven Healthcare,CARE ESTABLISHMENT,OPPD - Cost of Care - City South Blocks,City and South - Long term blocks,Nursing Care
Cambridgeshire County Council,03-Jul-23,51302009301,"7,462.15",Infinigate Cloud UK Ltd,COMPANY,ICT Service,ICT Service Technical Support,Computer software - purchase
Cambridgeshire County Council,03-Jul-23,51302002870,"7,488.00",Tile Hill Interim & Executive Ltd,COMPANY,Strategic Management - Children & Safeguarding,Director of Children & Safeguarding,Agency Staff
Cambridgeshire County Council,03-Jul-23,51302002860,"7,650.00",UNIVERSITY OF BEDFORDSHIRE,EDUCATION,Childrens L&D,Childrens VQ,Subscriptions
Cambridgeshire County Council,03-Jul-23,51302007594,"7,716.00",Hazelton Advisory Ltd,COMPANY,Waste Disposal incl PFI,Waste PFI,Professional Fees and Hired Services
Cambridgeshire County Council,03-Jul-23,51302016545,"7,756.98",FITZWILLIAM HEALTHCARE LTD,CARE ESTABLISHMENT,OPPD - Cost of Care - City South Blocks,City and South - Long term blocks,Residential Care
Cambridgeshire County Council,03-Jul-23,51302014682,"7,762.50",Eddisons Commercial Limited,COMPANY,Environment Fund: Decarbonisation Fund - Council buildings Low Carbon Heating,March Community Centre low carbon heating,Construction - External Professional Fees
Cambridgeshire County Council,03-Jul-23,51302014683,"7,762.50",Eddisons Commercial Limited,COMPANY,Building Maintenance,42 Castle Street CB3 OAJ,Construction - External Professional Fees
Cambridgeshire County Council,03-Jul-23,51302014684,"7,762.50",Eddisons Commercial Limited,COMPANY,Environment Fund: Decarbonisation Fund - Council buildings Low Carbon Heating,Buttsgrove low carbon heating,Construction - External Professional Fees
Cambridgeshire County Council,03-Jul-23,51302014635,"7,762.50",Eddisons Commercial Limited,COMPANY,Environment Fund: Decarbonisation Fund - Council buildings Low Carbon Heating,St Neots Library low carbon heating,Construction - External Professional Fees
Cambridgeshire County Council,03-Jul-23,51302014681,"7,762.50",Eddisons Commercial Limited,COMPANY,Environment Fund: Decarbonisation Fund - Council buildings Low Carbon Heating,Sackville House low carbon heating,Construction - External Professional Fees
Cambridgeshire County Council,03-Jul-23,51302016611,"8,704.33",RTA Associates Ltd,COMPANY,GCP - City Centre Access Project,GCP - City Centre Access Project,Construction - External Professional Fees
Cambridgeshire County Council,03-Jul-23,51302016549,"9,163.00",HUNTERS HEALTHCARE (HUNTERS DOWN),CARE ESTABLISHMENT,OPPD - Cost of Care - Huntingdon Blocks,Hunts - Long term blocks,Nursing Care
Cambridgeshire County Council,03-Jul-23,51302016549,"9,163.00",HUNTERS HEALTHCARE (HUNTERS DOWN),CARE ESTABLISHMENT,OPPD - Cost of Care - Huntingdon Blocks,Hunts - Long term blocks,Nursing Care
Cambridgeshire County Council,03-Jul-23,51302016549,"9,163.00",HUNTERS HEALTHCARE (HUNTERS DOWN),CARE ESTABLISHMENT,OPPD - Cost of Care - Huntingdon Blocks,Hunts - Long term blocks,Nursing Care
Cambridgeshire County Council,03-Jul-23,51302016549,"9,163.00",HUNTERS HEALTHCARE (HUNTERS DOWN),CARE ESTABLISHMENT,OPPD - Cost of Care - Huntingdon Blocks,Hunts - Long term blocks,Nursing Care
Cambridgeshire County Council,03-Jul-23,51302016549,"9,184.56",HUNTERS HEALTHCARE (HUNTERS DOWN),CARE ESTABLISHMENT,OPPD - Cost of Care - Huntingdon Blocks,Hunts - Long term blocks,Nursing Care
Cambridgeshire County Council,03-Jul-23,51302016549,"9,184.56",HUNTERS HEALTHCARE (HUNTERS DOWN),CARE ESTABLISHMENT,OPPD - Cost of Care - Huntingdon Blocks,Hunts - Long term blocks,Nursing Care
Cambridgeshire County Council,03-Jul-23,51302016549,"9,184.56",HUNTERS HEALTHCARE (HUNTERS DOWN),CARE ESTABLISHMENT,OPPD - Cost of Care - Huntingdon Blocks,Hunts - Long term blocks,Nursing Care
Cambridgeshire County Council,03-Jul-23,51302016549,"9,184.56",HUNTERS HEALTHCARE (HUNTERS DOWN),CARE ESTABLISHMENT,OPPD - Cost of Care - Huntingdon Blocks,Hunts - Long term blocks,Nursing Care
Cambridgeshire County Council,03-Jul-23,51302016542,"9,723.56",FORD HOUSE CARE HOME,CARE ESTABLISHMENT,OPPD - Cost of Care - Huntingdon - Over 65,Hunts OP Team - Care,Nursing Care
Cambridgeshire County Council,03-Jul-23,51302016542,"9,723.56",FORD HOUSE CARE HOME,CARE ESTABLISHMENT,OPPD - Cost of Care - Huntingdon - Over 65,Hunts OP Team - Care,Nursing Care
Cambridgeshire County Council,03-Jul-23,51302016542,"9,723.56",FORD HOUSE CARE HOME,CARE ESTABLISHMENT,OPPD - Cost of Care - Huntingdon - Over 65,Hunts OP Team - Care,Nursing Care
Cambridgeshire County Council,03-Jul-23,51302016542,"9,723.56",FORD HOUSE CARE HOME,CARE ESTABLISHMENT,OPPD - Cost of Care - Huntingdon - Over 65,Hunts OP Team - Care,Nursing Care
Cambridgeshire County Council,03-Jul-23,51302016545,"9,892.96",FITZWILLIAM HEALTHCARE LTD,CARE ESTABLISHMENT,OPPD - Cost of Care - City South Blocks,City and South - Long term blocks,Residential Care
Cambridgeshire County Council,03-Jul-23,51302016545,"9,892.96",FITZWILLIAM HEALTHCARE LTD,CARE ESTABLISHMENT,OPPD - Cost of Care - City South Blocks,City and South - Long term blocks,Residential Care
Cambridgeshire County Council,03-Jul-23,51302016543,"9,948.40",RHEOLA HEALTHCARE,CARE ESTABLISHMENT,OPPD - Cost of Care - Huntingdon Blocks,Hunts - Long term blocks,Residential Care
Cambridgeshire County Council,03-Jul-23,51302005518,"10,000.00",RED BALLOON LEARNER CENTRE CAMBRIDGE,EDUCATION,SEN Placements,Independent Education Placements,Independent School Placements
Cambridgeshire County Council,03-Jul-23,51302005520,"10,000.00",RED BALLOON LEARNER CENTRE CAMBRIDGE,EDUCATION,SEN Placements,Independent Education Placements,Independent School Placements
Cambridgeshire County Council,03-Jul-23,51302005521,"10,000.00",RED BALLOON LEARNER CENTRE CAMBRIDGE,EDUCATION,SEN Placements,Independent Education Placements,Independent School Placements
Cambridgeshire County Council,03-Jul-23,51302005496,"10,000.00",RED BALLOON LEARNER CENTRE CAMBRIDGE,EDUCATION,SEN Placements,Independent Education Placements,Independent School Placements
Cambridgeshire County Council,03-Jul-23,51302005497,"10,000.00",RED BALLOON LEARNER CENTRE CAMBRIDGE,EDUCATION,SEN Placements,Independent Education Placements,Independent School Placements
Cambridgeshire County Council,03-Jul-23,51302005498,"10,000.00",RED BALLOON LEARNER CENTRE CAMBRIDGE,EDUCATION,SEN Placements,Independent Education Placements,Independent School Placements
Cambridgeshire County Council,03-Jul-23,51302005500,"10,000.00",RED BALLOON LEARNER CENTRE CAMBRIDGE,EDUCATION,SEN Placements,Independent Education Placements,Independent School Placements
Cambridgeshire County Council,03-Jul-23,51302005502,"10,000.00",RED BALLOON LEARNER CENTRE CAMBRIDGE,EDUCATION,SEN Placements,Independent Education Placements,Independent School Placements
Cambridgeshire County Council,03-Jul-23,51302005517,"10,000.00",RED BALLOON LEARNER CENTRE CAMBRIDGE,EDUCATION,SEN Placements,Independent Education Placements,Independent School Placements
Cambridgeshire County Council,03-Jul-23,51302016546,"10,117.80",BROOK HEALTHCARE,CARE ESTABLISHMENT,OPPD - Cost of Care - City South Blocks,City and South - Long term blocks,Residential Care
Cambridgeshire County Council,03-Jul-23,51302002592,"10,200.00",Link Asset Services,TRADE SUPPLIER,Debt Charges and Interest,Debt Charges General,Investment Consultancy
Cambridgeshire County Council,03-Jul-23,51301994832,"10,332.82",G & S HUTCHINSON LTD,COMPANY,"School Condition, Maintenance & Suitability","School Condition, Maintenance & Suitability",Buildings - Roof
Cambridgeshire County Council,03-Jul-23,51302016564,"10,399.51",ETHELDRED HOUSE,CARE ESTABLISHMENT,OPPD - Cost of Care - City South Blocks,City and South - Long term blocks,Nursing Care
Cambridgeshire County Council,03-Jul-23,51302016564,"10,399.51",ETHELDRED HOUSE,CARE ESTABLISHMENT,OPPD - Cost of Care - City South Blocks,City and South - Long term blocks,Nursing Care
Cambridgeshire County Council,03-Jul-23,51302016564,"10,399.51",ETHELDRED HOUSE,CARE ESTABLISHMENT,OPPD - Cost of Care - City South Blocks,City and South - Long term blocks,Nursing Care
Cambridgeshire County Council,03-Jul-23,51302016564,"10,399.51",ETHELDRED HOUSE,CARE ESTABLISHMENT,OPPD - Cost of Care - City South Blocks,City and South - Long term blocks,Nursing Care
Cambridgeshire County Council,03-Jul-23,51302016543,"10,472.00",RHEOLA HEALTHCARE,CARE ESTABLISHMENT,OPPD - Cost of Care - Huntingdon Blocks,Hunts - Long term blocks,Residential Care
Cambridgeshire County Council,03-Jul-23,51302002589,"11,668.00",DPSMN LTD,TRADE SUPPLIER,SEN Placements,Independent Education Placements,Independent School Placements
Cambridgeshire County Council,03-Jul-23,51302002193,"11,772.06",PETERBOROUGH CITY COUNCIL,OTHER PUBLIC BODIES,Customer Services,Contact Centre - Operations,Redundancy Payments
Cambridgeshire County Council,03-Jul-23,51302005491,"11,850.00",CAMEL PROJECTS (HISTON) LTD,TRADE SUPPLIER,Corporate Offices,Histon Library,Rents and Leases
Cambridgeshire County Council,03-Jul-23,51302015243,"12,138.00",LEICESTERSHIRE COUNTY COUNCIL,OTHER PUBLIC BODIES,Recoupment,Other LA Special Schools & ER,Independent School Placements
Cambridgeshire County Council,03-Jul-23,51302016562,"12,290.33",BUCHAN HEALTHCARE LTD,CARE ESTABLISHMENT,OPPD - Cost of Care - City South Blocks,City and South - Long term blocks,Nursing Care
Cambridgeshire County Council,03-Jul-23,51302016562,"12,290.33",BUCHAN HEALTHCARE LTD,CARE ESTABLISHMENT,OPPD - Cost of Care - City South Blocks,City and South - Long term blocks,Nursing Care
Cambridgeshire County Council,03-Jul-23,51302016562,"12,290.33",BUCHAN HEALTHCARE LTD,CARE ESTABLISHMENT,OPPD - Cost of Care - City South Blocks,City and South - Long term blocks,Nursing Care
Cambridgeshire County Council,03-Jul-23,51302016562,"12,290.33",BUCHAN HEALTHCARE LTD,CARE ESTABLISHMENT,OPPD - Cost of Care - City South Blocks,City and South - Long term blocks,Nursing Care
Cambridgeshire County Council,03-Jul-23,51302016549,"12,375.44",HUNTERS HEALTHCARE (HUNTERS DOWN),CARE ESTABLISHMENT,OPPD - Cost of Care - Huntingdon Blocks,Hunts - Long term blocks,Nursing Care
Cambridgeshire County Council,03-Jul-23,51302016549,"12,375.44",HUNTERS HEALTHCARE (HUNTERS DOWN),CARE ESTABLISHMENT,OPPD - Cost of Care - Huntingdon Blocks,Hunts - Long term blocks,Nursing Care
Cambridgeshire County Council,03-Jul-23,51302016549,"12,375.44",HUNTERS HEALTHCARE (HUNTERS DOWN),CARE ESTABLISHMENT,OPPD - Cost of Care - Huntingdon Blocks,Hunts - Long term blocks,Nursing Care
Cambridgeshire County Council,03-Jul-23,51302016549,"12,375.44",HUNTERS HEALTHCARE (HUNTERS DOWN),CARE ESTABLISHMENT,OPPD - Cost of Care - Huntingdon Blocks,Hunts - Long term blocks,Nursing Care
Cambridgeshire County Council,03-Jul-23,51302007498,"12,386.88",BESA Publications LTD,COMPANY,Facilities Management,Facilities Management,Building Repair and Maintenance
Cambridgeshire County Council,03-Jul-23,51302007467,"12,709.36",Chess Cybersecurity Limited,TRADE SUPPLIER,ICT Service,ICT Service Business Support,Telephone costs
Cambridgeshire County Council,03-Jul-23,51302007559,"13,141.74",ATKINS LTD,COMPANY,Combined Authority Schemes,Combined Authority Schemes,Construction - External Professional Fees
Cambridgeshire County Council,03-Jul-23,51302016568,"13,235.74",ST GEORGE'S COURT,CARE ESTABLISHMENT,OPPD - Cost of Care - City South Blocks,City and South - Long term blocks,Nursing Care
Cambridgeshire County Council,03-Jul-23,51302016568,"13,235.74",ST GEORGE'S COURT,CARE ESTABLISHMENT,OPPD - Cost of Care - City South Blocks,City and South - Long term blocks,Nursing Care
Cambridgeshire County Council,03-Jul-23,51302016568,"13,235.74",ST GEORGE'S COURT,CARE ESTABLISHMENT,OPPD - Cost of Care - City South Blocks,City and South - Long term blocks,Nursing Care
Cambridgeshire County Council,03-Jul-23,51302016568,"13,235.74",ST GEORGE'S COURT,CARE ESTABLISHMENT,OPPD - Cost of Care - City South Blocks,City and South - Long term blocks,Nursing Care
Cambridgeshire County Council,03-Jul-23,51302016561,"13,320.04",RADIS COMMUNITY CARE,CARE ESTABLISHMENT,OPPD - Cost of Care - City South - Over 65,Older People - City & South - Care,Supported Living
Cambridgeshire County Council,03-Jul-23,51302016561,"13,320.04",RADIS COMMUNITY CARE,CARE ESTABLISHMENT,OPPD - Cost of Care - City South - Over 65,Older People - City & South - Care,Supported Living
Cambridgeshire County Council,03-Jul-23,51302016561,"13,320.04",RADIS COMMUNITY CARE,CARE ESTABLISHMENT,OPPD - Cost of Care - City South - Over 65,Older People - City & South - Care,Supported Living
Cambridgeshire County Council,03-Jul-23,51302016561,"13,320.04",RADIS COMMUNITY CARE,CARE ESTABLISHMENT,OPPD - Cost of Care - City South - Over 65,Older People - City & South - Care,Supported Living
Cambridgeshire County Council,03-Jul-23,51302016546,"13,377.98",BROOK HEALTHCARE,CARE ESTABLISHMENT,OPPD - Cost of Care - City South Blocks,City and South - Long term blocks,Residential Care
Cambridgeshire County Council,03-Jul-23,51302016550,"13,663.65",COTTENHAM COURT NURSING HOME,CARE ESTABLISHMENT,OPPD - Cost of Care - City South Blocks,City and South - Long term blocks,Nursing Care
Cambridgeshire County Council,03-Jul-23,51302016550,"13,663.65",COTTENHAM COURT NURSING HOME,CARE ESTABLISHMENT,OPPD - Cost of Care - City South Blocks,City and South - Long term blocks,Nursing Care
Cambridgeshire County Council,03-Jul-23,51302016550,"13,663.65",COTTENHAM COURT NURSING HOME,CARE ESTABLISHMENT,OPPD - Cost of Care - City South Blocks,City and South - Long term blocks,Nursing Care
Cambridgeshire County Council,03-Jul-23,51302016550,"13,663.65",COTTENHAM COURT NURSING HOME,CARE ESTABLISHMENT,OPPD - Cost of Care - City South Blocks,City and South - Long term blocks,Nursing Care
Cambridgeshire County Council,03-Jul-23,51302016543,"13,927.76",RHEOLA HEALTHCARE,CARE ESTABLISHMENT,OPPD - Cost of Care - Huntingdon Blocks,Hunts - Long term blocks,Residential Care
Cambridgeshire County Council,03-Jul-23,51302016543,"13,927.76",RHEOLA HEALTHCARE,CARE ESTABLISHMENT,OPPD - Cost of Care - Huntingdon Blocks,Hunts - Long term blocks,Residential Care
Cambridgeshire County Council,03-Jul-23,51302016543,"13,927.76",RHEOLA HEALTHCARE,CARE ESTABLISHMENT,OPPD - Cost of Care - Huntingdon Blocks,Hunts - Long term blocks,Residential Care
Cambridgeshire County Council,03-Jul-23,51302016543,"13,927.76",RHEOLA HEALTHCARE,CARE ESTABLISHMENT,OPPD - Cost of Care - Huntingdon Blocks,Hunts - Long term blocks,Residential Care
Cambridgeshire County Council,03-Jul-23,51302016543,"13,927.76",RHEOLA HEALTHCARE,CARE ESTABLISHMENT,OPPD - Cost of Care - Huntingdon Blocks,Hunts - Long term blocks,Residential Care
Cambridgeshire County Council,03-Jul-23,51302016543,"13,927.76",RHEOLA HEALTHCARE,CARE ESTABLISHMENT,OPPD - Cost of Care - Huntingdon Blocks,Hunts - Long term blocks,Residential Care
Cambridgeshire County Council,03-Jul-23,51302016543,"13,927.76",RHEOLA HEALTHCARE,CARE ESTABLISHMENT,OPPD - Cost of Care - Huntingdon Blocks,Hunts - Long term blocks,Residential Care
Cambridgeshire County Council,03-Jul-23,51302016543,"13,927.76",RHEOLA HEALTHCARE,CARE ESTABLISHMENT,OPPD - Cost of Care - Huntingdon Blocks,Hunts - Long term blocks,Residential Care
Cambridgeshire County Council,03-Jul-23,51302016546,"14,164.92",BROOK HEALTHCARE,CARE ESTABLISHMENT,OPPD - Cost of Care - City South Blocks,City and South - Long term blocks,Residential Care
Cambridgeshire County Council,03-Jul-23,51302016546,"14,164.92",BROOK HEALTHCARE,CARE ESTABLISHMENT,OPPD - Cost of Care - City South Blocks,City and South - Long term blocks,Residential Care
Cambridgeshire County Council,03-Jul-23,51302016543,"14,660.80",RHEOLA HEALTHCARE,CARE ESTABLISHMENT,OPPD - Cost of Care - Huntingdon Blocks,Hunts - Long term blocks,Residential Care
Cambridgeshire County Council,03-Jul-23,51302016543,"14,660.80",RHEOLA HEALTHCARE,CARE ESTABLISHMENT,OPPD - Cost of Care - Huntingdon Blocks,Hunts - Long term blocks,Residential Care
Cambridgeshire County Council,03-Jul-23,51302007933,"15,498.00",Keys PCE Ltd,CARE ESTABLISHMENT,SEN Placements,Independent Education Placements,Independent School Placements
Cambridgeshire County Council,03-Jul-23,51302016545,"18,099.62",FITZWILLIAM HEALTHCARE LTD,CARE ESTABLISHMENT,OPPD - Cost of Care - City South Blocks,City and South - Long term blocks,Residential Care
Cambridgeshire County Council,03-Jul-23,51302016545,"18,099.62",FITZWILLIAM HEALTHCARE LTD,CARE ESTABLISHMENT,OPPD - Cost of Care - City South Blocks,City and South - Long term blocks,Residential Care
Cambridgeshire County Council,03-Jul-23,51302016545,"18,099.62",FITZWILLIAM HEALTHCARE LTD,CARE ESTABLISHMENT,OPPD - Cost of Care - City South Blocks,City and South - Long term blocks,Residential Care
Cambridgeshire County Council,03-Jul-23,51302016544,"18,886.56",PRIMROSE HEALTHCARE,CARE ESTABLISHMENT,OPPD - Cost of Care - City South Blocks,City and South - Long term blocks,Residential Care
Cambridgeshire County Council,03-Jul-23,51302016544,"18,886.56",PRIMROSE HEALTHCARE,CARE ESTABLISHMENT,OPPD - Cost of Care - City South Blocks,City and South - Long term blocks,Residential Care
Cambridgeshire County Council,03-Jul-23,51302016544,"18,886.56",PRIMROSE HEALTHCARE,CARE ESTABLISHMENT,OPPD - Cost of Care - City South Blocks,City and South - Long term blocks,Residential Care
Cambridgeshire County Council,03-Jul-23,51302016544,"18,886.56",PRIMROSE HEALTHCARE,CARE ESTABLISHMENT,OPPD - Cost of Care - City South Blocks,City and South - Long term blocks,Residential Care
Cambridgeshire County Council,03-Jul-23,51302016562,"20,040.02",BUCHAN HEALTHCARE LTD,CARE ESTABLISHMENT,OPPD - Cost of Care - City South Blocks,City and South - Long term blocks,Nursing Care
Cambridgeshire County Council,03-Jul-23,51302016562,"20,040.02",BUCHAN HEALTHCARE LTD,CARE ESTABLISHMENT,OPPD - Cost of Care - City South Blocks,City and South - Long term blocks,Nursing Care
Cambridgeshire County Council,03-Jul-23,51302016562,"20,040.02",BUCHAN HEALTHCARE LTD,CARE ESTABLISHMENT,OPPD - Cost of Care - City South Blocks,City and South - Long term blocks,Nursing Care
Cambridgeshire County Council,03-Jul-23,51302016562,"20,040.02",BUCHAN HEALTHCARE LTD,CARE ESTABLISHMENT,OPPD - Cost of Care - City South Blocks,City and South - Long term blocks,Nursing Care
Cambridgeshire County Council,03-Jul-23,51302016562,"20,040.02",BUCHAN HEALTHCARE LTD,CARE ESTABLISHMENT,OPPD - Cost of Care - City South Blocks,City and South - Long term blocks,Nursing Care
Cambridgeshire County Council,03-Jul-23,51302016562,"20,040.02",BUCHAN HEALTHCARE LTD,CARE ESTABLISHMENT,OPPD - Cost of Care - City South Blocks,City and South - Long term blocks,Nursing Care
Cambridgeshire County Council,03-Jul-23,51302016562,"20,040.02",BUCHAN HEALTHCARE LTD,CARE ESTABLISHMENT,OPPD - Cost of Care - City South Blocks,City and South - Long term blocks,Nursing Care
Cambridgeshire County Council,03-Jul-23,51302007497,"21,537.65",CAE Technology Servcies,COMPANY,ICT Service,ICT Service Sales,Materials for resale
Cambridgeshire County Council,03-Jul-23,51302002659,"22,169.00",CAMBRIDGESHIRE POLICE AND CRIME COMMISSIONER,OTHER PUBLIC BODIES,Domestic Violence & Sexual Violence,DLUHC Grant,Joint Partnership Funding
Cambridgeshire County Council,03-Jul-23,51302016568,"31,881.85",ST GEORGE'S COURT,CARE ESTABLISHMENT,OPPD - Cost of Care - City South Blocks,City and South - Long term blocks,Nursing Care
Cambridgeshire County Council,03-Jul-23,51302016568,"31,881.85",ST GEORGE'S COURT,CARE ESTABLISHMENT,OPPD - Cost of Care - City South Blocks,City and South - Long term blocks,Nursing Care
Cambridgeshire County Council,03-Jul-23,51302016568,"31,881.85",ST GEORGE'S COURT,CARE ESTABLISHMENT,OPPD - Cost of Care - City South Blocks,City and South - Long term blocks,Nursing Care
Cambridgeshire County Council,03-Jul-23,51302016568,"31,881.85",ST GEORGE'S COURT,CARE ESTABLISHMENT,OPPD - Cost of Care - City South Blocks,City and South - Long term blocks,Nursing Care
Cambridgeshire County Council,03-Jul-23,51302002868,"34,080.00",Tile Hill Interim & Executive Ltd,COMPANY,Executive Director AHC,"Executive Director - Adults, Health & Comissioning",Agency Staff
Cambridgeshire County Council,03-Jul-23,51302002588,"35,163.86",ATKINS LTD,COMPANY,Waterbeach Barracks Primary School,Waterbeach Barracks Primary,Construction - External Professional Fees
Cambridgeshire County Council,03-Jul-23,51302013905,"40,031.98",Wrightspace Ltd,COMPANY,Temporary Accommodation,Temporary Accommodation,Mobile - Buildings
Cambridgeshire County Council,03-Jul-23,51302007516,"57,979.20",CAE Technology Servcies,COMPANY,ICT Service,ICT Service Sales,Materials for resale
Cambridgeshire County Council,03-Jul-23,51302015476,"72,672.00",Rendel Limited,COMPANY,Guided Busway - Litigation costs,Guided Bus,External Legal Fees
Cambridgeshire County Council,03-Jul-23,51302007510,"74,208.43",CAE Technology Servcies,COMPANY,ICT Service,ICT Service Sales,Materials for resale
Cambridgeshire County Council,03-Jul-23,51302002864,"110,953.00",CENTRE 33,CHARITY,Early intervention and provention contracts,Carers Commissioning,Professional Fees and Hired Services
Cambridgeshire County Council,03-Jul-23,51302014153,"123,846.00",TIME QUANTUM EXPERT FORENSICS LTD,TRADE SUPPLIER,Guided Busway - Litigation costs,Guided Bus,External Legal Fees
Cambridgeshire County Council,03-Jul-23,51302014130,"143,234.82",BOUYGUES EES FM UK LTD,COMPANY,Large Energy Projects - Park & Ride,Smart Energy Grid Demonstrator scheme at the St Ives Park and Ride,Construction - External Professional Fees
Cambridgeshire County Council,03-Jul-23,51302007595,"151,755.90",ATKINS LTD,COMPANY,GCP - Cambridge South East (A1307),GCP - Cambridge South East (A1307),Construction - External Professional Fees
Cambridgeshire County Council,03-Jul-23,51302009178,"301,170.48",EUROVIA INFRASTRUCTURE LIMITED,COMPANY,PD - Major Scheme delivery,MID - Major Scheme delivery,Construction - External Professional Fees
Cambridgeshire County Council,03-Jul-23,51302015225,"429,527.23",OPUS LGSS (PEOPLE SOLUTIONS) LTD,TRADE SUPPLIER,Corporate Services Default,Opus agency charges - central allocation,Agency Staff
Cambridgeshire County Council,05-Jul-23,51302014819,"-175,709.59",Atalian Servest Ltd,COMPANY,Corporate Offices,County Offices General,Grounds Maintenance
Cambridgeshire County Council,05-Jul-23,51302008253,"-5,568.00",OUTSPOKEN CYCLES LTD,TRADE SUPPLIER,Road Safety,"Education, Training and Publicity",Professional Fees and Hired Services
Cambridgeshire County Council,05-Jul-23,51302016541,"-4,745.37",BROOKFIELD CARE (Radis Commnity Care),CARE ESTABLISHMENT,Commissioning - Dom Cars,Hunts - Dom Blocks,Domiciliary Care
Cambridgeshire County Council,05-Jul-23,51302016541,"-4,745.37",BROOKFIELD CARE (Radis Commnity Care),CARE ESTABLISHMENT,Commissioning - Dom Cars,Hunts - Dom Blocks,Domiciliary Care
Cambridgeshire County Council,05-Jul-23,51302017636,"-1,824.52",Redacted Personal Data,SERVICE USER,LD - City Locality - Cost of Care,LD - City - Care,Direct Payments
Cambridgeshire County Council,05-Jul-23,51302017636,"-1,824.52",Redacted Personal Data,SERVICE USER,LD - City Locality - Cost of Care,LD - City - Care,Direct Payments
Cambridgeshire County Council,05-Jul-23,51302017636,"-1,824.52",Redacted Personal Data,SERVICE USER,LD - City Locality - Cost of Care,LD - City - Care,Direct Payments
Cambridgeshire County Council,05-Jul-23,51302017636,"-1,824.52",Redacted Personal Data,SERVICE USER,LD - City Locality - Cost of Care,LD - City - Care,Direct Payments
Cambridgeshire County Council,05-Jul-23,51302017636,"-1,824.52",Redacted Personal Data,SERVICE USER,LD - City Locality - Cost of Care,LD - City - Care,Direct Payments
Cambridgeshire County Council,05-Jul-23,51302017636,"-1,563.87",Redacted Personal Data,SERVICE USER,LD - City Locality - Cost of Care,LD - City - Care,Direct Payments
Cambridgeshire County Council,05-Jul-23,51302017314,"-1,201.24",Redacted Personal Data,INDIVIDUAL,AMH Hunts and Fens - care,E Cambs & Fenland Mental Health Team,Direct Payments
Cambridgeshire County Council,05-Jul-23,51302017015,-709.41,Redacted Personal Data,SERVICE USER,LD - South Locality - Cost of Care,LD - South Cambs - Care,Direct Payments
Cambridgeshire County Council,05-Jul-23,51302017015,-709.41,Redacted Personal Data,SERVICE USER,LD - South Locality - Cost of Care,LD - South Cambs - Care,Direct Payments
Cambridgeshire County Council,05-Jul-23,51302016541,-677.91,BROOKFIELD CARE (Radis Commnity Care),CARE ESTABLISHMENT,Commissioning - Dom Cars,Hunts - Dom Blocks,Domiciliary Care
Cambridgeshire County Council,05-Jul-23,51301999674,-666.45,Redacted Personal Data,INDIVIDUAL,OPPD - Cost of Care - City South - Over 65,Older People - City & South - Care,Direct Payments
Cambridgeshire County Council,05-Jul-23,51302017616,-666.45,Redacted Personal Data,INDIVIDUAL,OPPD - Cost of Care - City South - Over 65,Older People - City & South - Care,Direct Payments
Cambridgeshire County Council,05-Jul-23,51302017616,-666.45,Redacted Personal Data,INDIVIDUAL,OPPD - Cost of Care - City South - Over 65,Older People - City & South - Care,Direct Payments
Cambridgeshire County Council,05-Jul-23,51301999674,-666.45,Redacted Personal Data,INDIVIDUAL,OPPD - Cost of Care - City South - Over 65,Older People - City & South - Care,Direct Payments
Cambridgeshire County Council,05-Jul-23,51301999674,-666.45,Redacted Personal Data,INDIVIDUAL,OPPD - Cost of Care - City South - Over 65,Older People - City & South - Care,Direct Payments
Cambridgeshire County Council,05-Jul-23,51301999674,-666.45,Redacted Personal Data,INDIVIDUAL,OPPD - Cost of Care - City South - Over 65,Older People - City & South - Care,Direct Payments
Cambridgeshire County Council,05-Jul-23,51302017550,501.36,Redacted Personal Data,SERVICE USER,LD - Hunts Locality - Cost of Care,LD - Huntingdonshire - Care,Direct Payments
Cambridgeshire County Council,05-Jul-23,51302017550,501.36,Redacted Personal Data,SERVICE USER,LD - Hunts Locality - Cost of Care,LD - Huntingdonshire - Care,Direct Payments
Cambridgeshire County Council,05-Jul-23,51302017550,501.36,Redacted Personal Data,SERVICE USER,LD - Hunts Locality - Cost of Care,LD - Huntingdonshire - Care,Direct Payments
Cambridgeshire County Council,05-Jul-23,51302017550,501.36,Redacted Personal Data,SERVICE USER,LD - Hunts Locality - Cost of Care,LD - Huntingdonshire - Care,Direct Payments
Cambridgeshire County Council,05-Jul-23,51302018031,504.00,Redacted Personal Data,INDIVIDUAL,Children's Disability Direct Payments,CSC Direct Payments,Direct Payments
Cambridgeshire County Council,05-Jul-23,51302018032,504.00,Redacted Personal Data,INDIVIDUAL,Children's Disability Direct Payments,CSC Direct Payments,Direct Payments
Cambridgeshire County Council,05-Jul-23,51302017210,508.86,Redacted Personal Data,INDIVIDUAL,OPPD - Cost of Care - Fenland - Under 65,OPPD - Under 65 - Fenland,Direct Payments
Cambridgeshire County Council,05-Jul-23,51302017210,508.86,Redacted Personal Data,INDIVIDUAL,OPPD - Cost of Care - Fenland - Under 65,OPPD - Under 65 - Fenland,Direct Payments
Cambridgeshire County Council,05-Jul-23,51302017210,508.86,Redacted Personal Data,INDIVIDUAL,OPPD - Cost of Care - Fenland - Under 65,OPPD - Under 65 - Fenland,Direct Payments
Cambridgeshire County Council,05-Jul-23,51302017210,508.86,Redacted Personal Data,INDIVIDUAL,OPPD - Cost of Care - Fenland - Under 65,OPPD - Under 65 - Fenland,Direct Payments
Cambridgeshire County Council,05-Jul-23,51302017966,510.00,Redacted Personal Data,FOSTER PARENT,Fostering,FCP allowances,Adoption Allowances
Cambridgeshire County Council,05-Jul-23,51302017941,510.00,Redacted Personal Data,FOSTER PARENT,Fostering,FCP allowances,Living support grants
Cambridgeshire County Council,05-Jul-23,51302017948,510.00,Redacted Personal Data,FOSTER PARENT,Fostering,FCP allowances,Living support grants
Cambridgeshire County Council,05-Jul-23,51302017949,510.00,Redacted Personal Data,FOSTER PARENT,Fostering,FCP allowances,Living support grants
Cambridgeshire County Council,05-Jul-23,51302017960,510.00,Redacted Personal Data,FOSTER PARENT,Fostering,FCP allowances,Adoption Allowances
Cambridgeshire County Council,05-Jul-23,51302017947,510.00,Redacted Personal Data,FOSTER PARENT,Fostering,FCP allowances,Living support grants
Cambridgeshire County Council,05-Jul-23,51302017999,510.00,Redacted Personal Data,INDIVIDUAL,Fostering,FCP allowances,Support and Grants to Foster Carers
Cambridgeshire County Council,05-Jul-23,51302017984,510.00,Redacted Personal Data,INDIVIDUAL,Fostering,FCP allowances,Childrens Lodgings
Cambridgeshire County Council,05-Jul-23,51302017993,510.00,Redacted Personal Data,INDIVIDUAL,Fostering,FCP allowances,Support and Grants to Foster Carers
Cambridgeshire County Council,05-Jul-23,51302017312,511.19,Redacted Personal Data,INDIVIDUAL,OPMH - Hunts & Fens,Older People Mental Health Fenland,Direct Payments
Cambridgeshire County Council,05-Jul-23,51302017312,511.19,Redacted Personal Data,INDIVIDUAL,OPMH - Hunts & Fens,Older People Mental Health Fenland,Direct Payments
Cambridgeshire County Council,05-Jul-23,51302017312,511.19,Redacted Personal Data,INDIVIDUAL,OPMH - Hunts & Fens,Older People Mental Health Fenland,Direct Payments
Cambridgeshire County Council,05-Jul-23,51302017312,511.19,Redacted Personal Data,INDIVIDUAL,OPMH - Hunts & Fens,Older People Mental Health Fenland,Direct Payments
Cambridgeshire County Council,05-Jul-23,51302017713,511.27,Redacted Personal Data,PARENT/GUARDIAN,OPPD - Cost of Care - Fenland - Under 65,OPPD - Under 65 - Fenland,Direct Payments
Cambridgeshire County Council,05-Jul-23,51302017713,511.27,Redacted Personal Data,PARENT/GUARDIAN,OPPD - Cost of Care - Fenland - Under 65,OPPD - Under 65 - Fenland,Direct Payments
Cambridgeshire County Council,05-Jul-23,51302017713,511.27,Redacted Personal Data,PARENT/GUARDIAN,OPPD - Cost of Care - Fenland - Under 65,OPPD - Under 65 - Fenland,Direct Payments
Cambridgeshire County Council,05-Jul-23,51302017713,511.27,Redacted Personal Data,PARENT/GUARDIAN,OPPD - Cost of Care - Fenland - Under 65,OPPD - Under 65 - Fenland,Direct Payments
Cambridgeshire County Council,05-Jul-23,51302008031,511.50,ESPO,TRADE SUPPLIER,Park & Ride Parking,Park and Ride Admin,Cleaning and Domestic Supplies
Cambridgeshire County Council,05-Jul-23,51302017193,515.34,Redacted Personal Data,SERVICE USER,OPPD - Cost of Care - East Cambs - Under 65,OPPD - Under 65 - East Cambs,Direct Payments
Cambridgeshire County Council,05-Jul-23,51302017193,515.34,Redacted Personal Data,SERVICE USER,OPPD - Cost of Care - East Cambs - Under 65,OPPD - Under 65 - East Cambs,Direct Payments
Cambridgeshire County Council,05-Jul-23,51302017193,515.34,Redacted Personal Data,SERVICE USER,OPPD - Cost of Care - East Cambs - Under 65,OPPD - Under 65 - East Cambs,Direct Payments
Cambridgeshire County Council,05-Jul-23,51302017193,515.34,Redacted Personal Data,SERVICE USER,OPPD - Cost of Care - East Cambs - Under 65,OPPD - Under 65 - East Cambs,Direct Payments
Cambridgeshire County Council,05-Jul-23,51302017452,517.78,Redacted Personal Data,INDIVIDUAL,LD - Young Adults Team,LD - Young Adults - Care,Direct Payments
Cambridgeshire County Council,05-Jul-23,51302017356,520.24,Redacted Personal Data,SERVICE USER,LD - Hunts Locality - Cost of Care,LD - Huntingdonshire - Care,Direct Payments
Cambridgeshire County Council,05-Jul-23,51302017356,520.24,Redacted Personal Data,SERVICE USER,LD - Hunts Locality - Cost of Care,LD - Huntingdonshire - Care,Direct Payments
Cambridgeshire County Council,05-Jul-23,51302017356,520.24,Redacted Personal Data,SERVICE USER,LD - Hunts Locality - Cost of Care,LD - Huntingdonshire - Care,Direct Payments
Cambridgeshire County Council,05-Jul-23,51302017356,520.24,Redacted Personal Data,SERVICE USER,LD - Hunts Locality - Cost of Care,LD - Huntingdonshire - Care,Direct Payments
Cambridgeshire County Council,05-Jul-23,51302017518,523.47,Redacted Personal Data,SERVICE USER,LD - South Locality - Cost of Care,LD - South Cambs - Care,Direct Payments
Cambridgeshire County Council,05-Jul-23,51302017518,523.47,Redacted Personal Data,SERVICE USER,LD - South Locality - Cost of Care,LD - South Cambs - Care,Direct Payments
Cambridgeshire County Council,05-Jul-23,51302017518,523.47,Redacted Personal Data,SERVICE USER,LD - South Locality - Cost of Care,LD - South Cambs - Care,Direct Payments
Cambridgeshire County Council,05-Jul-23,51302017518,523.47,Redacted Personal Data,SERVICE USER,LD - South Locality - Cost of Care,LD - South Cambs - Care,Direct Payments
Cambridgeshire County Council,05-Jul-23,51302017371,524.36,Redacted Personal Data,INDIVIDUAL,OPPD - Cost of Care - City South - Over 65,Older People - City & South - Care,Direct Payments
Cambridgeshire County Council,05-Jul-23,51302017371,524.36,Redacted Personal Data,INDIVIDUAL,OPPD - Cost of Care - City South - Over 65,Older People - City & South - Care,Direct Payments
Cambridgeshire County Council,05-Jul-23,51302017371,524.36,Redacted Personal Data,INDIVIDUAL,OPPD - Cost of Care - City South - Over 65,Older People - City & South - Care,Direct Payments
Cambridgeshire County Council,05-Jul-23,51302017371,524.36,Redacted Personal Data,INDIVIDUAL,OPPD - Cost of Care - City South - Over 65,Older People - City & South - Care,Direct Payments
Cambridgeshire County Council,05-Jul-23,51302017304,525.00,Redacted Personal Data,PARENT/GUARDIAN,LD - Young Adults Team,LD - Young Adults - Care,Direct Payments
Cambridgeshire County Council,05-Jul-23,51302017044,525.64,Redacted Personal Data,PARENT/GUARDIAN,LD - Fenland Locality - Cost of Care,LD - Fenland  - Care,Direct Payments
Cambridgeshire County Council,05-Jul-23,51302017044,525.64,Redacted Personal Data,PARENT/GUARDIAN,LD - Fenland Locality - Cost of Care,LD - Fenland  - Care,Direct Payments
Cambridgeshire County Council,05-Jul-23,51302017044,525.64,Redacted Personal Data,PARENT/GUARDIAN,LD - Fenland Locality - Cost of Care,LD - Fenland  - Care,Direct Payments
Cambridgeshire County Council,05-Jul-23,51302017044,525.64,Redacted Personal Data,PARENT/GUARDIAN,LD - Fenland Locality - Cost of Care,LD - Fenland  - Care,Direct Payments
Cambridgeshire County Council,05-Jul-23,51302017447,526.29,Redacted Personal Data,INDIVIDUAL,AMH Hunts and Fens - care,Hunts and Fens Adult Mental Health Team,Direct Payments
Cambridgeshire County Council,05-Jul-23,51302017447,526.29,Redacted Personal Data,INDIVIDUAL,AMH Hunts and Fens - care,Hunts and Fens Adult Mental Health Team,Direct Payments
Cambridgeshire County Council,05-Jul-23,51302017447,526.29,Redacted Personal Data,INDIVIDUAL,AMH Hunts and Fens - care,Hunts and Fens Adult Mental Health Team,Direct Payments
Cambridgeshire County Council,05-Jul-23,51302017447,526.29,Redacted Personal Data,INDIVIDUAL,AMH Hunts and Fens - care,Hunts and Fens Adult Mental Health Team,Direct Payments
Cambridgeshire County Council,05-Jul-23,51302017503,527.46,Redacted Personal Data,PARENT/GUARDIAN,LD - Hunts Locality - Cost of Care,LD - Huntingdonshire - Care,Direct Payments
Cambridgeshire County Council,05-Jul-23,51302017503,527.46,Redacted Personal Data,PARENT/GUARDIAN,LD - Hunts Locality - Cost of Care,LD - Huntingdonshire - Care,Direct Payments
Cambridgeshire County Council,05-Jul-23,51302017503,527.46,Redacted Personal Data,PARENT/GUARDIAN,LD - Hunts Locality - Cost of Care,LD - Huntingdonshire - Care,Direct Payments
Cambridgeshire County Council,05-Jul-23,51302017503,527.46,Redacted Personal Data,PARENT/GUARDIAN,LD - Hunts Locality - Cost of Care,LD - Huntingdonshire - Care,Direct Payments
Cambridgeshire County Council,05-Jul-23,51302017723,527.51,Redacted Personal Data,INDIVIDUAL,OPMH - Hunts & Fens,Older People Mental Health Fenland,Direct Payments
Cambridgeshire County Council,05-Jul-23,51302017723,527.51,Redacted Personal Data,INDIVIDUAL,OPMH - Hunts & Fens,Older People Mental Health Fenland,Direct Payments
Cambridgeshire County Council,05-Jul-23,51302017723,527.51,Redacted Personal Data,INDIVIDUAL,OPMH - Hunts & Fens,Older People Mental Health Fenland,Direct Payments
Cambridgeshire County Council,05-Jul-23,51302017723,527.51,Redacted Personal Data,INDIVIDUAL,OPMH - Hunts & Fens,Older People Mental Health Fenland,Direct Payments
Cambridgeshire County Council,05-Jul-23,51302017286,529.44,Redacted Personal Data,INDIVIDUAL,LD - Young Adults Team,LD - Young Adults - Care,Direct Payments
Cambridgeshire County Council,05-Jul-23,51302017286,529.44,Redacted Personal Data,INDIVIDUAL,LD - Young Adults Team,LD - Young Adults - Care,Direct Payments
Cambridgeshire County Council,05-Jul-23,51302017286,529.44,Redacted Personal Data,INDIVIDUAL,LD - Young Adults Team,LD - Young Adults - Care,Direct Payments
Cambridgeshire County Council,05-Jul-23,51302017286,529.44,Redacted Personal Data,INDIVIDUAL,LD - Young Adults Team,LD - Young Adults - Care,Direct Payments
Cambridgeshire County Council,05-Jul-23,51302017287,530.77,Redacted Personal Data,INDIVIDUAL,OPPD - Cost of Care - Huntingdon - Over 65,Hunts OP Team - Care,Direct Payments
Cambridgeshire County Council,05-Jul-23,51302017287,530.77,Redacted Personal Data,INDIVIDUAL,OPPD - Cost of Care - Huntingdon - Over 65,Hunts OP Team - Care,Direct Payments
Cambridgeshire County Council,05-Jul-23,51302017287,530.77,Redacted Personal Data,INDIVIDUAL,OPPD - Cost of Care - Huntingdon - Over 65,Hunts OP Team - Care,Direct Payments
Cambridgeshire County Council,05-Jul-23,51302017287,530.77,Redacted Personal Data,INDIVIDUAL,OPPD - Cost of Care - Huntingdon - Over 65,Hunts OP Team - Care,Direct Payments
Cambridgeshire County Council,05-Jul-23,51302017133,532.31,Redacted Personal Data,INDIVIDUAL,OPPD - Under 65 - City South,OPPD - Under 65 - City South,Direct Payments
Cambridgeshire County Council,05-Jul-23,51302017133,532.31,Redacted Personal Data,INDIVIDUAL,OPPD - Under 65 - City South,OPPD - Under 65 - City South,Direct Payments
Cambridgeshire County Council,05-Jul-23,51302017133,532.31,Redacted Personal Data,INDIVIDUAL,OPPD - Under 65 - City South,OPPD - Under 65 - City South,Direct Payments
Cambridgeshire County Council,05-Jul-23,51302017133,532.31,Redacted Personal Data,INDIVIDUAL,OPPD - Under 65 - City South,OPPD - Under 65 - City South,Direct Payments
Cambridgeshire County Council,05-Jul-23,51302017233,533.19,Redacted Personal Data,INDIVIDUAL,LD - Young Adults Team,LD - Young Adults - Care,Direct Payments
Cambridgeshire County Council,05-Jul-23,51302017233,533.19,Redacted Personal Data,INDIVIDUAL,LD - Young Adults Team,LD - Young Adults - Care,Direct Payments
Cambridgeshire County Council,05-Jul-23,51302017233,533.19,Redacted Personal Data,INDIVIDUAL,LD - Young Adults Team,LD - Young Adults - Care,Direct Payments
Cambridgeshire County Council,05-Jul-23,51302017233,533.19,Redacted Personal Data,INDIVIDUAL,LD - Young Adults Team,LD - Young Adults - Care,Direct Payments
Cambridgeshire County Council,05-Jul-23,51302017224,537.79,Redacted Personal Data,INDIVIDUAL,LD - Hunts Locality - Cost of Care,LD - Huntingdonshire - Special Needs,Direct Payments
Cambridgeshire County Council,05-Jul-23,51302017224,537.79,Redacted Personal Data,INDIVIDUAL,LD - Hunts Locality - Cost of Care,LD - Huntingdonshire - Special Needs,Direct Payments
Cambridgeshire County Council,05-Jul-23,51302017224,537.79,Redacted Personal Data,INDIVIDUAL,LD - Hunts Locality - Cost of Care,LD - Huntingdonshire - Special Needs,Direct Payments
Cambridgeshire County Council,05-Jul-23,51302017224,537.79,Redacted Personal Data,INDIVIDUAL,LD - Hunts Locality - Cost of Care,LD - Huntingdonshire - Special Needs,Direct Payments
Cambridgeshire County Council,05-Jul-23,51302017339,538.17,Redacted Personal Data,INDIVIDUAL,OPPD - Cost of Care - City South - Over 65,Older People - City & South - Care,Direct Payments
Cambridgeshire County Council,05-Jul-23,51302017339,538.17,Redacted Personal Data,INDIVIDUAL,OPPD - Cost of Care - City South - Over 65,Older People - City & South - Care,Direct Payments
Cambridgeshire County Council,05-Jul-23,51302017339,538.17,Redacted Personal Data,INDIVIDUAL,OPPD - Cost of Care - City South - Over 65,Older People - City & South - Care,Direct Payments
Cambridgeshire County Council,05-Jul-23,51302017339,538.17,Redacted Personal Data,INDIVIDUAL,OPPD - Cost of Care - City South - Over 65,Older People - City & South - Care,Direct Payments
Cambridgeshire County Council,05-Jul-23,51302017861,541.26,PEOPLESCOUT LIMITED,TRADE SUPPLIER,Highways - LHIs,Highways - LHIs (Local Highways Improvements),Highways - Construction
Cambridgeshire County Council,05-Jul-23,51302016622,551.00,Redacted Personal Data,INDIVIDUAL,Registrars,Registrars General,Non Staff expenses
Cambridgeshire County Council,05-Jul-23,51302017610,553.77,Redacted Personal Data,SERVICE USER,Autism and Adult Support - Cost of Care,Autism and Adult Support - Care,Direct Payments
Cambridgeshire County Council,05-Jul-23,51302017610,553.77,Redacted Personal Data,SERVICE USER,Autism and Adult Support - Cost of Care,Autism and Adult Support - Care,Direct Payments
Cambridgeshire County Council,05-Jul-23,51302017610,553.77,Redacted Personal Data,SERVICE USER,Autism and Adult Support - Cost of Care,Autism and Adult Support - Care,Direct Payments
Cambridgeshire County Council,05-Jul-23,51302017610,553.77,Redacted Personal Data,SERVICE USER,Autism and Adult Support - Cost of Care,Autism and Adult Support - Care,Direct Payments
Cambridgeshire County Council,05-Jul-23,51302018065,554.65,MK WORLDWIDE LTD (T/A LEAD CARE),CARE ESTABLISHMENT,Commissioning - Dom Cars,City and South - Dom Blocks,Domiciliary Care
Cambridgeshire County Council,05-Jul-23,51302018065,554.65,MK WORLDWIDE LTD (T/A LEAD CARE),CARE ESTABLISHMENT,Commissioning - Dom Cars,City and South - Dom Blocks,Domiciliary Care
Cambridgeshire County Council,05-Jul-23,51302018065,554.65,MK WORLDWIDE LTD (T/A LEAD CARE),CARE ESTABLISHMENT,Commissioning - Dom Cars,City and South - Dom Blocks,Domiciliary Care
Cambridgeshire County Council,05-Jul-23,51302018065,554.65,MK WORLDWIDE LTD (T/A LEAD CARE),CARE ESTABLISHMENT,Commissioning - Dom Cars,City and South - Dom Blocks,Domiciliary Care
Cambridgeshire County Council,05-Jul-23,51302018065,554.65,MK WORLDWIDE LTD (T/A LEAD CARE),CARE ESTABLISHMENT,Commissioning - Dom Cars,City and South - Dom Blocks,Domiciliary Care
Cambridgeshire County Council,05-Jul-23,51302018065,554.65,MK WORLDWIDE LTD (T/A LEAD CARE),CARE ESTABLISHMENT,Commissioning - Dom Cars,City and South - Dom Blocks,Domiciliary Care
Cambridgeshire County Council,05-Jul-23,51302017481,557.44,Redacted Personal Data,SERVICE USER,LD - South Locality - Cost of Care,LD - South Cambs - Care,Direct Payments
Cambridgeshire County Council,05-Jul-23,51302017481,557.44,Redacted Personal Data,SERVICE USER,LD - South Locality - Cost of Care,LD - South Cambs - Care,Direct Payments
Cambridgeshire County Council,05-Jul-23,51302017481,557.44,Redacted Personal Data,SERVICE USER,LD - South Locality - Cost of Care,LD - South Cambs - Care,Direct Payments
Cambridgeshire County Council,05-Jul-23,51302017481,557.44,Redacted Personal Data,SERVICE USER,LD - South Locality - Cost of Care,LD - South Cambs - Care,Direct Payments
Cambridgeshire County Council,05-Jul-23,51302008193,558.66,ESPO,TRADE SUPPLIER,Libraries - Open access & touchdown facilities - further 22 Libraries,Open access & touchdown facilities - further 22 Libraries,Furniture - Fixtures and Fittings
Cambridgeshire County Council,05-Jul-23,51302017359,558.78,Redacted Personal Data,INDIVIDUAL,OPPD - Cost of Care - Huntingdon - Under 65,OPPD - Under 65 - Huntingdon,Direct Payments
Cambridgeshire County Council,05-Jul-23,51302017359,558.78,Redacted Personal Data,INDIVIDUAL,OPPD - Cost of Care - Huntingdon - Under 65,OPPD - Under 65 - Huntingdon,Direct Payments
Cambridgeshire County Council,05-Jul-23,51302017359,558.78,Redacted Personal Data,INDIVIDUAL,OPPD - Cost of Care - Huntingdon - Under 65,OPPD - Under 65 - Huntingdon,Direct Payments
Cambridgeshire County Council,05-Jul-23,51302017359,558.78,Redacted Personal Data,INDIVIDUAL,OPPD - Cost of Care - Huntingdon - Under 65,OPPD - Under 65 - Huntingdon,Direct Payments
Cambridgeshire County Council,05-Jul-23,51302017075,560.94,Redacted Personal Data,INDIVIDUAL,LD - Young Adults Team,LD - Young Adults - Special Needs,Direct Payments
Cambridgeshire County Council,05-Jul-23,51302017075,560.94,Redacted Personal Data,INDIVIDUAL,LD - Young Adults Team,LD - Young Adults - Special Needs,Direct Payments
Cambridgeshire County Council,05-Jul-23,51302017075,560.94,Redacted Personal Data,INDIVIDUAL,LD - Young Adults Team,LD - Young Adults - Special Needs,Direct Payments
Cambridgeshire County Council,05-Jul-23,51302017075,560.94,Redacted Personal Data,INDIVIDUAL,LD - Young Adults Team,LD - Young Adults - Special Needs,Direct Payments
Cambridgeshire County Council,05-Jul-23,51302017399,562.46,Redacted Personal Data,INDIVIDUAL,OPPD - Cost of Care - East Cambs - Under 65,OPPD - Under 65 - East Cambs,Direct Payments
Cambridgeshire County Council,05-Jul-23,51302017399,562.46,Redacted Personal Data,INDIVIDUAL,OPPD - Cost of Care - East Cambs - Under 65,OPPD - Under 65 - East Cambs,Direct Payments
Cambridgeshire County Council,05-Jul-23,51302017399,562.46,Redacted Personal Data,INDIVIDUAL,OPPD - Cost of Care - East Cambs - Under 65,OPPD - Under 65 - East Cambs,Direct Payments
Cambridgeshire County Council,05-Jul-23,51302017399,562.46,Redacted Personal Data,INDIVIDUAL,OPPD - Cost of Care - East Cambs - Under 65,OPPD - Under 65 - East Cambs,Direct Payments
Cambridgeshire County Council,05-Jul-23,51302017288,564.48,Redacted Personal Data,INDIVIDUAL,OPPD - Cost of Care - City South - Over 65,Older People - City & South - Care,Direct Payments
Cambridgeshire County Council,05-Jul-23,51302017288,564.48,Redacted Personal Data,INDIVIDUAL,OPPD - Cost of Care - City South - Over 65,Older People - City & South - Care,Direct Payments
Cambridgeshire County Council,05-Jul-23,51302017288,564.48,Redacted Personal Data,INDIVIDUAL,OPPD - Cost of Care - City South - Over 65,Older People - City & South - Care,Direct Payments
Cambridgeshire County Council,05-Jul-23,51302017288,564.48,Redacted Personal Data,INDIVIDUAL,OPPD - Cost of Care - City South - Over 65,Older People - City & South - Care,Direct Payments
Cambridgeshire County Council,05-Jul-23,51302017485,567.82,Redacted Personal Data,SERVICE USER,LD - Hunts Locality - Cost of Care,LD - Huntingdonshire - Care,Direct Payments
Cambridgeshire County Council,05-Jul-23,51302017485,567.82,Redacted Personal Data,SERVICE USER,LD - Hunts Locality - Cost of Care,LD - Huntingdonshire - Care,Direct Payments
Cambridgeshire County Council,05-Jul-23,51302017485,567.82,Redacted Personal Data,SERVICE USER,LD - Hunts Locality - Cost of Care,LD - Huntingdonshire - Care,Direct Payments
Cambridgeshire County Council,05-Jul-23,51302017485,567.82,Redacted Personal Data,SERVICE USER,LD - Hunts Locality - Cost of Care,LD - Huntingdonshire - Care,Direct Payments
Cambridgeshire County Council,05-Jul-23,51302017603,568.98,Redacted Personal Data,SERVICE USER,LD - South Locality - Cost of Care,LD - South Cambs - Care,Direct Payments
Cambridgeshire County Council,05-Jul-23,51302017603,568.98,Redacted Personal Data,SERVICE USER,LD - South Locality - Cost of Care,LD - South Cambs - Care,Direct Payments
Cambridgeshire County Council,05-Jul-23,51302017603,568.98,Redacted Personal Data,SERVICE USER,LD - South Locality - Cost of Care,LD - South Cambs - Care,Direct Payments
Cambridgeshire County Council,05-Jul-23,51302017603,568.98,Redacted Personal Data,SERVICE USER,LD - South Locality - Cost of Care,LD - South Cambs - Care,Direct Payments
Cambridgeshire County Council,05-Jul-23,51302017528,573.52,Redacted Personal Data,SERVICE USER,LD - Hunts Locality - Cost of Care,LD - Huntingdonshire - Care,Direct Payments
Cambridgeshire County Council,05-Jul-23,51302017528,573.52,Redacted Personal Data,SERVICE USER,LD - Hunts Locality - Cost of Care,LD - Huntingdonshire - Care,Direct Payments
Cambridgeshire County Council,05-Jul-23,51302017528,573.52,Redacted Personal Data,SERVICE USER,LD - Hunts Locality - Cost of Care,LD - Huntingdonshire - Care,Direct Payments
Cambridgeshire County Council,05-Jul-23,51302017528,573.52,Redacted Personal Data,SERVICE USER,LD - Hunts Locality - Cost of Care,LD - Huntingdonshire - Care,Direct Payments
Cambridgeshire County Council,05-Jul-23,51302017101,574.03,Redacted Personal Data,INDIVIDUAL,OPPD - Cost of Care - City South - Over 65,Older People - City & South - Care,Direct Payments
Cambridgeshire County Council,05-Jul-23,51302017101,574.03,Redacted Personal Data,INDIVIDUAL,OPPD - Cost of Care - City South - Over 65,Older People - City & South - Care,Direct Payments
Cambridgeshire County Council,05-Jul-23,51302017101,574.03,Redacted Personal Data,INDIVIDUAL,OPPD - Cost of Care - City South - Over 65,Older People - City & South - Care,Direct Payments
Cambridgeshire County Council,05-Jul-23,51302017101,574.03,Redacted Personal Data,INDIVIDUAL,OPPD - Cost of Care - City South - Over 65,Older People - City & South - Care,Direct Payments
Cambridgeshire County Council,05-Jul-23,51302017350,574.03,Redacted Personal Data,INDIVIDUAL,OPPD - Under 65 - City South,OPPD - Under 65 - City South,Direct Payments
Cambridgeshire County Council,05-Jul-23,51302017350,574.03,Redacted Personal Data,INDIVIDUAL,OPPD - Under 65 - City South,OPPD - Under 65 - City South,Direct Payments
Cambridgeshire County Council,05-Jul-23,51302017350,574.03,Redacted Personal Data,INDIVIDUAL,OPPD - Under 65 - City South,OPPD - Under 65 - City South,Direct Payments
Cambridgeshire County Council,05-Jul-23,51302017350,574.03,Redacted Personal Data,INDIVIDUAL,OPPD - Under 65 - City South,OPPD - Under 65 - City South,Direct Payments
Cambridgeshire County Council,05-Jul-23,51302017319,574.69,Redacted Personal Data,INDIVIDUAL,OPPD - Cost of Care - City South - Over 65,Older People - City & South - Care,Direct Payments
Cambridgeshire County Council,05-Jul-23,51302017319,574.69,Redacted Personal Data,INDIVIDUAL,OPPD - Cost of Care - City South - Over 65,Older People - City & South - Care,Direct Payments
Cambridgeshire County Council,05-Jul-23,51302017319,574.69,Redacted Personal Data,INDIVIDUAL,OPPD - Cost of Care - City South - Over 65,Older People - City & South - Care,Direct Payments
Cambridgeshire County Council,05-Jul-23,51302017319,574.69,Redacted Personal Data,INDIVIDUAL,OPPD - Cost of Care - City South - Over 65,Older People - City & South - Care,Direct Payments
Cambridgeshire County Council,05-Jul-23,51302017049,574.74,Redacted Personal Data,SERVICE USER,OPPD - Cost of Care - Fenland - Over 65,Older People - Fenland - Care,Direct Payments
Cambridgeshire County Council,05-Jul-23,51302017049,574.74,Redacted Personal Data,SERVICE USER,OPPD - Cost of Care - Fenland - Over 65,Older People - Fenland - Care,Direct Payments
Cambridgeshire County Council,05-Jul-23,51302017049,574.74,Redacted Personal Data,SERVICE USER,OPPD - Cost of Care - Fenland - Over 65,Older People - Fenland - Care,Direct Payments
Cambridgeshire County Council,05-Jul-23,51302017049,574.74,Redacted Personal Data,SERVICE USER,OPPD - Cost of Care - Fenland - Over 65,Older People - Fenland - Care,Direct Payments
Cambridgeshire County Council,05-Jul-23,51302017072,578.77,Redacted Personal Data,SERVICE USER,LD - South Locality - Cost of Care,LD - South Cambs - Care,Direct Payments
Cambridgeshire County Council,05-Jul-23,51302017072,578.77,Redacted Personal Data,SERVICE USER,LD - South Locality - Cost of Care,LD - South Cambs - Care,Direct Payments
Cambridgeshire County Council,05-Jul-23,51302017072,578.77,Redacted Personal Data,SERVICE USER,LD - South Locality - Cost of Care,LD - South Cambs - Care,Direct Payments
Cambridgeshire County Council,05-Jul-23,51302017072,578.77,Redacted Personal Data,SERVICE USER,LD - South Locality - Cost of Care,LD - South Cambs - Care,Direct Payments
Cambridgeshire County Council,05-Jul-23,51302017006,580.66,Redacted Personal Data,SERVICE USER,LD - South Locality - Cost of Care,LD - South Cambs - Care,Direct Payments
Cambridgeshire County Council,05-Jul-23,51302017006,580.66,Redacted Personal Data,SERVICE USER,LD - South Locality - Cost of Care,LD - South Cambs - Care,Direct Payments
Cambridgeshire County Council,05-Jul-23,51302017006,580.66,Redacted Personal Data,SERVICE USER,LD - South Locality - Cost of Care,LD - South Cambs - Care,Direct Payments
Cambridgeshire County Council,05-Jul-23,51302017006,580.66,Redacted Personal Data,SERVICE USER,LD - South Locality - Cost of Care,LD - South Cambs - Care,Direct Payments
Cambridgeshire County Council,05-Jul-23,51302017571,586.05,Redacted Personal Data,SERVICE USER,LD - Fenland Locality - Cost of Care,LD - Fenland  - Care,Direct Payments
Cambridgeshire County Council,05-Jul-23,51302017571,586.05,Redacted Personal Data,SERVICE USER,LD - Fenland Locality - Cost of Care,LD - Fenland  - Care,Direct Payments
Cambridgeshire County Council,05-Jul-23,51302017571,586.05,Redacted Personal Data,SERVICE USER,LD - Fenland Locality - Cost of Care,LD - Fenland  - Care,Direct Payments
Cambridgeshire County Council,05-Jul-23,51302017571,586.05,Redacted Personal Data,SERVICE USER,LD - Fenland Locality - Cost of Care,LD - Fenland  - Care,Direct Payments
Cambridgeshire County Council,05-Jul-23,51302017685,589.51,Redacted Personal Data,SERVICE USER,OPPD - Under 65 - City South,OPPD - Under 65 - City South,Direct Payments
Cambridgeshire County Council,05-Jul-23,51302017685,589.51,Redacted Personal Data,SERVICE USER,OPPD - Under 65 - City South,OPPD - Under 65 - City South,Direct Payments
Cambridgeshire County Council,05-Jul-23,51302017685,589.51,Redacted Personal Data,SERVICE USER,OPPD - Under 65 - City South,OPPD - Under 65 - City South,Direct Payments
Cambridgeshire County Council,05-Jul-23,51302017685,589.51,Redacted Personal Data,SERVICE USER,OPPD - Under 65 - City South,OPPD - Under 65 - City South,Direct Payments
Cambridgeshire County Council,05-Jul-23,51302017377,591.71,Redacted Personal Data,INDIVIDUAL,OPPD - Cost of Care - Huntingdon - Over 65,Hunts OP Team - Care,Direct Payments
Cambridgeshire County Council,05-Jul-23,51302017377,591.71,Redacted Personal Data,INDIVIDUAL,OPPD - Cost of Care - Huntingdon - Over 65,Hunts OP Team - Care,Direct Payments
Cambridgeshire County Council,05-Jul-23,51302017377,591.71,Redacted Personal Data,INDIVIDUAL,OPPD - Cost of Care - Huntingdon - Over 65,Hunts OP Team - Care,Direct Payments
Cambridgeshire County Council,05-Jul-23,51302017377,591.71,Redacted Personal Data,INDIVIDUAL,OPPD - Cost of Care - Huntingdon - Over 65,Hunts OP Team - Care,Direct Payments
Cambridgeshire County Council,05-Jul-23,51302017467,596.39,Redacted Personal Data,SERVICE USER,LD - South Locality - Cost of Care,LD - South Cambs - Care,Direct Payments
Cambridgeshire County Council,05-Jul-23,51302017467,596.39,Redacted Personal Data,SERVICE USER,LD - South Locality - Cost of Care,LD - South Cambs - Care,Direct Payments
Cambridgeshire County Council,05-Jul-23,51302017467,596.39,Redacted Personal Data,SERVICE USER,LD - South Locality - Cost of Care,LD - South Cambs - Care,Direct Payments
Cambridgeshire County Council,05-Jul-23,51302017467,596.39,Redacted Personal Data,SERVICE USER,LD - South Locality - Cost of Care,LD - South Cambs - Care,Direct Payments
Cambridgeshire County Council,05-Jul-23,51302009085,600.00,BDP SOCIAL CARE LTD,TRADE SUPPLIER,Adolescent Team North,Adolescent Team North,Professional Fees and Hired Services
Cambridgeshire County Council,05-Jul-23,51302017745,600.00,CAMBRIDGE NETWORK LTD,TRADE SUPPLIER,GCP - Communications,GCP - Strategic Communicatations,Subscriptions
Cambridgeshire County Council,05-Jul-23,51302011195,600.00,ENVIRONMENT AGENCY,OTHER PUBLIC BODIES,Waste - BATc,Waste - BATc Capital works,Construction - External Professional Fees
Cambridgeshire County Council,05-Jul-23,51302017426,601.88,Redacted Personal Data,INDIVIDUAL,LD - Young Adults Team,LD - Young Adults - Care,Direct Payments
Cambridgeshire County Council,05-Jul-23,51302017426,601.88,Redacted Personal Data,INDIVIDUAL,LD - Young Adults Team,LD - Young Adults - Care,Direct Payments
Cambridgeshire County Council,05-Jul-23,51302017426,601.88,Redacted Personal Data,INDIVIDUAL,LD - Young Adults Team,LD - Young Adults - Care,Direct Payments
Cambridgeshire County Council,05-Jul-23,51302017426,601.88,Redacted Personal Data,INDIVIDUAL,LD - Young Adults Team,LD - Young Adults - Care,Direct Payments
Cambridgeshire County Council,05-Jul-23,51302008051,601.92,Pathfinder Legal Services Limited,TRADE SUPPLIER,Highways Development Management,Highways Development Management,External Legal Fees
Cambridgeshire County Council,05-Jul-23,51302016614,603.10,Redacted Personal Data,FOSTER PARENT,Fostering,FCP allowances,Enhanced Payments
Cambridgeshire County Council,05-Jul-23,51302017433,606.69,Redacted Personal Data,INDIVIDUAL,OPPD - Cost of Care - City South - Over 65,Older People - City & South - Care,Direct Payments
Cambridgeshire County Council,05-Jul-23,51302017433,606.69,Redacted Personal Data,INDIVIDUAL,OPPD - Cost of Care - City South - Over 65,Older People - City & South - Care,Direct Payments
Cambridgeshire County Council,05-Jul-23,51302017433,606.69,Redacted Personal Data,INDIVIDUAL,OPPD - Cost of Care - City South - Over 65,Older People - City & South - Care,Direct Payments
Cambridgeshire County Council,05-Jul-23,51302017433,606.69,Redacted Personal Data,INDIVIDUAL,OPPD - Cost of Care - City South - Over 65,Older People - City & South - Care,Direct Payments
Cambridgeshire County Council,05-Jul-23,51302018073,610.11,RADIS COMMUNITY CARE,CARE ESTABLISHMENT,OPPD - Cost of Care - East Cambs - Over 65,East Cambs - O P Team - Care,Supported Living
Cambridgeshire County Council,05-Jul-23,51302017162,610.24,Redacted Personal Data,SERVICE USER,OPPD - Cost of Care - East Cambs - Over 65,East Cambs - O P Team - Care,Direct Payments
Cambridgeshire County Council,05-Jul-23,51302017162,610.24,Redacted Personal Data,SERVICE USER,OPPD - Cost of Care - East Cambs - Over 65,East Cambs - O P Team - Care,Direct Payments
Cambridgeshire County Council,05-Jul-23,51302017162,610.24,Redacted Personal Data,SERVICE USER,OPPD - Cost of Care - East Cambs - Over 65,East Cambs - O P Team - Care,Direct Payments
Cambridgeshire County Council,05-Jul-23,51302017162,610.24,Redacted Personal Data,SERVICE USER,OPPD - Cost of Care - East Cambs - Over 65,East Cambs - O P Team - Care,Direct Payments
Cambridgeshire County Council,05-Jul-23,51302017632,611.18,Redacted Personal Data,SERVICE USER,LD - City Locality - Cost of Care,LD - City - Care,Direct Payments
Cambridgeshire County Council,05-Jul-23,51302017632,611.18,Redacted Personal Data,SERVICE USER,LD - City Locality - Cost of Care,LD - City - Care,Direct Payments
Cambridgeshire County Council,05-Jul-23,51302017632,611.18,Redacted Personal Data,SERVICE USER,LD - City Locality - Cost of Care,LD - City - Care,Direct Payments
Cambridgeshire County Council,05-Jul-23,51302017632,611.18,Redacted Personal Data,SERVICE USER,LD - City Locality - Cost of Care,LD - City - Care,Direct Payments
Cambridgeshire County Council,05-Jul-23,51302017102,615.14,Redacted Personal Data,INDIVIDUAL,OPPD - Cost of Care - City South - Over 65,Older People - City & South - Care,Direct Payments
Cambridgeshire County Council,05-Jul-23,51302017102,615.14,Redacted Personal Data,INDIVIDUAL,OPPD - Cost of Care - City South - Over 65,Older People - City & South - Care,Direct Payments
Cambridgeshire County Council,05-Jul-23,51302017102,615.14,Redacted Personal Data,INDIVIDUAL,OPPD - Cost of Care - City South - Over 65,Older People - City & South - Care,Direct Payments
Cambridgeshire County Council,05-Jul-23,51302017102,615.14,Redacted Personal Data,INDIVIDUAL,OPPD - Cost of Care - City South - Over 65,Older People - City & South - Care,Direct Payments
Cambridgeshire County Council,05-Jul-23,51302017659,618.48,Redacted Personal Data,SERVICE USER,OPPD - Cost of Care - City South - Over 65,Older People - City & South - Care,Direct Payments
Cambridgeshire County Council,05-Jul-23,51302017659,618.48,Redacted Personal Data,SERVICE USER,OPPD - Cost of Care - City South - Over 65,Older People - City & South - Care,Direct Payments
Cambridgeshire County Council,05-Jul-23,51302017659,618.48,Redacted Personal Data,SERVICE USER,OPPD - Cost of Care - City South - Over 65,Older People - City & South - Care,Direct Payments
Cambridgeshire County Council,05-Jul-23,51302017659,618.48,Redacted Personal Data,SERVICE USER,OPPD - Cost of Care - City South - Over 65,Older People - City & South - Care,Direct Payments
Cambridgeshire County Council,05-Jul-23,51302017031,623.28,Redacted Personal Data,SERVICE USER,LD - Hunts Locality - Cost of Care,LD - Huntingdonshire - Care,Direct Payments
Cambridgeshire County Council,05-Jul-23,51302017031,623.28,Redacted Personal Data,SERVICE USER,LD - Hunts Locality - Cost of Care,LD - Huntingdonshire - Care,Direct Payments
Cambridgeshire County Council,05-Jul-23,51302017031,623.28,Redacted Personal Data,SERVICE USER,LD - Hunts Locality - Cost of Care,LD - Huntingdonshire - Care,Direct Payments
Cambridgeshire County Council,05-Jul-23,51302017031,623.28,Redacted Personal Data,SERVICE USER,LD - Hunts Locality - Cost of Care,LD - Huntingdonshire - Care,Direct Payments
Cambridgeshire County Council,05-Jul-23,51302017099,623.54,Redacted Personal Data,INDIVIDUAL,OPPD - Cost of Care - City South - Over 65,Older People - City & South - Care,Direct Payments
Cambridgeshire County Council,05-Jul-23,51302017099,623.54,Redacted Personal Data,INDIVIDUAL,OPPD - Cost of Care - City South - Over 65,Older People - City & South - Care,Direct Payments
Cambridgeshire County Council,05-Jul-23,51302017099,623.54,Redacted Personal Data,INDIVIDUAL,OPPD - Cost of Care - City South - Over 65,Older People - City & South - Care,Direct Payments
Cambridgeshire County Council,05-Jul-23,51302017099,623.54,Redacted Personal Data,INDIVIDUAL,OPPD - Cost of Care - City South - Over 65,Older People - City & South - Care,Direct Payments
Cambridgeshire County Council,05-Jul-23,51302017368,627.32,Redacted Personal Data,INDIVIDUAL,OPPD - Cost of Care - Huntingdon - Under 65,OPPD - Under 65 - Huntingdon,Direct Payments
Cambridgeshire County Council,05-Jul-23,51302017368,627.32,Redacted Personal Data,INDIVIDUAL,OPPD - Cost of Care - Huntingdon - Under 65,OPPD - Under 65 - Huntingdon,Direct Payments
Cambridgeshire County Council,05-Jul-23,51302017368,627.32,Redacted Personal Data,INDIVIDUAL,OPPD - Cost of Care - Huntingdon - Under 65,OPPD - Under 65 - Huntingdon,Direct Payments
Cambridgeshire County Council,05-Jul-23,51302017368,627.32,Redacted Personal Data,INDIVIDUAL,OPPD - Cost of Care - Huntingdon - Under 65,OPPD - Under 65 - Huntingdon,Direct Payments
Cambridgeshire County Council,05-Jul-23,51302017024,627.79,Redacted Personal Data,INDIVIDUAL,OPPD - Cost of Care - City South - Over 65,Older People - City & South - Care,Direct Payments
Cambridgeshire County Council,05-Jul-23,51302017024,627.79,Redacted Personal Data,INDIVIDUAL,OPPD - Cost of Care - City South - Over 65,Older People - City & South - Care,Direct Payments
Cambridgeshire County Council,05-Jul-23,51302017024,627.79,Redacted Personal Data,INDIVIDUAL,OPPD - Cost of Care - City South - Over 65,Older People - City & South - Care,Direct Payments
Cambridgeshire County Council,05-Jul-23,51302017024,627.79,Redacted Personal Data,INDIVIDUAL,OPPD - Cost of Care - City South - Over 65,Older People - City & South - Care,Direct Payments
Cambridgeshire County Council,05-Jul-23,51302017679,628.70,Redacted Personal Data,SERVICE USER,OPPD - Under 65 - City South,OPPD - Under 65 - City South,Direct Payments
Cambridgeshire County Council,05-Jul-23,51302017679,628.70,Redacted Personal Data,SERVICE USER,OPPD - Under 65 - City South,OPPD - Under 65 - City South,Direct Payments
Cambridgeshire County Council,05-Jul-23,51302017679,628.70,Redacted Personal Data,SERVICE USER,OPPD - Under 65 - City South,OPPD - Under 65 - City South,Direct Payments
Cambridgeshire County Council,05-Jul-23,51302017679,628.70,Redacted Personal Data,SERVICE USER,OPPD - Under 65 - City South,OPPD - Under 65 - City South,Direct Payments
Cambridgeshire County Council,05-Jul-23,51302017454,629.60,Redacted Personal Data,INDIVIDUAL,OPPD - Cost of Care - East Cambs - Under 65,OPPD - Under 65 - East Cambs,Direct Payments
Cambridgeshire County Council,05-Jul-23,51302017454,629.60,Redacted Personal Data,INDIVIDUAL,OPPD - Cost of Care - East Cambs - Under 65,OPPD - Under 65 - East Cambs,Direct Payments
Cambridgeshire County Council,05-Jul-23,51302017454,629.60,Redacted Personal Data,INDIVIDUAL,OPPD - Cost of Care - East Cambs - Under 65,OPPD - Under 65 - East Cambs,Direct Payments
Cambridgeshire County Council,05-Jul-23,51302017454,629.60,Redacted Personal Data,INDIVIDUAL,OPPD - Cost of Care - East Cambs - Under 65,OPPD - Under 65 - East Cambs,Direct Payments
Cambridgeshire County Council,05-Jul-23,51302017207,634.98,Redacted Personal Data,SERVICE USER,OPPD - Cost of Care - Fenland - Under 65,OPPD - Under 65 - Fenland,Direct Payments
Cambridgeshire County Council,05-Jul-23,51302017207,634.98,Redacted Personal Data,SERVICE USER,OPPD - Cost of Care - Fenland - Under 65,OPPD - Under 65 - Fenland,Direct Payments
Cambridgeshire County Council,05-Jul-23,51302017207,634.98,Redacted Personal Data,SERVICE USER,OPPD - Cost of Care - Fenland - Under 65,OPPD - Under 65 - Fenland,Direct Payments
Cambridgeshire County Council,05-Jul-23,51302017207,634.98,Redacted Personal Data,SERVICE USER,OPPD - Cost of Care - Fenland - Under 65,OPPD - Under 65 - Fenland,Direct Payments
Cambridgeshire County Council,05-Jul-23,51302017370,640.25,Redacted Personal Data,INDIVIDUAL,LD - Young Adults Team,LD - Young Adults - Care,Direct Payments
Cambridgeshire County Council,05-Jul-23,51302017370,640.25,Redacted Personal Data,INDIVIDUAL,LD - Young Adults Team,LD - Young Adults - Care,Direct Payments
Cambridgeshire County Council,05-Jul-23,51302017370,640.25,Redacted Personal Data,INDIVIDUAL,LD - Young Adults Team,LD - Young Adults - Care,Direct Payments
Cambridgeshire County Council,05-Jul-23,51302017370,640.25,Redacted Personal Data,INDIVIDUAL,LD - Young Adults Team,LD - Young Adults - Care,Direct Payments
Cambridgeshire County Council,05-Jul-23,51302015522,644.80,Redacted Personal Data,INDIVIDUAL,Home to School Transport - Special,Home to School Transport Special - Special School,Contribution To Transport Related Provisions
Cambridgeshire County Council,05-Jul-23,51302017264,645.79,Redacted Personal Data,INDIVIDUAL,OPPD - Cost of Care - City South - Over 65,Older People - City & South - Care,Direct Payments
Cambridgeshire County Council,05-Jul-23,51302017264,645.79,Redacted Personal Data,INDIVIDUAL,OPPD - Cost of Care - City South - Over 65,Older People - City & South - Care,Direct Payments
Cambridgeshire County Council,05-Jul-23,51302017264,645.79,Redacted Personal Data,INDIVIDUAL,OPPD - Cost of Care - City South - Over 65,Older People - City & South - Care,Direct Payments
Cambridgeshire County Council,05-Jul-23,51302017264,645.79,Redacted Personal Data,INDIVIDUAL,OPPD - Cost of Care - City South - Over 65,Older People - City & South - Care,Direct Payments
Cambridgeshire County Council,05-Jul-23,51302018037,650.00,RH ACUITY LIMITED,TRADE SUPPLIER,Fostering,Foster Care Panels,Professional Fees and Hired Services
Cambridgeshire County Council,05-Jul-23,51302018038,650.00,RH ACUITY LIMITED,TRADE SUPPLIER,Fostering,Foster Care Panels,Professional Fees and Hired Services
Cambridgeshire County Council,05-Jul-23,51302018036,650.00,RH ACUITY LIMITED,TRADE SUPPLIER,Fostering,Fostering Support and Supervision,Professional Fees and Hired Services
Cambridgeshire County Council,05-Jul-23,51302017749,650.00,Redacted Personal Data,INDIVIDUAL,Children's Disability Direct Payments,CSC Direct Payments,Direct Payments
Cambridgeshire County Council,05-Jul-23,51302017699,651.63,Redacted Personal Data,INDIVIDUAL,OPPD - Cost of Care - Huntingdon - Under 65,OPPD - Under 65 - Huntingdon,Direct Payments
Cambridgeshire County Council,05-Jul-23,51302017699,651.63,Redacted Personal Data,INDIVIDUAL,OPPD - Cost of Care - Huntingdon - Under 65,OPPD - Under 65 - Huntingdon,Direct Payments
Cambridgeshire County Council,05-Jul-23,51302017699,651.63,Redacted Personal Data,INDIVIDUAL,OPPD - Cost of Care - Huntingdon - Under 65,OPPD - Under 65 - Huntingdon,Direct Payments
Cambridgeshire County Council,05-Jul-23,51302017699,651.63,Redacted Personal Data,INDIVIDUAL,OPPD - Cost of Care - Huntingdon - Under 65,OPPD - Under 65 - Huntingdon,Direct Payments
Cambridgeshire County Council,05-Jul-23,51302017330,653.76,Redacted Personal Data,INDIVIDUAL,LD - City Locality - Cost of Care,LD - City - Care,Direct Payments
Cambridgeshire County Council,05-Jul-23,51302017330,653.76,Redacted Personal Data,INDIVIDUAL,LD - City Locality - Cost of Care,LD - City - Care,Direct Payments
Cambridgeshire County Council,05-Jul-23,51302017330,653.76,Redacted Personal Data,INDIVIDUAL,LD - City Locality - Cost of Care,LD - City - Care,Direct Payments
Cambridgeshire County Council,05-Jul-23,51302017330,653.76,Redacted Personal Data,INDIVIDUAL,LD - City Locality - Cost of Care,LD - City - Care,Direct Payments
